{"text_format":"1","workbook":"xlsx","n_sheets":29,"sheets":["ETIQUETAGE","COUPURE PISTES","ETUVAGE","CHARGEMENT MYDATA","CMS MYDATA","CHARGEMENT EUROPLACER","CMS EUROPLACER","CONTROLE CMS","RX","XRAY F1","XRAY F2","PDCF1","PDCF2","LIEN CMS","chemise Philippe","Tps MYDATA","Tps EUROPLACER","OUTIL","Pos.Plateaux","EVOL","REVUE METHODES","Nomenclature CMS","Nomenclature Compléte","Gamme","démarche pochoir","CONTROLE F1 ","CONTROLE F2","OUTILLAGE","OP supp"],"not_rendered":{"charts":0,"images":61,"macros":1,"external_links":2,"defined_names":41,"comments":2,"pivot_tables":1},"unopened":[],"bounds":{"document_bytes":16777216,"sheet_cells":100000,"rows_first":2000,"rows_last":500,"rows_between":2000,"halvings":0,"cell_chars":16384,"cell_head_chars":4096},"cells_cut":0,"cells_raw":0,"read":"whole","date_system":"1900"}

{"sheet":"ETIQUETAGE","index":0,"n_rows":9,"n_cols":2,"rows_kept":9,"cut":false,"hidden":false,"merged":[[8,1,9,45]]}
[]
[]
[]
[]
[]
[]
[]
[]
[null,"ETIQUETTAGE"]

{"sheet":"COUPURE PISTES","index":1,"n_rows":9,"n_cols":2,"rows_kept":9,"cut":false,"hidden":false,"merged":[[8,1,9,45]]}
[]
[]
[]
[]
[]
[]
[]
[]
[null,"COUPURES PISTES"]

{"sheet":"ETUVAGE","index":2,"n_rows":27,"n_cols":27,"rows_kept":27,"cut":false,"hidden":false,"merged":[[19,9,20,10],[20,11,21,20],[20,21,21,25],[20,26,21,30],[17,2,18,7],[17,9,18,10],[18,11,19,20],[18,21,19,25],[18,26,19,30],[8,1,9,45],[15,2,16,7],[16,11,17,20],[16,21,17,25],[16,26,17,30],[12,11,15,30],[25,9,26,10],[26,11,27,20],[21,9,22,10],[22,11,23,20],[22,21,23,25],[26,21,27,30],[22,26,23,30],[23,9,24,10],[24,11,25,20],[24,21,25,25],[24,26,25,30]]}
[]
[]
[]
[]
[]
[]
[]
[]
[null,"ETUVAGE"]
[]
[]
[]
[null,null,null,null,null,null,null,null,null,null,null,"CONSIGNE A APPLIQUER SUIVANT LA FINITION"]
[]
[]
[null,null,"FINITION DU PRODUIT"]
[null,null,null,null,null,null,null,null,null,null,null,"FINITION",null,null,null,null,null,null,null,null,null,"Temps (H)",null,null,null,null,"Température (+/- 3°C) "]
[null,null,{"$f":"'LIEN CMS'!$B$25","v":0},null,null,null,null,null,null,""]
[null,null,null,null,null,null,null,null,null,null,null,"Ni Au chimique / Electro-lytique",null,null,null,null,null,null,null,null,null,12,null,null,null,null,110]
[]
[null,null,null,null,null,null,null,null,null,null,null,"Sn Pb",null,null,null,null,null,null,null,null,null,12,null,null,null,null,110]
[null,null,null,null,null,null,null,null,null,""]
[null,null,null,null,null,null,null,null,null,null,null,"Ag chimique",null,null,null,null,null,null,null,null,null,3,null,null,null,null,80]
[null,null,null,null,null,null,null,null,null,""]
[null,null,null,null,null,null,null,null,null,null,null,"Sn chimique",null,null,null,null,null,null,null,null,null,3,null,null,null,null,80]
[null,null,null,null,null,null,null,null,null,""]
[null,null,null,null,null,null,null,null,null,null,null,"OSP",null,null,null,null,null,null,null,null,null,"étuvage interdit"]

{"sheet":"CHARGEMENT MYDATA","index":3,"n_rows":19,"n_cols":45,"rows_kept":19,"cut":false,"hidden":false,"merged":[[18,19,18,23],[8,1,9,45],[12,11,13,12],[12,13,13,20],[18,1,18,4],[18,5,18,6],[18,7,18,11],[18,12,18,13],[18,14,18,18],[14,21,14,24],[14,25,14,29],[14,30,14,34],[18,24,18,25],[18,26,18,27],[18,28,18,34],[18,35,18,38],[18,39,18,45],[14,41,14,43],[14,35,14,37],[14,38,14,40],[14,44,14,46],[12,35,12,37],[12,38,12,40],[12,44,12,46],[12,41,12,43],[13,35,13,37],[13,38,13,40],[13,41,13,43],[13,44,13,46],[12,21,12,24],[12,25,12,29],[12,30,12,34],[13,21,13,24],[13,25,13,29],[13,30,13,34]]}
[]
[]
[]
[]
[]
[]
[]
[]
[null,"CHARGEMENT                    "]
[]
[]
[]
[null,null,null,null,null,null,null,null,null,null,null,"KIT LIST :",null,{"$f":"IF('LIEN CMS'!$C$104=\"oui\",'LIEN CMS'!$B$112,'LIEN CMS'!$B$117)","v":"  IND:"},null,null,null,null,null,null,null,"N° Face",null,null,null,{"$f":"'LIEN CMS'!$B$65","v":"N° face "},null,null,null,null,{"$f":"IF('LIEN CMS'!$B$67=\"\",\"\",'LIEN CMS'!$B$67)","v":"N° face "},null,null,null,null,"N°outillage :",null,null,{"$f":"IF('LIEN CMS'!$B$48=0,\"N/A\",'LIEN CMS'!$B$48)","v":"N/A"},null,null,{"$f":"IF('LIEN CMS'!$B$49=0,\"N/A\",'LIEN CMS'!$B$49)","v":"N/A"},null,null,{"$f":"IF('LIEN CMS'!$B$50=0,\"N/A\",'LIEN CMS'!$B$50)","v":"N/A"}]
[null,null,null,null,null,null,null,null,null,null,null,null,null,null,null,null,null,null,null,null,null,"N °pochoir :",null,null,null,{"$f":"IF('LIEN CMS'!$B$74=0,\"N/A\",(CONCATENATE(\"ECR00000\",'LIEN CMS'!$B$74)))","v":"N/A"},null,null,null,null,{"$f":"IF('LIEN CMS'!$B$79=0,\"N/A\",(CONCATENATE(\"ECR00000\",'LIEN CMS'!$B$79)))","v":"N/A"},null,null,null,null,"Qté :",null,null,{"$f":"IF('LIEN CMS'!$C$48=0,\"N/A\",'LIEN CMS'!$C$48)","v":"N/A"},null,null,{"$f":"IF('LIEN CMS'!$C$49=0,\"N/A\",'LIEN CMS'!$C$49)","v":"N/A"},null,null,{"$f":"IF('LIEN CMS'!$C$50=0,\"N/A\",'LIEN CMS'!$C$50)","v":"N/A"}]
[null,null,null,null,null,null,null,null,null,null,null,null,null,null,null,null,null,null,null,null,null,"Ingrédient",null,null,null,{"$f":"IF('LIEN CMS'!$B$71=0,\"N/A\",'LIEN CMS'!$B$71)","v":"N/A"},null,null,null,null,{"$f":"IF('LIEN CMS'!$B$76=0,\"N/A\",'LIEN CMS'!$B$76)","v":"N/A"},null,null,null,null,"Lieu rangement:",null,null,{"$f":"IF(ISERROR((VLOOKUP('LIEN CMS'!$B$48,OUTILLAGE!$C:$E,2,0))<>\"\"),\"\",CONCATENATE(VLOOKUP('LIEN CMS'!$B$48,OUTILLAGE!$C:$E,2,0),IF(VLOOKUP('LIEN CMS'!$B$48,OUTILLAGE!$C:$E,3,0)=\"x\",\"\",CONCATENATE(\" n° \",VLOOKUP('LIEN CMS'!$B$48,OUTILLAGE!$C:$E,3,0)))))","v":""},null,null,{"$f":"IF(ISERROR((VLOOKUP('LIEN CMS'!$B$49,OUTILLAGE!$C:$E,2,0))<>\"\"),\"\",CONCATENATE(VLOOKUP('LIEN CMS'!$B$49,OUTILLAGE!$C:$E,2,0),IF(VLOOKUP('LIEN CMS'!$B$49,OUTILLAGE!$C:$E,3,0)=\"x\",\"\",CONCATENATE(\" n° \",VLOOKUP('LIEN CMS'!$B$49,OUTILLAGE!$C:$E,3,0)))))","v":""},null,null,{"$f":"IF(ISERROR((VLOOKUP('LIEN CMS'!$B$50,OUTILLAGE!$C:$E,2,0))<>\"\"),\"\",CONCATENATE(VLOOKUP('LIEN CMS'!$B$50,OUTILLAGE!$C:$E,2,0),IF(VLOOKUP('LIEN CMS'!$B$50,OUTILLAGE!$C:$E,3,0)=\"x\",\"\",CONCATENATE(\" n° \",VLOOKUP('LIEN CMS'!$B$50,OUTILLAGE!$C:$E,3,0)))))","v":""}]
[]
[]
[]
[null,"MAGASIN",null,null,null,"POSITION",null,"Après Modification",null,null,null,null,"PRESENT",null,"CODE ARTICLE",null,null,null,null,"CODE CLIENT",null,null,null,null,"F1",null,"F2",null,"DESIGNATION",null,null,null,null,null,null,"BOITIER",null,null,null,"DIVERS"]

{"sheet":"CMS MYDATA","index":4,"n_rows":209,"n_cols":613,"rows_kept":209,"cut":false,"hidden":false,"merged":[[131,1,132,6],[131,7,132,13],[131,14,132,15],[133,1,134,6],[133,7,134,13],[133,14,134,15],[197,1,198,6],[197,7,198,13],[197,14,198,15],[170,14,171,15],[172,14,173,15],[152,1,153,6],[152,7,153,15],[154,1,155,6],[154,7,155,15],[156,1,157,6],[156,7,157,15],[143,1,144,45],[146,1,147,15],[146,18,147,45],[148,1,149,6],[148,7,149,15],[150,1,151,6],[150,7,151,15],[45,612,46,656],[44,141,52,141],[77,48,78,92],[77,95,78,139],[110,48,111,92],[110,95,111,139],[143,48,144,92],[143,95,144,139],[176,48,177,92],[176,95,177,139],[45,189,46,233],[45,236,46,280],[45,283,46,327],[45,330,46,374],[45,377,46,421],[45,424,46,468],[45,471,46,515],[45,518,46,562],[45,565,46,609],[73,17,74,17],[73,18,74,33],[73,34,74,36],[73,37,74,39],[73,40,74,42],[73,43,74,45],[45,48,46,92],[45,95,46,139],[45,142,46,186],[69,17,70,17],[69,18,70,33],[69,34,70,36],[69,37,70,39],[69,40,70,42],[69,43,70,45],[71,17,72,17],[71,18,72,33],[71,34,72,36],[71,37,72,39],[71,40,72,42],[71,43,72,45],[65,17,66,17],[65,18,66,33],[65,34,66,36],[65,37,66,39],[65,40,66,42],[65,43,66,45],[67,17,68,17],[67,18,68,33],[67,34,68,36],[67,37,68,39],[67,40,68,42],[67,43,68,45],[61,17,62,17],[61,18,62,33],[61,34,62,36],[61,37,62,39],[61,40,62,42],[61,43,62,45],[63,17,64,17],[63,18,64,33],[63,34,64,36],[63,37,64,39],[63,40,64,42],[63,43,64,45],[57,17,58,17],[57,18,58,33],[57,34,58,36],[57,37,58,39],[57,40,58,42],[57,43,58,45],[59,17,60,17],[59,18,60,33],[59,34,60,36],[59,37,60,39],[59,40,60,42],[59,43,60,45],[53,17,54,17],[53,18,54,33],[53,34,54,36],[53,37,54,39],[53,40,54,42],[53,43,54,45],[55,17,56,17],[55,18,56,33],[55,34,56,36],[55,37,56,39],[55,40,56,42],[55,43,56,45],[37,1,38,3],[37,4,38,21],[37,22,38,25],[37,26,38,29],[37,30,38,33],[37,34,38,37],[37,38,38,41],[37,42,38,45],[48,18,48,33],[48,34,48,36],[48,37,48,39],[48,40,48,42],[48,43,48,45],[21,1,22,3],[21,4,22,21],[21,22,22,25],[21,26,22,29],[21,30,22,33],[21,34,22,37],[21,38,22,41],[21,42,22,45],[23,1,24,3],[23,4,24,21],[23,22,24,25],[23,26,24,29],[23,30,24,33],[23,34,24,37],[23,38,24,41],[23,42,24,45],[8,1,9,45],[12,1,13,6],[12,7,13,45],[15,1,16,3],[15,4,16,21],[15,22,15,29],[15,30,15,37],[15,38,15,45],[16,22,16,25],[16,26,16,29],[16,30,16,33],[16,34,16,37],[16,38,16,41],[16,42,16,45],[11,31,11,33],[11,34,11,35],[11,36,11,39],[11,40,11,41],[11,42,11,45],[17,1,18,3],[17,4,18,21],[17,22,18,25],[17,26,18,29],[17,30,18,33],[17,34,18,37],[17,38,18,41],[17,42,18,45],[19,1,20,3],[19,4,20,21],[19,22,20,25],[19,26,20,29],[19,30,20,33],[19,34,20,37],[19,38,20,41],[19,42,20,45],[25,38,26,41],[25,42,26,45],[27,1,28,3],[27,4,28,21],[27,22,28,25],[27,26,28,29],[27,30,28,33],[27,34,28,37],[27,38,28,41],[27,42,28,45],[25,1,26,3],[25,4,26,21],[25,22,26,25],[25,26,26,29],[25,30,26,33],[25,34,26,37],[29,38,30,41],[29,42,30,45],[31,1,32,3],[31,4,32,21],[31,22,32,25],[31,26,32,29],[31,30,32,33],[31,34,32,37],[31,38,32,41],[31,42,32,45],[29,1,30,3],[29,4,30,21],[29,22,30,25],[29,26,30,29],[29,30,30,33],[29,34,30,37],[33,38,34,41],[33,42,34,45],[35,1,36,3],[35,4,36,21],[35,22,36,25],[35,26,36,29],[35,30,36,33],[35,34,36,37],[35,38,36,41],[35,42,36,45],[33,1,34,3],[33,4,34,21],[33,22,34,25],[33,26,34,29],[33,30,34,33],[33,34,34,37],[84,1,85,6],[84,7,85,15],[86,1,87,6],[86,7,87,15],[88,1,89,6],[88,7,89,15],[44,1,45,45],[77,1,78,45],[80,1,81,15],[80,18,81,45],[82,1,83,6],[82,7,83,15],[49,17,50,17],[49,18,50,33],[49,34,50,36],[49,37,50,39],[49,40,50,42],[49,43,50,45],[51,17,52,17],[51,18,52,33],[51,34,52,36],[51,37,52,39],[51,40,52,42],[51,43,52,45],[96,1,97,6],[96,7,97,15],[98,1,99,6],[98,7,99,15],[100,1,101,6],[100,7,101,15],[90,1,91,6],[90,7,91,15],[92,1,93,6],[92,7,93,15],[94,1,95,6],[94,7,95,15],[110,1,111,45],[113,1,114,15],[113,18,114,45],[115,1,116,6],[115,7,116,15],[117,1,118,6],[117,7,118,15],[102,1,103,6],[102,7,103,15],[104,1,105,6],[104,7,105,13],[106,1,107,6],[106,7,107,13],[104,14,105,15],[106,14,107,15],[125,1,126,6],[125,7,126,15],[127,1,128,6],[127,7,128,15],[129,1,130,6],[129,7,130,15],[119,1,120,6],[119,7,120,15],[121,1,122,6],[121,7,122,13],[121,14,122,15],[123,1,124,6],[123,7,124,15],[164,1,165,6],[164,7,165,15],[166,1,167,6],[166,7,167,15],[168,1,169,6],[168,7,169,15],[158,1,159,6],[158,7,159,15],[160,1,161,6],[160,7,161,15],[162,1,163,6],[162,7,163,15],[181,1,182,6],[181,7,182,15],[183,1,184,6],[183,7,184,15],[185,1,186,6],[185,7,186,15],[170,1,171,6],[170,7,171,13],[172,1,173,6],[172,7,173,13],[176,1,177,45],[179,1,180,15],[179,18,180,45],[208,1,208,45],[193,1,194,6],[193,7,194,15],[195,1,196,6],[195,7,196,15],[187,1,188,6],[187,7,188,13],[187,14,188,15],[189,1,190,6],[189,7,190,15],[191,1,192,6],[191,7,192,15],[199,1,200,6],[199,7,200,13],[199,14,200,15]]}
[]
[]
[]
[]
[]
[]
[]
[]
[null,"CMS                                "]
[]
[]
[null,null,null,null,null,null,null,null,null,null,null,null,null,null,null,null,null,null,null,null,null,null,null,null,null,null,null,null,null,null,null,"PROCESS",null,null,"Face 1:",null,{"$f":"IF(ISTEXT('LIEN CMS'!$B$71),'LIEN CMS'!$B$71,'LIEN CMS'!$B$190)","v":0},null,null,null,"Face 2:",null,{"$f":"IF('LIEN CMS'!$B$76=\"\",IF('LIEN CMS'!$B$195=\"\",\"N/A\",'LIEN CMS'!$B$195),IF('LIEN CMS'!$B$76=\"\",\"N/A\",'LIEN CMS'!$B$76))","v":"N/A"}]
[null,{"$f":"IF(('LIEN CMS'!$B$58<>\"\"),CONCATENATE(\"FIF : \",'LIEN CMS'!$B$58),CONCATENATE(\"FIF : \",'LIEN CMS'!$B$177))","v":"FIF : "},null,null,null,null,null,"EVOLUTION DU PRODUIT",null,null,null,null,null,null,null,null,null,null,null,null,null,null,null,null,null,null,null,null,null,null,null,null,null,null,null,null,null,null,null,null,null,null,null,null,null,null,null,null,null,"F1"]
[null,null,null,null,null,null,null,null,null,null,null,null,null,null,null,null,null,null,null,null,null,null,null,null,null,null,null,null,null,null,null,null,null,null,null,null,null,null,null,null,null,null,null,null,null,null,null,null,null,"F2"]
[]
[null,"date",null,null,"Descriptif de l'historique",null,null,null,null,null,null,null,null,null,null,null,null,null,null,null,null,null,"Sérigraphie",null,null,null,null,null,null,null,"Report",null,null,null,null,null,null,null,"Four"]
[null,null,null,null,null,null,null,null,null,null,null,null,null,null,null,null,null,null,null,null,null,null,"face 1",null,null,null,"face 2",null,null,null,"face 1",null,null,null,"face 2",null,null,null,"face 1",null,null,null,"face 2"]
[null,{"$f":"TODAY()","v":"2017-05-24"},null,null,"Création du dossier de fabrication",null,null,null,null,null,null,null,null,null,null,null,null,null,null,null,null,null,{"$f":"IF('LIEN CMS'!$B$23=\"\",(CONCATENATE('LIEN CMS'!$B$7,\"-\",'LIEN CMS'!$C$12,\"_\",'LIEN CMS'!$B$66)),(CONCATENATE('LIEN CMS'!$B$23,'LIEN CMS'!$B$66)))","v":"-_F1"},null,null,null,{"$f":"IF('LIEN CMS'!$B$27=\"TOP + BOTTOM\",\"\",IF('LIEN CMS'!$B$23=\"\",(CONCATENATE('LIEN CMS'!$B$7,\"-\",'LIEN CMS'!$C$12,\"_\",'LIEN CMS'!$B$68)),(CONCATENATE('LIEN CMS'!$B$23,'LIEN CMS'!$B$68))))","v":"-_"},null,null,null,{"$f":"IF('LIEN CMS'!$C$104=\"oui\",'LIEN CMS'!$B$105,'LIEN CMS'!$B$115)","v":"  IND: F1"},null,null,null,{"$f":"IF('LIEN CMS'!$C$104=\"oui\",'LIEN CMS'!$B$106,'LIEN CMS'!$B$116)","v":"  IND: F2"},null,null,null,{"$f":"'LIEN CMS'!$A$66","v":0},null,null,null,{"$f":"IF('LIEN CMS'!$A$68=\"\",\"\",'LIEN CMS'!$A$68)","v":""}]
[]
[null,null,null,null,null,null,null,null,null,null,null,null,null,null,null,null,null,null,null,null,null,null,{"$f":"IF($W18<>\"\",IF(MID($W18,MAX(LEN(LEFT(MAX(IF(ISERROR(FIND(\"-\",$W18)),0,FIND(\"-\",$W18)))+1))),1)<>'LIEN CMS'!$C$12,\"\",CONCATENATE('LIEN CMS'!$B$7,\"-\",'LIEN CMS'!$C$12,\"_\",'LIEN CMS'!$B$66)),IF((ISBLANK('LIEN CMS'!$B$23)),\"\",CONCATENATE('LIEN CMS'!$B$23,'LIEN CMS'!$B$66)))","v":""},null,null,null,{"$f":"IF(AND($AA18=\"\",'LIEN CMS'!$B$23=\"\"),IF((ISBLANK('LIEN CMS'!$B$23)),\"\",CONCATENATE('LIEN CMS'!$B$23,'LIEN CMS'!$B$68)),IF(MID($AA18,MAX(LEN(LEFT(MAX(IF(ISERROR(FIND(\"-\",$AA18)),0,FIND(\"-\",$AA18)))+1))),1)<>'LIEN CMS'!$C$12,\"\",IF((ISBLANK('LIEN CMS'!$B$23)),CONCATENATE('LIEN CMS'!$B$7,\"-\",'LIEN CMS'!$C$12,\"_\",'LIEN CMS'!$B$68),\"\")))","v":""},null,null,null,{"$f":"IF(AE18<>\"\",IF(MID(AE18,MAX(LEN(LEFT(AE18,MAX(IF(ISERROR(FIND(\":\",AE18)),0,FIND(\":\",AE18)))+1))),1)<>'LIEN CMS'!$B$12,IF('LIEN CMS'!$C$103=\"oui\",'LIEN CMS'!$B$104,'LIEN CMS'!$B$115),\"\"),\"\")","v":"  IND: F1"},null,null,null,{"$f":"IF(AI18<>\"\",IF(MID(AI18,MAX(LEN(LEFT(AI18,MAX(IF(ISERROR(FIND(\":\",AI18)),0,FIND(\":\",AI18)))+1))),1)<>'LIEN CMS'!$B$12,IF('LIEN CMS'!$C$103=\"oui\",'LIEN CMS'!$B$105,'LIEN CMS'!$B$116),\"\"),\"\")","v":"  IND: F2"}]
[]
[null,null,null,null,null,null,null,null,null,null,null,null,null,null,null,null,null,null,null,null,null,null,{"$f":"IF($W20<>\"\",IF(MID($W20,MAX(LEN(LEFT(MAX(IF(ISERROR(FIND(\"-\",$W20)),0,FIND(\"-\",$W20)))+1))),1)<>'LIEN CMS'!$C$12,\"\",CONCATENATE('LIEN CMS'!$B$7,\"-\",'LIEN CMS'!$C$12,\"_\",'LIEN CMS'!$B$66)),IF((ISBLANK('LIEN CMS'!$B$23)),\"\",CONCATENATE('LIEN CMS'!$B$23,'LIEN CMS'!$B$66)))","v":""},null,null,null,{"$f":"IF(AND($AA20=\"\",'LIEN CMS'!$B$23=\"\"),IF((ISBLANK('LIEN CMS'!$B$23)),\"\",CONCATENATE('LIEN CMS'!$B$23,'LIEN CMS'!$B$68)),IF(MID($AA20,MAX(LEN(LEFT(MAX(IF(ISERROR(FIND(\"-\",$AA20)),0,FIND(\"-\",$AA20)))+1))),1)<>'LIEN CMS'!$C$12,\"\",IF((ISBLANK('LIEN CMS'!$B$23)),CONCATENATE('LIEN CMS'!$B$7,\"-\",'LIEN CMS'!$C$12,\"_\",'LIEN CMS'!$B$68),\"\")))","v":""},null,null,null,{"$f":"IF(AE20<>\"\",IF(MID(AE20,MAX(LEN(LEFT(AE20,MAX(IF(ISERROR(FIND(\":\",AE20)),0,FIND(\":\",AE20)))+1))),1)<>'LIEN CMS'!$B$12,IF('LIEN CMS'!$C$103=\"oui\",'LIEN CMS'!$B$104,'LIEN CMS'!$B$115),\"\"),\"\")","v":"  IND: F1"},null,null,null,{"$f":"IF(AI20<>\"\",IF(MID(AI20,MAX(LEN(LEFT(AI20,MAX(IF(ISERROR(FIND(\":\",AI20)),0,FIND(\":\",AI20)))+1))),1)<>'LIEN CMS'!$B$12,IF('LIEN CMS'!$C$103=\"oui\",'LIEN CMS'!$B$105,'LIEN CMS'!$B$116),\"\"),\"\")","v":"  IND: F2"}]
[]
[null,null,null,null,null,null,null,null,null,null,null,null,null,null,null,null,null,null,null,null,null,null,{"$f":"IF($W22<>\"\",IF(MID($W22,MAX(LEN(LEFT(MAX(IF(ISERROR(FIND(\"-\",$W22)),0,FIND(\"-\",$W22)))+1))),1)<>'LIEN CMS'!$C$12,\"\",CONCATENATE('LIEN CMS'!$B$7,\"-\",'LIEN CMS'!$C$12,\"_\",'LIEN CMS'!$B$66)),IF((ISBLANK('LIEN CMS'!$B$23)),\"\",CONCATENATE('LIEN CMS'!$B$23,'LIEN CMS'!$B$66)))","v":""},null,null,null,{"$f":"IF(AND($AA22=\"\",'LIEN CMS'!$B$23=\"\"),IF((ISBLANK('LIEN CMS'!$B$23)),\"\",CONCATENATE('LIEN CMS'!$B$23,'LIEN CMS'!$B$68)),IF(MID($AA22,MAX(LEN(LEFT(MAX(IF(ISERROR(FIND(\"-\",$AA22)),0,FIND(\"-\",$AA22)))+1))),1)<>'LIEN CMS'!$C$12,\"\",IF((ISBLANK('LIEN CMS'!$B$23)),CONCATENATE('LIEN CMS'!$B$7,\"-\",'LIEN CMS'!$C$12,\"_\",'LIEN CMS'!$B$68),\"\")))","v":""},null,null,null,{"$f":"IF(AE22<>\"\",IF(MID(AE22,MAX(LEN(LEFT(AE22,MAX(IF(ISERROR(FIND(\":\",AE22)),0,FIND(\":\",AE22)))+1))),1)<>'LIEN CMS'!$B$12,IF('LIEN CMS'!$C$103=\"oui\",'LIEN CMS'!$B$104,'LIEN CMS'!$B$115),\"\"),\"\")","v":"  IND: F1"},null,null,null,{"$f":"IF(AI22<>\"\",IF(MID(AI22,MAX(LEN(LEFT(AI22,MAX(IF(ISERROR(FIND(\":\",AI22)),0,FIND(\":\",AI22)))+1))),1)<>'LIEN CMS'!$B$12,IF('LIEN CMS'!$C$103=\"oui\",'LIEN CMS'!$B$105,'LIEN CMS'!$B$116),\"\"),\"\")","v":"  IND: F2"}]
[]
[null,null,null,null,null,null,null,null,null,null,null,null,null,null,null,null,null,null,null,null,null,null,{"$f":"IF($W24<>\"\",IF(MID($W24,MAX(LEN(LEFT(MAX(IF(ISERROR(FIND(\"-\",$W24)),0,FIND(\"-\",$W24)))+1))),1)<>'LIEN CMS'!$C$12,\"\",CONCATENATE('LIEN CMS'!$B$7,\"-\",'LIEN CMS'!$C$12,\"_\",'LIEN CMS'!$B$66)),IF((ISBLANK('LIEN CMS'!$B$23)),\"\",CONCATENATE('LIEN CMS'!$B$23,'LIEN CMS'!$B$66)))","v":""},null,null,null,{"$f":"IF(AND($AA24=\"\",'LIEN CMS'!$B$23=\"\"),IF((ISBLANK('LIEN CMS'!$B$23)),\"\",CONCATENATE('LIEN CMS'!$B$23,'LIEN CMS'!$B$68)),IF(MID($AA24,MAX(LEN(LEFT(MAX(IF(ISERROR(FIND(\"-\",$AA24)),0,FIND(\"-\",$AA24)))+1))),1)<>'LIEN CMS'!$C$12,\"\",IF((ISBLANK('LIEN CMS'!$B$23)),CONCATENATE('LIEN CMS'!$B$7,\"-\",'LIEN CMS'!$C$12,\"_\",'LIEN CMS'!$B$68),\"\")))","v":""},null,null,null,{"$f":"IF(AE24<>\"\",IF(MID(AE24,MAX(LEN(LEFT(AE24,MAX(IF(ISERROR(FIND(\":\",AE24)),0,FIND(\":\",AE24)))+1))),1)<>'LIEN CMS'!$B$12,IF('LIEN CMS'!$C$103=\"oui\",'LIEN CMS'!$B$104,'LIEN CMS'!$B$115),\"\"),\"\")","v":"  IND: F1"},null,null,null,{"$f":"IF(AI24<>\"\",IF(MID(AI24,MAX(LEN(LEFT(AI24,MAX(IF(ISERROR(FIND(\":\",AI24)),0,FIND(\":\",AI24)))+1))),1)<>'LIEN CMS'!$B$12,IF('LIEN CMS'!$C$103=\"oui\",'LIEN CMS'!$B$105,'LIEN CMS'!$B$116),\"\"),\"\")","v":"  IND: F2"}]
[]
[null,null,null,null,null,null,null,null,null,null,null,null,null,null,null,null,null,null,null,null,null,null,{"$f":"IF($W26<>\"\",IF(MID($W26,MAX(LEN(LEFT(MAX(IF(ISERROR(FIND(\"-\",$W26)),0,FIND(\"-\",$W26)))+1))),1)<>'LIEN CMS'!$C$12,\"\",CONCATENATE('LIEN CMS'!$B$7,\"-\",'LIEN CMS'!$C$12,\"_\",'LIEN CMS'!$B$66)),IF((ISBLANK('LIEN CMS'!$B$23)),\"\",CONCATENATE('LIEN CMS'!$B$23,'LIEN CMS'!$B$66)))","v":""},null,null,null,{"$f":"IF(AND($AA26=\"\",'LIEN CMS'!$B$23=\"\"),IF((ISBLANK('LIEN CMS'!$B$23)),\"\",CONCATENATE('LIEN CMS'!$B$23,'LIEN CMS'!$B$68)),IF(MID($AA26,MAX(LEN(LEFT(MAX(IF(ISERROR(FIND(\"-\",$AA26)),0,FIND(\"-\",$AA26)))+1))),1)<>'LIEN CMS'!$C$12,\"\",IF((ISBLANK('LIEN CMS'!$B$23)),CONCATENATE('LIEN CMS'!$B$7,\"-\",'LIEN CMS'!$C$12,\"_\",'LIEN CMS'!$B$68),\"\")))","v":""},null,null,null,{"$f":"IF(AE26<>\"\",IF(MID(AE26,MAX(LEN(LEFT(AE26,MAX(IF(ISERROR(FIND(\":\",AE26)),0,FIND(\":\",AE26)))+1))),1)<>'LIEN CMS'!$B$12,IF('LIEN CMS'!$C$103=\"oui\",'LIEN CMS'!$B$104,'LIEN CMS'!$B$115),\"\"),\"\")","v":"  IND: F1"},null,null,null,{"$f":"IF(AI26<>\"\",IF(MID(AI26,MAX(LEN(LEFT(AI26,MAX(IF(ISERROR(FIND(\":\",AI26)),0,FIND(\":\",AI26)))+1))),1)<>'LIEN CMS'!$B$12,IF('LIEN CMS'!$C$103=\"oui\",'LIEN CMS'!$B$105,'LIEN CMS'!$B$116),\"\"),\"\")","v":"  IND: F2"}]
[]
[null,null,null,null,null,null,null,null,null,null,null,null,null,null,null,null,null,null,null,null,null,null,{"$f":"IF($W28<>\"\",IF(MID($W28,MAX(LEN(LEFT(MAX(IF(ISERROR(FIND(\"-\",$W28)),0,FIND(\"-\",$W28)))+1))),1)<>'LIEN CMS'!$C$12,\"\",CONCATENATE('LIEN CMS'!$B$7,\"-\",'LIEN CMS'!$C$12,\"_\",'LIEN CMS'!$B$66)),IF((ISBLANK('LIEN CMS'!$B$23)),\"\",CONCATENATE('LIEN CMS'!$B$23,'LIEN CMS'!$B$66)))","v":""},null,null,null,{"$f":"IF(AND($AA28=\"\",'LIEN CMS'!$B$23=\"\"),IF((ISBLANK('LIEN CMS'!$B$23)),\"\",CONCATENATE('LIEN CMS'!$B$23,'LIEN CMS'!$B$68)),IF(MID($AA28,MAX(LEN(LEFT(MAX(IF(ISERROR(FIND(\"-\",$AA28)),0,FIND(\"-\",$AA28)))+1))),1)<>'LIEN CMS'!$C$12,\"\",IF((ISBLANK('LIEN CMS'!$B$23)),CONCATENATE('LIEN CMS'!$B$7,\"-\",'LIEN CMS'!$C$12,\"_\",'LIEN CMS'!$B$68),\"\")))","v":""},null,null,null,{"$f":"IF(AE28<>\"\",IF(MID(AE28,MAX(LEN(LEFT(AE28,MAX(IF(ISERROR(FIND(\":\",AE28)),0,FIND(\":\",AE28)))+1))),1)<>'LIEN CMS'!$B$12,IF('LIEN CMS'!$C$103=\"oui\",'LIEN CMS'!$B$104,'LIEN CMS'!$B$115),\"\"),\"\")","v":"  IND: F1"},null,null,null,{"$f":"IF(AI28<>\"\",IF(MID(AI28,MAX(LEN(LEFT(AI28,MAX(IF(ISERROR(FIND(\":\",AI28)),0,FIND(\":\",AI28)))+1))),1)<>'LIEN CMS'!$B$12,IF('LIEN CMS'!$C$103=\"oui\",'LIEN CMS'!$B$105,'LIEN CMS'!$B$116),\"\"),\"\")","v":"  IND: F2"}]
[]
[null,null,null,null,null,null,null,null,null,null,null,null,null,null,null,null,null,null,null,null,null,null,{"$f":"IF($W30<>\"\",IF(MID($W30,MAX(LEN(LEFT(MAX(IF(ISERROR(FIND(\"-\",$W30)),0,FIND(\"-\",$W30)))+1))),1)<>'LIEN CMS'!$C$12,\"\",CONCATENATE('LIEN CMS'!$B$7,\"-\",'LIEN CMS'!$C$12,\"_\",'LIEN CMS'!$B$66)),IF((ISBLANK('LIEN CMS'!$B$23)),\"\",CONCATENATE('LIEN CMS'!$B$23,'LIEN CMS'!$B$66)))","v":""},null,null,null,{"$f":"IF(AND($AA30=\"\",'LIEN CMS'!$B$23=\"\"),IF((ISBLANK('LIEN CMS'!$B$23)),\"\",CONCATENATE('LIEN CMS'!$B$23,'LIEN CMS'!$B$68)),IF(MID($AA30,MAX(LEN(LEFT(MAX(IF(ISERROR(FIND(\"-\",$AA30)),0,FIND(\"-\",$AA30)))+1))),1)<>'LIEN CMS'!$C$12,\"\",IF((ISBLANK('LIEN CMS'!$B$23)),CONCATENATE('LIEN CMS'!$B$7,\"-\",'LIEN CMS'!$C$12,\"_\",'LIEN CMS'!$B$68),\"\")))","v":""},null,null,null,{"$f":"IF(AE30<>\"\",IF(MID(AE30,MAX(LEN(LEFT(AE30,MAX(IF(ISERROR(FIND(\":\",AE30)),0,FIND(\":\",AE30)))+1))),1)<>'LIEN CMS'!$B$12,IF('LIEN CMS'!$C$103=\"oui\",'LIEN CMS'!$B$104,'LIEN CMS'!$B$115),\"\"),\"\")","v":"  IND: F1"},null,null,null,{"$f":"IF(AI30<>\"\",IF(MID(AI30,MAX(LEN(LEFT(AI30,MAX(IF(ISERROR(FIND(\":\",AI30)),0,FIND(\":\",AI30)))+1))),1)<>'LIEN CMS'!$B$12,IF('LIEN CMS'!$C$103=\"oui\",'LIEN CMS'!$B$105,'LIEN CMS'!$B$116),\"\"),\"\")","v":"  IND: F2"}]
[]
[null,null,null,null,null,null,null,null,null,null,null,null,null,null,null,null,null,null,null,null,null,null,{"$f":"IF($W32<>\"\",IF(MID($W32,MAX(LEN(LEFT(MAX(IF(ISERROR(FIND(\"-\",$W32)),0,FIND(\"-\",$W32)))+1))),1)<>'LIEN CMS'!$C$12,\"\",CONCATENATE('LIEN CMS'!$B$7,\"-\",'LIEN CMS'!$C$12,\"_\",'LIEN CMS'!$B$66)),IF((ISBLANK('LIEN CMS'!$B$23)),\"\",CONCATENATE('LIEN CMS'!$B$23,'LIEN CMS'!$B$66)))","v":""},null,null,null,{"$f":"IF(AND($AA32=\"\",'LIEN CMS'!$B$23=\"\"),IF((ISBLANK('LIEN CMS'!$B$23)),\"\",CONCATENATE('LIEN CMS'!$B$23,'LIEN CMS'!$B$68)),IF(MID($AA32,MAX(LEN(LEFT(MAX(IF(ISERROR(FIND(\"-\",$AA32)),0,FIND(\"-\",$AA32)))+1))),1)<>'LIEN CMS'!$C$12,\"\",IF((ISBLANK('LIEN CMS'!$B$23)),CONCATENATE('LIEN CMS'!$B$7,\"-\",'LIEN CMS'!$C$12,\"_\",'LIEN CMS'!$B$68),\"\")))","v":""},null,null,null,{"$f":"IF(AE32<>\"\",IF(MID(AE32,MAX(LEN(LEFT(AE32,MAX(IF(ISERROR(FIND(\":\",AE32)),0,FIND(\":\",AE32)))+1))),1)<>'LIEN CMS'!$B$12,IF('LIEN CMS'!$C$103=\"oui\",'LIEN CMS'!$B$104,'LIEN CMS'!$B$115),\"\"),\"\")","v":"  IND: F1"},null,null,null,{"$f":"IF(AI32<>\"\",IF(MID(AI32,MAX(LEN(LEFT(AI32,MAX(IF(ISERROR(FIND(\":\",AI32)),0,FIND(\":\",AI32)))+1))),1)<>'LIEN CMS'!$B$12,IF('LIEN CMS'!$C$103=\"oui\",'LIEN CMS'!$B$105,'LIEN CMS'!$B$116),\"\"),\"\")","v":"  IND: F2"}]
[]
[null,null,null,null,null,null,null,null,null,null,null,null,null,null,null,null,null,null,null,null,null,null,{"$f":"IF($W34<>\"\",IF(MID($W34,MAX(LEN(LEFT(MAX(IF(ISERROR(FIND(\"-\",$W34)),0,FIND(\"-\",$W34)))+1))),1)<>'LIEN CMS'!$C$12,\"\",CONCATENATE('LIEN CMS'!$B$7,\"-\",'LIEN CMS'!$C$12,\"_\",'LIEN CMS'!$B$66)),IF((ISBLANK('LIEN CMS'!$B$23)),\"\",CONCATENATE('LIEN CMS'!$B$23,'LIEN CMS'!$B$66)))","v":""},null,null,null,{"$f":"IF(AND($AA34=\"\",'LIEN CMS'!$B$23=\"\"),IF((ISBLANK('LIEN CMS'!$B$23)),\"\",CONCATENATE('LIEN CMS'!$B$23,'LIEN CMS'!$B$68)),IF(MID($AA34,MAX(LEN(LEFT(MAX(IF(ISERROR(FIND(\"-\",$AA34)),0,FIND(\"-\",$AA34)))+1))),1)<>'LIEN CMS'!$C$12,\"\",IF((ISBLANK('LIEN CMS'!$B$23)),CONCATENATE('LIEN CMS'!$B$7,\"-\",'LIEN CMS'!$C$12,\"_\",'LIEN CMS'!$B$68),\"\")))","v":""},null,null,null,{"$f":"IF(AE34<>\"\",IF(MID(AE34,MAX(LEN(LEFT(AE34,MAX(IF(ISERROR(FIND(\":\",AE34)),0,FIND(\":\",AE34)))+1))),1)<>'LIEN CMS'!$B$12,IF('LIEN CMS'!$C$103=\"oui\",'LIEN CMS'!$B$104,'LIEN CMS'!$B$115),\"\"),\"\")","v":"  IND: F1"},null,null,null,{"$f":"IF(AI34<>\"\",IF(MID(AI34,MAX(LEN(LEFT(AI34,MAX(IF(ISERROR(FIND(\":\",AI34)),0,FIND(\":\",AI34)))+1))),1)<>'LIEN CMS'!$B$12,IF('LIEN CMS'!$C$103=\"oui\",'LIEN CMS'!$B$105,'LIEN CMS'!$B$116),\"\"),\"\")","v":"  IND: F2"}]
[]
[null,null,null,null,null,null,null,null,null,null,null,null,null,null,null,null,null,null,null,null,null,null,{"$f":"IF($W36<>\"\",IF(MID($W36,MAX(LEN(LEFT(MAX(IF(ISERROR(FIND(\"-\",$W36)),0,FIND(\"-\",$W36)))+1))),1)<>'LIEN CMS'!$C$12,\"\",CONCATENATE('LIEN CMS'!$B$7,\"-\",'LIEN CMS'!$C$12,\"_\",'LIEN CMS'!$B$66)),IF((ISBLANK('LIEN CMS'!$B$23)),\"\",CONCATENATE('LIEN CMS'!$B$23,'LIEN CMS'!$B$66)))","v":""},null,null,null,{"$f":"IF(AND($AA36=\"\",'LIEN CMS'!$B$23=\"\"),IF((ISBLANK('LIEN CMS'!$B$23)),\"\",CONCATENATE('LIEN CMS'!$B$23,'LIEN CMS'!$B$68)),IF(MID($AA36,MAX(LEN(LEFT(MAX(IF(ISERROR(FIND(\"-\",$AA36)),0,FIND(\"-\",$AA36)))+1))),1)<>'LIEN CMS'!$C$12,\"\",IF((ISBLANK('LIEN CMS'!$B$23)),CONCATENATE('LIEN CMS'!$B$7,\"-\",'LIEN CMS'!$C$12,\"_\",'LIEN CMS'!$B$68),\"\")))","v":""},null,null,null,{"$f":"IF(AE36<>\"\",IF(MID(AE36,MAX(LEN(LEFT(AE36,MAX(IF(ISERROR(FIND(\":\",AE36)),0,FIND(\":\",AE36)))+1))),1)<>'LIEN CMS'!$B$12,IF('LIEN CMS'!$C$103=\"oui\",'LIEN CMS'!$B$104,'LIEN CMS'!$B$115),\"\"),\"\")","v":"  IND: F1"},null,null,null,{"$f":"IF(AI36<>\"\",IF(MID(AI36,MAX(LEN(LEFT(AI36,MAX(IF(ISERROR(FIND(\":\",AI36)),0,FIND(\":\",AI36)))+1))),1)<>'LIEN CMS'!$B$12,IF('LIEN CMS'!$C$103=\"oui\",'LIEN CMS'!$B$105,'LIEN CMS'!$B$116),\"\"),\"\")","v":"  IND: F2"}]
[]
[]
[]
[]
[]
[]
[null,"ALERTE / CONSIGNE"]
[null,null,null,null,null,null,null,null,null,null,null,null,null,null,null,null,null,null,null,null,null,null,null,null,null,null,null,null,null,null,null,null,null,null,null,null,null,null,null,null,null,null,null,null,null,null,null,null,"ALERTE / CONSIGNE N°1",null,null,null,null,null,null,null,null,null,null,null,null,null,null,null,null,null,null,null,null,null,null,null,null,null,null,null,null,null,null,null,null,null,null,null,null,null,null,null,null,null,null,null,null,null,null,"ALERTE / CONSIGNE N°2",null,null,null,null,null,null,null,null,null,null,null,null,null,null,null,null,null,null,null,null,null,null,null,null,null,null,null,null,null,null,null,null,null,null,null,null,null,null,null,null,null,null,null,null,null,null,"ALERTE / CONSIGNE N°3",null,null,null,null,null,null,null,null,null,null,null,null,null,null,null,null,null,null,null,null,null,null,null,null,null,null,null,null,null,null,null,null,null,null,null,null,null,null,null,null,null,null,null,null,null,null,"ALERTE / CONSIGNE N°4",null,null,null,null,null,null,null,null,null,null,null,null,null,null,null,null,null,null,null,null,null,null,null,null,null,null,null,null,null,null,null,null,null,null,null,null,null,null,null,null,null,null,null,null,null,null,"ALERTE / CONSIGNE N°5",null,null,null,null,null,null,null,null,null,null,null,null,null,null,null,null,null,null,null,null,null,null,null,null,null,null,null,null,null,null,null,null,null,null,null,null,null,null,null,null,null,null,null,null,null,null,"ALERTE / CONSIGNE N°6",null,null,null,null,null,null,null,null,null,null,null,null,null,null,null,null,null,null,null,null,null,null,null,null,null,null,null,null,null,null,null,null,null,null,null,null,null,null,null,null,null,null,null,null,null,null,"ALERTE / CONSIGNE N°7",null,null,null,null,null,null,null,null,null,null,null,null,null,null,null,null,null,null,null,null,null,null,null,null,null,null,null,null,null,null,null,null,null,null,null,null,null,null,null,null,null,null,null,null,null,null,"ALERTE / CONSIGNE N°8",null,null,null,null,null,null,null,null,null,null,null,null,null,null,null,null,null,null,null,null,null,null,null,null,null,null,null,null,null,null,null,null,null,null,null,null,null,null,null,null,null,null,null,null,null,null,"ALERTE / CONSIGNE N°9",null,null,null,null,null,null,null,null,null,null,null,null,null,null,null,null,null,null,null,null,null,null,null,null,null,null,null,null,null,null,null,null,null,null,null,null,null,null,null,null,null,null,null,null,null,null,"ALERTE / CONSIGNE N°10",null,null,null,null,null,null,null,null,null,null,null,null,null,null,null,null,null,null,null,null,null,null,null,null,null,null,null,null,null,null,null,null,null,null,null,null,null,null,null,null,null,null,null,null,null,null,"ALERTE / CONSIGNE N°11",null,null,null,null,null,null,null,null,null,null,null,null,null,null,null,null,null,null,null,null,null,null,null,null,null,null,null,null,null,null,null,null,null,null,null,null,null,null,null,null,null,null,null,null,null,null,"ALERTE / CONSIGNE N°12",null,null,null,null,null,null,null,null,null,null,null,null,null,null,null,null,null,null,null,null,null,null,null,null,null,null,null,null,null,null,null,null,null,null,null,null,null,null,null,null,null,null,null,null,null,null,"ALERTE / CONSIGNE N°13"]
[]
[]
[null,null,null,null,null,null,null,null,null,null,null,null,null,null,null,null,null,"N°","description alerte / consigne",null,null,null,null,null,null,null,null,null,null,null,null,null,null,null,"date de début",null,null,"date de fin",null,null,"N° de face",null,null,"lien"]
[null,null,null,null,null,null,null,null,null,null,null,null,null,null,null,null,null,1]
[]
[null,null,null,null,null,null,null,null,null,null,null,null,null,null,null,null,null,2]
[]
[null,null,null,null,null,null,null,null,null,null,null,null,null,null,null,null,null,3]
[]
[null,null,null,null,null,null,null,null,null,null,null,null,null,null,null,null,null,4]
[]
[null,null,null,null,null,null,null,null,null,null,null,null,null,null,null,null,null,5]
[]
[null,null,null,null,null,null,null,null,null,null,null,null,null,null,null,null,null,6]
[]
[null,null,null,null,null,null,null,null,null,null,null,null,null,null,null,null,null,7]
[]
[null,null,null,null,null,null,null,null,null,null,null,null,null,null,null,null,null,8]
[]
[null,null,null,null,null,null,null,null,null,null,null,null,null,null,null,null,null,9]
[]
[null,null,null,null,null,null,null,null,null,null,null,null,null,null,null,null,null,10]
[]
[null,null,null,null,null,null,null,null,null,null,null,null,null,null,null,null,null,11]
[]
[null,null,null,null,null,null,null,null,null,null,null,null,null,null,null,null,null,12]
[]
[null,null,null,null,null,null,null,null,null,null,null,null,null,null,null,null,null,13]
[]
[]
[]
[null,"SERIGRAPHIE FACE 1",null,null,null,null,null,null,null,null,null,null,null,null,null,null,null,null,null,null,null,null,null,null,null,null,null,null,null,null,null,null,null,null,null,null,null,null,null,null,null,null,null,null,null,null,null,null,"MASQUAGE POCHOIR FACE 1",null,null,null,null,null,null,null,null,null,null,null,null,null,null,null,null,null,null,null,null,null,null,null,null,null,null,null,null,null,null,null,null,null,null,null,null,null,null,null,null,null,null,null,null,null,null,"AJOUT DE POINT DE COLLE MANUEL FACE 1"]
[]
[]
[null,"PARAMETRES",null,null,null,null,null,null,null,null,null,null,null,null,null,null,null,null,"SENS DE PASSAGE"]
[]
[null,"MACHINE",null,null,null,null,null,"DEK"]
[]
[null,"IDENTICATION POCHOIR",null,null,null,null,null,{"$f":"CONCATENATE('LIEN CMS'!$B$5,\" \",'LIEN CMS'!$B$7,\" \",'LIEN CMS'!$B$66)","v":"  F1"}]
[]
[null,"N° DE POCHOIR",null,null,null,null,null,{"$f":"IF('LIEN CMS'!$B$74=0,\"N/A\",(CONCATENATE(\"ECR00000\",'LIEN CMS'!$B$74)))","v":"N/A"}]
[]
[null,"CREME A BRASER",null,null,null,null,null,{"$f":"'LIEN CMS'!$B$72","v":0}]
[]
[null,"PROGRAMME",null,null,null,null,null,{"$f":"IF('LIEN CMS'!$B$23=\"\",(CONCATENATE('LIEN CMS'!$B$7,\"-\",'LIEN CMS'!$C$12,\"_\",'LIEN CMS'!$B$66)),(CONCATENATE('LIEN CMS'!$B$23,'LIEN CMS'!$B$66)))","v":"-_F1"}]
[]
[null,"VITESSE D'IMPRESSION (mm/s)",null,null,null,null,null,15]
[]
[null,"PRESSION DES RACLES (Kg)",null,null,null,null,null,{"$f":"H99/50","v":5}]
[]
[null,"VITESSE DE DEMOULAGE (mm/s)",null,null,null,null,null,10]
[]
[null,"LONGUEUR DES RACLES (mm)",null,null,null,null,null,250]
[]
[null,"SUPPORT MAINTIEN CARTE",null,null,null,null,null,{"$f":"IF(ISTEXT('LIEN CMS'!$B$48),\"SANS\",\"AUTO-FLEX\")","v":"AUTO-FLEX"}]
[]
[null,"N° D'OUTILLAGE",null,null,null,null,null,{"$f":"IF('LIEN CMS'!$B$48=0,\"N/A\",'LIEN CMS'!$B$48)","v":"N/A"}]
[]
[null,"MASQUAGE POCHOIR",null,null,null,null,null,"non"]
[]
[null,"AJOUT POINT DE COLLE MANUEL",null,null,null,null,null,"non"]
[]
[]
[]
[null,"REPORT COMPOSANT ET REFUSION FACE 1",null,null,null,null,null,null,null,null,null,null,null,null,null,null,null,null,null,null,null,null,null,null,null,null,null,null,null,null,null,null,null,null,null,null,null,null,null,null,null,null,null,null,null,null,null,null,"POSE MANUELLE FACE 1",null,null,null,null,null,null,null,null,null,null,null,null,null,null,null,null,null,null,null,null,null,null,null,null,null,null,null,null,null,null,null,null,null,null,null,null,null,null,null,null,null,null,null,null,null,null,"AJOUT DE POINT DE COLLE MANUEL FACE 1"]
[]
[]
[null,"PARAMETRES",null,null,null,null,null,null,null,null,null,null,null,null,null,null,null,null,"MIRES DE RECALAGE"]
[]
[null,"MACHINE DE REPORT",null,null,null,null,null,"MYDATA"]
[]
[null,"PROGRAMME",null,null,null,null,null,{"$f":"IF('LIEN CMS'!$C$104=\"oui\",'LIEN CMS'!$B$105,'LIEN CMS'!$B$115)","v":"  IND: F1"}]
[]
[null,"KIT LIST",null,null,null,null,null,{"$f":"IF('LIEN CMS'!$C$104=\"oui\",'LIEN CMS'!$B$112,'LIEN CMS'!$B$117)","v":"  IND:"}]
[]
[null,"STATION DE COLLE",null,null,null,null,null,"non"]
[]
[null,"N° D'OUTILLAGE DE REPORT",null,null,null,null,null,{"$f":"IF('LIEN CMS'!$B$49=0,\"N/A\",'LIEN CMS'!$B$49)","v":"N/A"}]
[]
[null,"FOUR DE REFUSION",null,null,null,null,null,"THERMATECH"]
[]
[null,"PROGRAMME",null,null,null,null,null,{"$f":"'LIEN CMS'!$A$66","v":0}]
[]
[null,"N° D'OUTILLAGE DE REFUSION",null,null,null,null,null,{"$f":"IF('LIEN CMS'!$B$50=0,\"N/A\",'LIEN CMS'!$B$50)","v":"N/A"}]
[]
[null,"POSE MANUELLE",null,null,null,null,null,"non"]
[]
[null,"AJOUT POINT DE COLLE MANUEL",null,null,null,null,null,"non"]
[]
[]
[]
[]
[]
[]
[]
[]
[]
[null,"SERIGRAPHIE FACE 2",null,null,null,null,null,null,null,null,null,null,null,null,null,null,null,null,null,null,null,null,null,null,null,null,null,null,null,null,null,null,null,null,null,null,null,null,null,null,null,null,null,null,null,null,null,null,"MASQUAGE POCHOIR FACE 2",null,null,null,null,null,null,null,null,null,null,null,null,null,null,null,null,null,null,null,null,null,null,null,null,null,null,null,null,null,null,null,null,null,null,null,null,null,null,null,null,null,null,null,null,null,null,"AJOUT DE POINT DE COLLE MANUEL FACE 2"]
[]
[]
[null,"PARAMETRES",null,null,null,null,null,null,null,null,null,null,null,null,null,null,null,null,"SENS DE PASSAGE"]
[]
[null,"MACHINE",null,null,null,null,null,"DEK"]
[]
[null,"IDENTICATION POCHOIR",null,null,null,null,null,{"$f":"CONCATENATE('LIEN CMS'!$B$5,\" \",'LIEN CMS'!$B$7,\" \",'LIEN CMS'!$B$68)","v":"  "}]
[]
[null,"N° DE POCHOIR",null,null,null,null,null,{"$f":"IF('LIEN CMS'!$B$79=0,\"N/A\",(CONCATENATE(\"ECR00000\",'LIEN CMS'!$B$79)))","v":"N/A"}]
[]
[null,"CREME A BRASER",null,null,null,null,null,{"$f":"'LIEN CMS'!$B$72","v":0}]
[]
[null,"PROGRAMME",null,null,null,null,null,{"$f":"IF('LIEN CMS'!$B$23=\"\",(CONCATENATE('LIEN CMS'!$B$7,\"-\",'LIEN CMS'!$C$12,\"_\",'LIEN CMS'!$B$68)),(CONCATENATE('LIEN CMS'!$B$23,'LIEN CMS'!$B$68)))","v":"-_"}]
[]
[null,"VITESSE D'IMPRESSION (mm/s)",null,null,null,null,null,15]
[]
[null,"PRESSION DES RACLES (Kg)",null,null,null,null,null,{"$f":"H165/50","v":5}]
[]
[null,"VITESSE DE DEMOULAGE (mm/s)",null,null,null,null,null,10]
[]
[null,"LONGUEUR DES RACLES (mm)",null,null,null,null,null,250]
[]
[null,"SUPPORT MAINTIEN CARTE",null,null,null,null,null,{"$f":"IF(ISTEXT('LIEN CMS'!$B$48),\"SANS\",\"AUTO-FLEX\")","v":"AUTO-FLEX"}]
[]
[null,"N° D'OUTILLAGE",null,null,null,null,null,{"$f":"IF('LIEN CMS'!$B$48=0,\"N/A\",'LIEN CMS'!$B$48)","v":"N/A"}]
[]
[null,"MASQUAGE POCHOIR",null,null,null,null,null,"non"]
[]
[null,"AJOUT POINT DE COLLE MANUEL",null,null,null,null,null,"non"]
[]
[]
[]
[null,"REPORT COMPOSANT ET REFUSION FACE 2",null,null,null,null,null,null,null,null,null,null,null,null,null,null,null,null,null,null,null,null,null,null,null,null,null,null,null,null,null,null,null,null,null,null,null,null,null,null,null,null,null,null,null,null,null,null,"POSE MANUELLE FACE 2",null,null,null,null,null,null,null,null,null,null,null,null,null,null,null,null,null,null,null,null,null,null,null,null,null,null,null,null,null,null,null,null,null,null,null,null,null,null,null,null,null,null,null,null,null,null,"AJOUT DE POINT DE COLLE MANUEL FACE 2"]
[]
[]
[null,"PARAMETRES",null,null,null,null,null,null,null,null,null,null,null,null,null,null,null,null,"MIRES DE RECALAGE"]
[]
[null,"MACHINE DE REPORT",null,null,null,null,null,"MYDATA"]
[]
[null,"PROGRAMME",null,null,null,null,null,{"$f":"IF('LIEN CMS'!$C$104=\"oui\",'LIEN CMS'!$B$106,'LIEN CMS'!$B$116)","v":"  IND: F2"}]
[]
[null,"KIT LIST",null,null,null,null,null,{"$f":"IF('LIEN CMS'!$C$104=\"oui\",'LIEN CMS'!$B$112,'LIEN CMS'!$B$117)","v":"  IND:"}]
[]
[null,"STATION DE COLLE",null,null,null,null,null,"non"]
[]
[null,"N° D'OUTILLAGE DE REPORT",null,null,null,null,null,{"$f":"IF('LIEN CMS'!$B$49=0,\"N/A\",'LIEN CMS'!$B$49)","v":"N/A"}]
[]
[null,"FOUR DE REFUSION",null,null,null,null,null,"THERMATECH"]
[]
[null,"PROGRAMME",null,null,null,null,null,{"$f":"'LIEN CMS'!$A$68","v":0}]
[]
[null,"N° D'OUTILLAGE DE REFUSION",null,null,null,null,null,{"$f":"IF('LIEN CMS'!$B$50=0,\"N/A\",'LIEN CMS'!$B$50)","v":"N/A"}]
[]
[null,"POSE MANUELLE",null,null,null,null,null,"non"]
[]
[null,"AJOUT POINT DE COLLE MANUEL",null,null,null,null,null,"non"]
[]
[]
[]
[]
[]
[]
[]
[]
[null,"FIN DE L'OP"]

{"sheet":"CHARGEMENT EUROPLACER","index":5,"n_rows":20,"n_cols":48,"rows_kept":20,"cut":false,"hidden":false,"merged":[[8,1,9,45],[18,9,18,12],[18,13,18,16],[19,9,19,12],[19,13,19,16],[12,34,12,37],[12,38,12,41],[12,42,12,45],[13,17,13,20],[13,21,13,25],[13,26,13,30],[13,31,13,33],[13,34,13,37],[13,38,13,41],[13,42,13,45],[14,31,14,33],[20,1,21,3],[14,34,14,37],[14,38,14,41],[14,42,14,45],[15,3,17,4],[15,5,17,8],[15,11,17,12],[15,13,17,16],[12,1,14,16],[12,17,12,20],[12,21,12,25],[12,26,12,30],[12,31,12,33],[14,17,14,20],[14,21,14,25],[14,26,14,30]]}
[]
[]
[]
[]
[]
[]
[]
[]
[null,"CHARGEMENT EUROPLACER"]
[]
[]
[null,null,null,null,null,null,null,null,null,null,null,null,null,null,null,null,null,null,null,null,null,null,null,null,null,null,null,null,null,null,null,null,null,null,null,null,null,null,null,null,null,null,null,null,null,null,null,"oui"]
[null,"METHODE DE CHARGEMENT :",null,null,null,null,null,null,null,null,null,null,null,null,null,null,null,"N ° face :",null,null,null,{"$f":"'LIEN CMS'!$B$65","v":"N° face "},null,null,null,null,{"$f":"IF('LIEN CMS'!$B$67=\"\",\"\",'LIEN CMS'!$B$67)","v":"N° face "},null,null,null,null,"N°outillage :",null,null,{"$f":"IF('LIEN CMS'!$B$48=0,\"N/A\",'LIEN CMS'!$B$48)","v":"N/A"},null,null,null,{"$f":"IF('LIEN CMS'!$B$49=0,\"N/A\",'LIEN CMS'!$B$49)","v":"N/A"},null,null,null,{"$f":"IF('LIEN CMS'!$B$50=0,\"N/A\",'LIEN CMS'!$B$50)","v":"N/A"},null,null,null,null,"non"]
[null,null,null,null,null,null,null,null,null,null,null,null,null,null,null,null,null,"N °pochoir :",null,null,null,{"$f":"IF('LIEN CMS'!$B$74=0,\"N/A\",(CONCATENATE(\"ECR00000\",'LIEN CMS'!$B$74)))","v":"N/A"},null,null,null,null,{"$f":"IF('LIEN CMS'!$B$79=0,\"N/A\",(CONCATENATE(\"ECR00000\",'LIEN CMS'!$B$79)))","v":"N/A"},null,null,null,null,"Qte :",null,null,{"$f":"IF('LIEN CMS'!$C$48=0,\"N/A\",'LIEN CMS'!$C$48)","v":"N/A"},null,null,null,{"$f":"IF('LIEN CMS'!$C$49=0,\"N/A\",'LIEN CMS'!$C$49)","v":"N/A"},null,null,null,{"$f":"IF('LIEN CMS'!$C$50=0,\"N/A\",'LIEN CMS'!$C$50)","v":"N/A"}]
[null,null,null,null,null,null,null,null,null,null,null,null,null,null,null,null,null,"Ingrédient :",null,null,null,{"$f":"IF('LIEN CMS'!$B$71=0,\"N/A\",'LIEN CMS'!$B$71)","v":"N/A"},null,null,null,null,{"$f":"IF('LIEN CMS'!$B$76=0,\"N/A\",'LIEN CMS'!$B$76)","v":"N/A"},null,null,null,null,"Rangement",null,null,{"$f":"IF(ISERROR((VLOOKUP('LIEN CMS'!$B$48,OUTILLAGE!$C:$E,2,0))<>\"\"),\"\",CONCATENATE(VLOOKUP('LIEN CMS'!$B$48,OUTILLAGE!$C:$E,2,0),IF(VLOOKUP('LIEN CMS'!$B$48,OUTILLAGE!$C:$E,3,0)=\"x\",\"\",CONCATENATE(\" n° \",VLOOKUP('LIEN CMS'!$B$48,OUTILLAGE!$C:$E,3,0)))))","v":""},null,null,null,{"$f":"IF(ISERROR((VLOOKUP('LIEN CMS'!$B$49,OUTILLAGE!$C:$E,2,0))<>\"\"),\"\",CONCATENATE(VLOOKUP('LIEN CMS'!$B$49,OUTILLAGE!$C:$E,2,0),IF(VLOOKUP('LIEN CMS'!$B$49,OUTILLAGE!$C:$E,3,0)=\"x\",\"\",CONCATENATE(\" n° \",VLOOKUP('LIEN CMS'!$B$49,OUTILLAGE!$C:$E,3,0)))))","v":""},null,null,null,{"$f":"IF(ISERROR((VLOOKUP('LIEN CMS'!$B$50,OUTILLAGE!$C:$E,2,0))<>\"\"),\"\",CONCATENATE(VLOOKUP('LIEN CMS'!$B$50,OUTILLAGE!$C:$E,2,0),IF(VLOOKUP('LIEN CMS'!$B$50,OUTILLAGE!$C:$E,3,0)=\"x\",\"\",CONCATENATE(\" n° \",VLOOKUP('LIEN CMS'!$B$50,OUTILLAGE!$C:$E,3,0)))))","v":""}]
[null,null,null,null,null,"oui",null,null,null,null,null,null,null,"non"]
[]
[]
[null,null,null,null,null,null,null,null,null,"FACE 1"]
[null,null,null,null,null,null,null,null,null,"FACE2"]

{"sheet":"CMS EUROPLACER","index":6,"n_rows":243,"n_cols":613,"rows_kept":243,"cut":false,"hidden":false,"merged":[[232,1,233,6],[232,7,233,13],[242,1,242,45],[12,1,13,8],[11,31,11,33],[11,34,11,35],[11,36,11,39],[11,40,11,41],[11,42,11,45],[226,1,227,6],[226,7,227,15],[228,1,229,6],[228,7,229,15],[230,1,231,6],[230,7,231,13],[220,1,221,6],[220,7,221,15],[222,1,223,6],[222,7,223,15],[224,1,225,6],[224,7,225,15],[198,1,199,6],[198,7,199,15],[200,1,201,6],[211,95,212,139],[214,1,215,15],[214,18,215,45],[216,1,217,6],[216,7,217,15],[218,1,219,6],[218,7,219,15],[204,1,205,6],[204,7,205,13],[206,1,207,6],[206,7,207,13],[211,1,212,45],[211,48,212,92],[200,7,201,15],[202,1,203,6],[202,7,203,15],[192,1,193,6],[192,7,193,15],[194,1,195,6],[194,7,195,15],[196,1,197,6],[196,7,197,15],[186,1,187,6],[186,7,187,15],[188,1,189,6],[188,7,189,15],[190,1,191,6],[190,7,191,15],[177,95,178,139],[180,1,181,15],[180,18,181,45],[182,1,183,6],[182,7,183,15],[184,1,185,6],[184,7,185,15],[163,1,164,6],[163,7,164,13],[165,1,166,6],[165,7,166,13],[177,1,178,45],[177,48,178,92],[157,1,158,6],[157,7,158,15],[159,1,160,6],[159,7,160,15],[161,1,162,6],[161,7,162,15],[151,1,152,6],[151,7,152,15],[153,1,154,6],[153,7,154,15],[155,1,156,6],[155,7,156,15],[144,1,145,45],[144,48,145,92],[144,95,145,139],[147,1,148,15],[147,18,148,45],[149,1,150,6],[149,7,150,15],[136,1,137,6],[136,7,137,15],[138,1,139,6],[138,7,139,13],[140,1,141,6],[140,7,141,13],[130,1,131,6],[130,7,131,15],[132,1,133,6],[132,7,133,15],[134,1,135,6],[134,7,135,15],[124,1,125,6],[124,7,125,15],[126,1,127,6],[126,7,127,15],[128,1,129,6],[128,7,129,15],[118,1,119,6],[118,7,119,15],[120,1,121,6],[120,7,121,15],[122,1,123,6],[122,7,123,15],[111,1,112,45],[111,48,112,92],[111,95,112,139],[114,1,115,15],[114,18,115,45],[116,1,117,6],[116,7,117,15],[86,38,87,40],[88,2,88,3],[88,38,88,39],[90,7,90,17],[90,28,90,38],[91,8,91,11],[91,12,91,16],[91,29,91,32],[91,33,91,37],[84,38,85,40],[86,2,87,4],[86,6,87,8],[86,10,87,12],[86,14,87,16],[86,18,87,20],[86,22,87,24],[86,26,87,28],[86,30,87,32],[86,34,87,36],[84,2,85,4],[84,6,85,8],[84,10,85,12],[84,14,85,16],[84,18,85,20],[84,22,85,24],[84,26,85,28],[84,30,85,32],[84,34,85,36],[78,1,79,45],[82,2,83,4],[82,6,83,8],[82,10,83,12],[82,14,83,16],[82,18,83,20],[82,22,83,24],[82,26,83,28],[82,30,83,32],[82,34,83,36],[82,38,83,40],[73,17,74,17],[73,18,74,33],[73,34,74,36],[73,37,74,39],[73,40,74,42],[73,43,74,45],[71,17,72,17],[71,18,72,33],[71,34,72,36],[71,37,72,39],[71,40,72,42],[71,43,72,45],[69,17,70,17],[69,18,70,33],[69,34,70,36],[69,37,70,39],[69,40,70,42],[69,43,70,45],[67,17,68,17],[67,18,68,33],[67,34,68,36],[67,37,68,39],[67,40,68,42],[67,43,68,45],[65,17,66,17],[65,18,66,33],[65,34,66,36],[65,37,66,39],[65,40,66,42],[65,43,66,45],[63,17,64,17],[63,18,64,33],[63,34,64,36],[63,37,64,39],[63,40,64,42],[63,43,64,45],[61,17,62,17],[61,18,62,33],[61,34,62,36],[61,37,62,39],[61,40,62,42],[61,43,62,45],[59,17,60,17],[59,18,60,33],[59,34,60,36],[59,37,60,39],[59,40,60,42],[59,43,60,45],[57,17,58,17],[57,18,58,33],[57,34,58,36],[57,37,58,39],[57,40,58,42],[57,43,58,45],[55,17,56,17],[55,18,56,33],[55,34,56,36],[55,37,56,39],[55,40,56,42],[55,43,56,45],[53,17,54,17],[53,18,54,33],[53,34,54,36],[53,37,54,39],[53,40,54,42],[53,43,54,45],[51,17,52,17],[51,18,52,33],[51,34,52,36],[51,37,52,39],[51,40,52,42],[51,43,52,45],[49,17,50,17],[49,18,50,33],[49,34,50,36],[49,37,50,39],[49,40,50,42],[49,43,50,45],[45,565,46,609],[45,612,46,656],[48,18,48,33],[48,34,48,36],[48,37,48,39],[48,40,48,42],[48,43,48,45],[45,283,46,327],[45,330,46,374],[45,377,46,421],[45,424,46,468],[45,471,46,515],[45,518,46,562],[45,1,46,45],[45,48,46,92],[45,95,46,139],[45,142,46,186],[45,189,46,233],[45,236,46,280],[36,38,37,41],[36,42,37,45],[38,1,39,3],[38,4,39,21],[38,22,39,25],[38,26,39,29],[38,30,39,33],[38,34,39,37],[38,38,39,41],[38,42,39,45],[36,1,37,3],[36,4,37,21],[36,22,37,25],[36,26,37,29],[36,30,37,33],[36,34,37,37],[32,38,33,41],[32,42,33,45],[34,1,35,3],[34,4,35,21],[34,22,35,25],[34,26,35,29],[34,30,35,33],[34,34,35,37],[34,38,35,41],[34,42,35,45],[32,1,33,3],[32,4,33,21],[32,22,33,25],[32,26,33,29],[32,30,33,33],[32,34,33,37],[28,38,29,41],[28,42,29,45],[30,1,31,3],[30,4,31,21],[30,22,31,25],[30,26,31,29],[30,30,31,33],[30,34,31,37],[30,38,31,41],[30,42,31,45],[28,1,29,3],[28,4,29,21],[28,22,29,25],[28,26,29,29],[28,30,29,33],[28,34,29,37],[24,38,25,41],[24,42,25,45],[26,1,27,3],[26,4,27,21],[26,22,27,25],[26,26,27,29],[26,30,27,33],[26,34,27,37],[26,38,27,41],[26,42,27,45],[24,1,25,3],[24,4,25,21],[24,22,25,25],[24,26,25,29],[24,30,25,33],[24,34,25,37],[20,38,21,41],[20,42,21,45],[22,1,23,3],[22,4,23,21],[22,22,23,25],[22,26,23,29],[22,30,23,33],[22,34,23,37],[22,38,23,41],[22,42,23,45],[20,1,21,3],[20,4,21,21],[20,22,21,25],[20,26,21,29],[20,30,21,33],[20,34,21,37],[17,42,17,45],[18,1,19,3],[18,4,19,21],[18,22,19,25],[18,26,19,29],[18,30,19,33],[18,34,19,37],[18,38,19,41],[18,42,19,45],[16,1,17,3],[16,4,17,21],[16,22,16,29],[16,30,16,37],[16,38,16,45],[17,22,17,25],[17,26,17,29],[17,30,17,33],[17,34,17,37],[17,38,17,41],[5,5,5,7],[5,8,5,27],[8,1,9,45],[12,9,13,41],[1,5,1,7],[1,8,1,17],[1,19,1,21],[1,26,1,27],[1,28,1,31],[3,5,3,7],[3,8,3,12],[3,19,3,21],[3,26,3,27],[3,28,3,31]]}
[]
[]
[]
[]
[]
[]
[]
[]
[null,"CMS LIGNE EUROPLACER"]
[]
[]
[null,null,null,null,null,null,null,null,null,null,null,null,null,null,null,null,null,null,null,null,null,null,null,null,null,null,null,null,null,null,null,"PROCESS",null,null,"Face 1:",null,{"$f":"IF(ISTEXT('LIEN CMS'!$B$71),'LIEN CMS'!$B$71,'LIEN CMS'!$B$190)","v":0},null,null,null,"Face 2:",null,{"$f":"IF('LIEN CMS'!$B$76=\"\",IF('LIEN CMS'!$B$195=\"\",\"N/A\",'LIEN CMS'!$B$195),IF('LIEN CMS'!$B$76=\"\",\"N/A\",'LIEN CMS'!$B$76))","v":"N/A"},null,null,null,null,null,"MARCHE"]
[null,{"$f":"IF(('LIEN CMS'!$B$58<>\"\"),CONCATENATE(\"FIF : \",'LIEN CMS'!$B$58),CONCATENATE(\"FIF : \",'LIEN CMS'!$B$177))","v":"FIF : "},null,null,null,null,null,null,null,"EVOLUTION DU PRODUIT",null,null,null,null,null,null,null,null,null,null,null,null,null,null,null,null,null,null,null,null,null,null,null,null,null,null,null,null,null,null,null,null,null,null,null,null,null,null,"ARRET"]
[null,null,null,null,null,null,null,null,null,null,null,null,null,null,null,null,null,null,null,null,null,null,null,null,null,null,null,null,null,null,null,null,null,null,null,null,null,null,null,null,null,null,null,null,null,null,null,null,"PASS"]
[null,null,null,null,null,null,null,null,null,null,null,null,null,null,null,null,null,null,null,null,null,null,null,null,null,null,null,null,null,null,null,null,null,null,null,null,null,null,null,null,null,null,null,null,null,null,null,null,"MANUEL"]
[]
[null,"date",null,null,"Descriptif de l'historique",null,null,null,null,null,null,null,null,null,null,null,null,null,null,null,null,null,"Sérigraphie",null,null,null,null,null,null,null,"Report",null,null,null,null,null,null,null,"Four"]
[null,null,null,null,null,null,null,null,null,null,null,null,null,null,null,null,null,null,null,null,null,null,"face 1",null,null,null,"face 2",null,null,null,"face 1",null,null,null,"face 2",null,null,null,"face 1",null,null,null,"face 2"]
[null,{"$f":"TODAY()","v":"2017-05-24"},null,null,"Création",null,null,null,null,null,null,null,null,null,null,null,null,null,null,null,null,null,{"$f":"IF('LIEN CMS'!$B$23=\"\",(CONCATENATE('LIEN CMS'!$B$7,\"-\",'LIEN CMS'!$C$12,\"_\",'LIEN CMS'!$B$66)),(CONCATENATE('LIEN CMS'!$B$23,'LIEN CMS'!$B$66)))","v":"-_F1"},null,null,null,{"$f":"IF('LIEN CMS'!$B$27=\"TOP + BOTTOM\",\"\",IF('LIEN CMS'!$B$23=\"\",(CONCATENATE('LIEN CMS'!$B$7,\"-\",'LIEN CMS'!$C$12,\"_\",'LIEN CMS'!$B$68)),(CONCATENATE('LIEN CMS'!$B$23,'LIEN CMS'!$B$68))))","v":"-_"},null,null,null,{"$f":"IF('LIEN CMS'!$C$104=\"oui\",'LIEN CMS'!$B$105,'LIEN CMS'!$B$115)","v":"  IND: F1"},null,null,null,{"$f":"IF('LIEN CMS'!$C$104=\"oui\",'LIEN CMS'!$B$106,'LIEN CMS'!$B$116)","v":"  IND: F2"},null,null,null,{"$f":"'LIEN CMS'!$A$66","v":0},null,null,null,{"$f":"IF('LIEN CMS'!$A$68=\"\",\"\",'LIEN CMS'!$A$68)","v":""}]
[]
[null,null,null,null,null,null,null,null,null,null,null,null,null,null,null,null,null,null,null,null,null,null,{"$f":"IF($W19<>\"\",IF(MID($W19,MAX(LEN(LEFT(MAX(IF(ISERROR(FIND(\"-\",$W19)),0,FIND(\"-\",$W19)))+1))),1)<>'LIEN CMS'!$C$12,CONCATENATE('LIEN CMS'!$B$7,\"-\",'LIEN CMS'!$C$12,\"_\",'LIEN CMS'!$B$66),\"\"),CONCATENATE('LIEN CMS'!$B$23,'LIEN CMS'!$B$66))","v":"-_F1"},null,null,null,{"$f":"IF($AA19<>\"\",IF(MID($AA19,MAX(LEN(LEFT(MAX(IF(ISERROR(FIND(\"-\",$AA19)),0,FIND(\"-\",$AA19)))+1))),1)<>'LIEN CMS'!$C$12,CONCATENATE('LIEN CMS'!$B$7,\"-\",'LIEN CMS'!$C$12,\"_\",'LIEN CMS'!$B$68),\"\"),CONCATENATE('LIEN CMS'!$B$23,'LIEN CMS'!$B$68))","v":"-_"},null,null,null,{"$f":"IF(AE19<>\"\",IF(MID(AE19,MAX(LEN(LEFT(AE19,MAX(IF(ISERROR(FIND(\":\",AE19)),0,FIND(\":\",AE19)))+1))),1)<>'LIEN CMS'!$B$12,IF('LIEN CMS'!$C$103=\"oui\",'LIEN CMS'!$B$104,'LIEN CMS'!$B$115),\"\"),\"\")","v":"  IND: F1"},null,null,null,{"$f":"IF(AI19<>\"\",IF(MID(AI19,MAX(LEN(LEFT(AI19,MAX(IF(ISERROR(FIND(\":\",AI19)),0,FIND(\":\",AI19)))+1))),1)<>'LIEN CMS'!$B$12,IF('LIEN CMS'!$C$103=\"oui\",'LIEN CMS'!$B$105,'LIEN CMS'!$B$116),\"\"),\"\")","v":"  IND: F2"}]
[]
[null,null,null,null,null,null,null,null,null,null,null,null,null,null,null,null,null,null,null,null,null,null,{"$f":"IF($W21<>\"\",IF(MID($W21,MAX(LEN(LEFT(MAX(IF(ISERROR(FIND(\"-\",$W21)),0,FIND(\"-\",$W21)))+1))),1)<>'LIEN CMS'!$C$12,CONCATENATE('LIEN CMS'!$B$7,\"-\",'LIEN CMS'!$C$12,\"_\",'LIEN CMS'!$B$66),\"\"),CONCATENATE('LIEN CMS'!$B$23,'LIEN CMS'!$B$66))","v":"-_F1"},null,null,null,{"$f":"IF($AA21<>\"\",IF(MID($AA21,MAX(LEN(LEFT(MAX(IF(ISERROR(FIND(\"-\",$AA21)),0,FIND(\"-\",$AA21)))+1))),1)<>'LIEN CMS'!$C$12,CONCATENATE('LIEN CMS'!$B$7,\"-\",'LIEN CMS'!$C$12,\"_\",'LIEN CMS'!$B$68),\"\"),CONCATENATE('LIEN CMS'!$B$23,'LIEN CMS'!$B$68))","v":"-_"},null,null,null,{"$f":"IF(AE21<>\"\",IF(MID(AE21,MAX(LEN(LEFT(AE21,MAX(IF(ISERROR(FIND(\":\",AE21)),0,FIND(\":\",AE21)))+1))),1)<>'LIEN CMS'!$B$12,IF('LIEN CMS'!$C$103=\"oui\",'LIEN CMS'!$B$104,'LIEN CMS'!$B$115),\"\"),\"\")","v":"  IND: F1"},null,null,null,{"$f":"IF(AI21<>\"\",IF(MID(AI21,MAX(LEN(LEFT(AI21,MAX(IF(ISERROR(FIND(\":\",AI21)),0,FIND(\":\",AI21)))+1))),1)<>'LIEN CMS'!$B$12,IF('LIEN CMS'!$C$103=\"oui\",'LIEN CMS'!$B$105,'LIEN CMS'!$B$116),\"\"),\"\")","v":"  IND: F2"}]
[]
[null,null,null,null,null,null,null,null,null,null,null,null,null,null,null,null,null,null,null,null,null,null,{"$f":"IF($W23<>\"\",IF(MID($W23,MAX(LEN(LEFT(MAX(IF(ISERROR(FIND(\"-\",$W23)),0,FIND(\"-\",$W23)))+1))),1)<>'LIEN CMS'!$C$12,CONCATENATE('LIEN CMS'!$B$7,\"-\",'LIEN CMS'!$C$12,\"_\",'LIEN CMS'!$B$66),\"\"),CONCATENATE('LIEN CMS'!$B$23,'LIEN CMS'!$B$66))","v":"-_F1"},null,null,null,{"$f":"IF($AA23<>\"\",IF(MID($AA23,MAX(LEN(LEFT(MAX(IF(ISERROR(FIND(\"-\",$AA23)),0,FIND(\"-\",$AA23)))+1))),1)<>'LIEN CMS'!$C$12,CONCATENATE('LIEN CMS'!$B$7,\"-\",'LIEN CMS'!$C$12,\"_\",'LIEN CMS'!$B$68),\"\"),CONCATENATE('LIEN CMS'!$B$23,'LIEN CMS'!$B$68))","v":"-_"},null,null,null,{"$f":"IF(AE23<>\"\",IF(MID(AE23,MAX(LEN(LEFT(AE23,MAX(IF(ISERROR(FIND(\":\",AE23)),0,FIND(\":\",AE23)))+1))),1)<>'LIEN CMS'!$B$12,IF('LIEN CMS'!$C$103=\"oui\",'LIEN CMS'!$B$104,'LIEN CMS'!$B$115),\"\"),\"\")","v":"  IND: F1"},null,null,null,{"$f":"IF(AI23<>\"\",IF(MID(AI23,MAX(LEN(LEFT(AI23,MAX(IF(ISERROR(FIND(\":\",AI23)),0,FIND(\":\",AI23)))+1))),1)<>'LIEN CMS'!$B$12,IF('LIEN CMS'!$C$103=\"oui\",'LIEN CMS'!$B$105,'LIEN CMS'!$B$116),\"\"),\"\")","v":"  IND: F2"}]
[]
[null,null,null,null,null,null,null,null,null,null,null,null,null,null,null,null,null,null,null,null,null,null,{"$f":"IF($W25<>\"\",IF(MID($W25,MAX(LEN(LEFT(MAX(IF(ISERROR(FIND(\"-\",$W25)),0,FIND(\"-\",$W25)))+1))),1)<>'LIEN CMS'!$C$12,CONCATENATE('LIEN CMS'!$B$7,\"-\",'LIEN CMS'!$C$12,\"_\",'LIEN CMS'!$B$66),\"\"),CONCATENATE('LIEN CMS'!$B$23,'LIEN CMS'!$B$66))","v":"-_F1"},null,null,null,{"$f":"IF($AA25<>\"\",IF(MID($AA25,MAX(LEN(LEFT(MAX(IF(ISERROR(FIND(\"-\",$AA25)),0,FIND(\"-\",$AA25)))+1))),1)<>'LIEN CMS'!$C$12,CONCATENATE('LIEN CMS'!$B$7,\"-\",'LIEN CMS'!$C$12,\"_\",'LIEN CMS'!$B$68),\"\"),CONCATENATE('LIEN CMS'!$B$23,'LIEN CMS'!$B$68))","v":"-_"},null,null,null,{"$f":"IF(AE25<>\"\",IF(MID(AE25,MAX(LEN(LEFT(AE25,MAX(IF(ISERROR(FIND(\":\",AE25)),0,FIND(\":\",AE25)))+1))),1)<>'LIEN CMS'!$B$12,IF('LIEN CMS'!$C$103=\"oui\",'LIEN CMS'!$B$104,'LIEN CMS'!$B$115),\"\"),\"\")","v":"  IND: F1"},null,null,null,{"$f":"IF(AI25<>\"\",IF(MID(AI25,MAX(LEN(LEFT(AI25,MAX(IF(ISERROR(FIND(\":\",AI25)),0,FIND(\":\",AI25)))+1))),1)<>'LIEN CMS'!$B$12,IF('LIEN CMS'!$C$103=\"oui\",'LIEN CMS'!$B$105,'LIEN CMS'!$B$116),\"\"),\"\")","v":"  IND: F2"}]
[]
[null,null,null,null,null,null,null,null,null,null,null,null,null,null,null,null,null,null,null,null,null,null,{"$f":"IF($W27<>\"\",IF(MID($W27,MAX(LEN(LEFT(MAX(IF(ISERROR(FIND(\"-\",$W27)),0,FIND(\"-\",$W27)))+1))),1)<>'LIEN CMS'!$C$12,CONCATENATE('LIEN CMS'!$B$7,\"-\",'LIEN CMS'!$C$12,\"_\",'LIEN CMS'!$B$66),\"\"),CONCATENATE('LIEN CMS'!$B$23,'LIEN CMS'!$B$66))","v":"-_F1"},null,null,null,{"$f":"IF($AA27<>\"\",IF(MID($AA27,MAX(LEN(LEFT(MAX(IF(ISERROR(FIND(\"-\",$AA27)),0,FIND(\"-\",$AA27)))+1))),1)<>'LIEN CMS'!$C$12,CONCATENATE('LIEN CMS'!$B$7,\"-\",'LIEN CMS'!$C$12,\"_\",'LIEN CMS'!$B$68),\"\"),CONCATENATE('LIEN CMS'!$B$23,'LIEN CMS'!$B$68))","v":"-_"},null,null,null,{"$f":"IF(AE27<>\"\",IF(MID(AE27,MAX(LEN(LEFT(AE27,MAX(IF(ISERROR(FIND(\":\",AE27)),0,FIND(\":\",AE27)))+1))),1)<>'LIEN CMS'!$B$12,IF('LIEN CMS'!$C$103=\"oui\",'LIEN CMS'!$B$104,'LIEN CMS'!$B$115),\"\"),\"\")","v":"  IND: F1"},null,null,null,{"$f":"IF(AI27<>\"\",IF(MID(AI27,MAX(LEN(LEFT(AI27,MAX(IF(ISERROR(FIND(\":\",AI27)),0,FIND(\":\",AI27)))+1))),1)<>'LIEN CMS'!$B$12,IF('LIEN CMS'!$C$103=\"oui\",'LIEN CMS'!$B$105,'LIEN CMS'!$B$116),\"\"),\"\")","v":"  IND: F2"}]
[]
[null,null,null,null,null,null,null,null,null,null,null,null,null,null,null,null,null,null,null,null,null,null,{"$f":"IF($W29<>\"\",IF(MID($W29,MAX(LEN(LEFT(MAX(IF(ISERROR(FIND(\"-\",$W29)),0,FIND(\"-\",$W29)))+1))),1)<>'LIEN CMS'!$C$12,CONCATENATE('LIEN CMS'!$B$7,\"-\",'LIEN CMS'!$C$12,\"_\",'LIEN CMS'!$B$66),\"\"),CONCATENATE('LIEN CMS'!$B$23,'LIEN CMS'!$B$66))","v":"-_F1"},null,null,null,{"$f":"IF($AA29<>\"\",IF(MID($AA29,MAX(LEN(LEFT(MAX(IF(ISERROR(FIND(\"-\",$AA29)),0,FIND(\"-\",$AA29)))+1))),1)<>'LIEN CMS'!$C$12,CONCATENATE('LIEN CMS'!$B$7,\"-\",'LIEN CMS'!$C$12,\"_\",'LIEN CMS'!$B$68),\"\"),CONCATENATE('LIEN CMS'!$B$23,'LIEN CMS'!$B$68))","v":"-_"},null,null,null,{"$f":"IF(AE29<>\"\",IF(MID(AE29,MAX(LEN(LEFT(AE29,MAX(IF(ISERROR(FIND(\":\",AE29)),0,FIND(\":\",AE29)))+1))),1)<>'LIEN CMS'!$B$12,IF('LIEN CMS'!$C$103=\"oui\",'LIEN CMS'!$B$104,'LIEN CMS'!$B$115),\"\"),\"\")","v":"  IND: F1"},null,null,null,{"$f":"IF(AI29<>\"\",IF(MID(AI29,MAX(LEN(LEFT(AI29,MAX(IF(ISERROR(FIND(\":\",AI29)),0,FIND(\":\",AI29)))+1))),1)<>'LIEN CMS'!$B$12,IF('LIEN CMS'!$C$103=\"oui\",'LIEN CMS'!$B$105,'LIEN CMS'!$B$116),\"\"),\"\")","v":"  IND: F2"}]
[]
[null,null,null,null,null,null,null,null,null,null,null,null,null,null,null,null,null,null,null,null,null,null,{"$f":"IF($W31<>\"\",IF(MID($W31,MAX(LEN(LEFT(MAX(IF(ISERROR(FIND(\"-\",$W31)),0,FIND(\"-\",$W31)))+1))),1)<>'LIEN CMS'!$C$12,CONCATENATE('LIEN CMS'!$B$7,\"-\",'LIEN CMS'!$C$12,\"_\",'LIEN CMS'!$B$66),\"\"),CONCATENATE('LIEN CMS'!$B$23,'LIEN CMS'!$B$66))","v":"-_F1"},null,null,null,{"$f":"IF($AA31<>\"\",IF(MID($AA31,MAX(LEN(LEFT(MAX(IF(ISERROR(FIND(\"-\",$AA31)),0,FIND(\"-\",$AA31)))+1))),1)<>'LIEN CMS'!$C$12,CONCATENATE('LIEN CMS'!$B$7,\"-\",'LIEN CMS'!$C$12,\"_\",'LIEN CMS'!$B$68),\"\"),CONCATENATE('LIEN CMS'!$B$23,'LIEN CMS'!$B$68))","v":"-_"},null,null,null,{"$f":"IF(AE31<>\"\",IF(MID(AE31,MAX(LEN(LEFT(AE31,MAX(IF(ISERROR(FIND(\":\",AE31)),0,FIND(\":\",AE31)))+1))),1)<>'LIEN CMS'!$B$12,IF('LIEN CMS'!$C$103=\"oui\",'LIEN CMS'!$B$104,'LIEN CMS'!$B$115),\"\"),\"\")","v":"  IND: F1"},null,null,null,{"$f":"IF(AI31<>\"\",IF(MID(AI31,MAX(LEN(LEFT(AI31,MAX(IF(ISERROR(FIND(\":\",AI31)),0,FIND(\":\",AI31)))+1))),1)<>'LIEN CMS'!$B$12,IF('LIEN CMS'!$C$103=\"oui\",'LIEN CMS'!$B$105,'LIEN CMS'!$B$116),\"\"),\"\")","v":"  IND: F2"}]
[]
[null,null,null,null,null,null,null,null,null,null,null,null,null,null,null,null,null,null,null,null,null,null,{"$f":"IF($W33<>\"\",IF(MID($W33,MAX(LEN(LEFT(MAX(IF(ISERROR(FIND(\"-\",$W33)),0,FIND(\"-\",$W33)))+1))),1)<>'LIEN CMS'!$C$12,CONCATENATE('LIEN CMS'!$B$7,\"-\",'LIEN CMS'!$C$12,\"_\",'LIEN CMS'!$B$66),\"\"),CONCATENATE('LIEN CMS'!$B$23,'LIEN CMS'!$B$66))","v":"-_F1"},null,null,null,{"$f":"IF($AA33<>\"\",IF(MID($AA33,MAX(LEN(LEFT(MAX(IF(ISERROR(FIND(\"-\",$AA33)),0,FIND(\"-\",$AA33)))+1))),1)<>'LIEN CMS'!$C$12,CONCATENATE('LIEN CMS'!$B$7,\"-\",'LIEN CMS'!$C$12,\"_\",'LIEN CMS'!$B$68),\"\"),CONCATENATE('LIEN CMS'!$B$23,'LIEN CMS'!$B$68))","v":"-_"},null,null,null,{"$f":"IF(AE33<>\"\",IF(MID(AE33,MAX(LEN(LEFT(AE33,MAX(IF(ISERROR(FIND(\":\",AE33)),0,FIND(\":\",AE33)))+1))),1)<>'LIEN CMS'!$B$12,IF('LIEN CMS'!$C$103=\"oui\",'LIEN CMS'!$B$104,'LIEN CMS'!$B$115),\"\"),\"\")","v":"  IND: F1"},null,null,null,{"$f":"IF(AI33<>\"\",IF(MID(AI33,MAX(LEN(LEFT(AI33,MAX(IF(ISERROR(FIND(\":\",AI33)),0,FIND(\":\",AI33)))+1))),1)<>'LIEN CMS'!$B$12,IF('LIEN CMS'!$C$103=\"oui\",'LIEN CMS'!$B$105,'LIEN CMS'!$B$116),\"\"),\"\")","v":"  IND: F2"}]
[]
[null,null,null,null,null,null,null,null,null,null,null,null,null,null,null,null,null,null,null,null,null,null,{"$f":"IF($W35<>\"\",IF(MID($W35,MAX(LEN(LEFT(MAX(IF(ISERROR(FIND(\"-\",$W35)),0,FIND(\"-\",$W35)))+1))),1)<>'LIEN CMS'!$C$12,CONCATENATE('LIEN CMS'!$B$7,\"-\",'LIEN CMS'!$C$12,\"_\",'LIEN CMS'!$B$66),\"\"),CONCATENATE('LIEN CMS'!$B$23,'LIEN CMS'!$B$66))","v":"-_F1"},null,null,null,{"$f":"IF($AA35<>\"\",IF(MID($AA35,MAX(LEN(LEFT(MAX(IF(ISERROR(FIND(\"-\",$AA35)),0,FIND(\"-\",$AA35)))+1))),1)<>'LIEN CMS'!$C$12,CONCATENATE('LIEN CMS'!$B$7,\"-\",'LIEN CMS'!$C$12,\"_\",'LIEN CMS'!$B$68),\"\"),CONCATENATE('LIEN CMS'!$B$23,'LIEN CMS'!$B$68))","v":"-_"},null,null,null,{"$f":"IF(AE35<>\"\",IF(MID(AE35,MAX(LEN(LEFT(AE35,MAX(IF(ISERROR(FIND(\":\",AE35)),0,FIND(\":\",AE35)))+1))),1)<>'LIEN CMS'!$B$12,IF('LIEN CMS'!$C$103=\"oui\",'LIEN CMS'!$B$104,'LIEN CMS'!$B$115),\"\"),\"\")","v":"  IND: F1"},null,null,null,{"$f":"IF(AI35<>\"\",IF(MID(AI35,MAX(LEN(LEFT(AI35,MAX(IF(ISERROR(FIND(\":\",AI35)),0,FIND(\":\",AI35)))+1))),1)<>'LIEN CMS'!$B$12,IF('LIEN CMS'!$C$103=\"oui\",'LIEN CMS'!$B$105,'LIEN CMS'!$B$116),\"\"),\"\")","v":"  IND: F2"}]
[]
[null,null,null,null,null,null,null,null,null,null,null,null,null,null,null,null,null,null,null,null,null,null,{"$f":"IF($W37<>\"\",IF(MID($W37,MAX(LEN(LEFT(MAX(IF(ISERROR(FIND(\"-\",$W37)),0,FIND(\"-\",$W37)))+1))),1)<>'LIEN CMS'!$C$12,CONCATENATE('LIEN CMS'!$B$7,\"-\",'LIEN CMS'!$C$12,\"_\",'LIEN CMS'!$B$66),\"\"),CONCATENATE('LIEN CMS'!$B$23,'LIEN CMS'!$B$66))","v":"-_F1"},null,null,null,{"$f":"IF($AA37<>\"\",IF(MID($AA37,MAX(LEN(LEFT(MAX(IF(ISERROR(FIND(\"-\",$AA37)),0,FIND(\"-\",$AA37)))+1))),1)<>'LIEN CMS'!$C$12,CONCATENATE('LIEN CMS'!$B$7,\"-\",'LIEN CMS'!$C$12,\"_\",'LIEN CMS'!$B$68),\"\"),CONCATENATE('LIEN CMS'!$B$23,'LIEN CMS'!$B$68))","v":"-_"},null,null,null,{"$f":"IF(AE37<>\"\",IF(MID(AE37,MAX(LEN(LEFT(AE37,MAX(IF(ISERROR(FIND(\":\",AE37)),0,FIND(\":\",AE37)))+1))),1)<>'LIEN CMS'!$B$12,IF('LIEN CMS'!$C$103=\"oui\",'LIEN CMS'!$B$104,'LIEN CMS'!$B$115),\"\"),\"\")","v":"  IND: F1"},null,null,null,{"$f":"IF(AI37<>\"\",IF(MID(AI37,MAX(LEN(LEFT(AI37,MAX(IF(ISERROR(FIND(\":\",AI37)),0,FIND(\":\",AI37)))+1))),1)<>'LIEN CMS'!$B$12,IF('LIEN CMS'!$C$103=\"oui\",'LIEN CMS'!$B$105,'LIEN CMS'!$B$116),\"\"),\"\")","v":"  IND: F2"}]
[]
[]
[]
[]
[]
[]
[null,"ALERTE / CONSIGNE",null,null,null,null,null,null,null,null,null,null,null,null,null,null,null,null,null,null,null,null,null,null,null,null,null,null,null,null,null,null,null,null,null,null,null,null,null,null,null,null,null,null,null,null,null,null,"ALERTE / CONSIGNE N°1",null,null,null,null,null,null,null,null,null,null,null,null,null,null,null,null,null,null,null,null,null,null,null,null,null,null,null,null,null,null,null,null,null,null,null,null,null,null,null,null,null,null,null,null,null,null,"ALERTE / CONSIGNE N°2",null,null,null,null,null,null,null,null,null,null,null,null,null,null,null,null,null,null,null,null,null,null,null,null,null,null,null,null,null,null,null,null,null,null,null,null,null,null,null,null,null,null,null,null,null,null,"ALERTE / CONSIGNE N°3",null,null,null,null,null,null,null,null,null,null,null,null,null,null,null,null,null,null,null,null,null,null,null,null,null,null,null,null,null,null,null,null,null,null,null,null,null,null,null,null,null,null,null,null,null,null,"ALERTE / CONSIGNE N°4",null,null,null,null,null,null,null,null,null,null,null,null,null,null,null,null,null,null,null,null,null,null,null,null,null,null,null,null,null,null,null,null,null,null,null,null,null,null,null,null,null,null,null,null,null,null,"ALERTE / CONSIGNE N°5",null,null,null,null,null,null,null,null,null,null,null,null,null,null,null,null,null,null,null,null,null,null,null,null,null,null,null,null,null,null,null,null,null,null,null,null,null,null,null,null,null,null,null,null,null,null,"ALERTE / CONSIGNE N°6",null,null,null,null,null,null,null,null,null,null,null,null,null,null,null,null,null,null,null,null,null,null,null,null,null,null,null,null,null,null,null,null,null,null,null,null,null,null,null,null,null,null,null,null,null,null,"ALERTE / CONSIGNE N°7",null,null,null,null,null,null,null,null,null,null,null,null,null,null,null,null,null,null,null,null,null,null,null,null,null,null,null,null,null,null,null,null,null,null,null,null,null,null,null,null,null,null,null,null,null,null,"ALERTE / CONSIGNE N°8",null,null,null,null,null,null,null,null,null,null,null,null,null,null,null,null,null,null,null,null,null,null,null,null,null,null,null,null,null,null,null,null,null,null,null,null,null,null,null,null,null,null,null,null,null,null,"ALERTE / CONSIGNE N°9",null,null,null,null,null,null,null,null,null,null,null,null,null,null,null,null,null,null,null,null,null,null,null,null,null,null,null,null,null,null,null,null,null,null,null,null,null,null,null,null,null,null,null,null,null,null,"ALERTE / CONSIGNE N°10",null,null,null,null,null,null,null,null,null,null,null,null,null,null,null,null,null,null,null,null,null,null,null,null,null,null,null,null,null,null,null,null,null,null,null,null,null,null,null,null,null,null,null,null,null,null,"ALERTE / CONSIGNE N°11",null,null,null,null,null,null,null,null,null,null,null,null,null,null,null,null,null,null,null,null,null,null,null,null,null,null,null,null,null,null,null,null,null,null,null,null,null,null,null,null,null,null,null,null,null,null,"ALERTE / CONSIGNE N°12",null,null,null,null,null,null,null,null,null,null,null,null,null,null,null,null,null,null,null,null,null,null,null,null,null,null,null,null,null,null,null,null,null,null,null,null,null,null,null,null,null,null,null,null,null,null,"ALERTE / CONSIGNE N°13"]
[]
[]
[null,null,null,null,null,null,null,null,null,null,null,null,null,null,null,null,null,"N°","description alerte / consigne",null,null,null,null,null,null,null,null,null,null,null,null,null,null,null,"date de début",null,null,"date de fin",null,null,"N° de face",null,null,"lien"]
[null,null,null,null,null,null,null,null,null,null,null,null,null,null,null,null,null,1]
[]
[null,null,null,null,null,null,null,null,null,null,null,null,null,null,null,null,null,2]
[]
[null,null,null,null,null,null,null,null,null,null,null,null,null,null,null,null,null,3]
[]
[null,null,null,null,null,null,null,null,null,null,null,null,null,null,null,null,null,4]
[]
[null,null,null,null,null,null,null,null,null,null,null,null,null,null,null,null,null,5]
[]
[null,null,null,null,null,null,null,null,null,null,null,null,null,null,null,null,null,6]
[]
[null,null,null,null,null,null,null,null,null,null,null,null,null,null,null,null,null,7]
[]
[null,null,null,null,null,null,null,null,null,null,null,null,null,null,null,null,null,8]
[]
[null,null,null,null,null,null,null,null,null,null,null,null,null,null,null,null,null,9]
[]
[null,null,null,null,null,null,null,null,null,null,null,null,null,null,null,null,null,10]
[]
[null,null,null,null,null,null,null,null,null,null,null,null,null,null,null,null,null,11]
[]
[null,null,null,null,null,null,null,null,null,null,null,null,null,null,null,null,null,12]
[]
[null,null,null,null,null,null,null,null,null,null,null,null,null,null,null,null,null,13]
[]
[]
[]
[]
[null,"TRANSITIQUE"]
[]
[]
[]
[null,null,"DEPILEUR",null,null,null,"CONVOYEUR",null,null,null,"EKRA",null,null,null,"CONVOYEUR",null,null,null,"EUROPLACER",null,null,null,"CONVOYEUR",null,null,null,"EUROPLACER",null,null,null,"CONVOYEUR",null,null,null,"FOUR",null,null,null,"EMPILEUR"]
[]
[null,null,"LMO-0460",null,null,null,"LMO-0460",null,null,null,"SERIO 4000",null,null,null,"CL1000-2-460",null,null,null,"XPI 2",null,null,null,"MOBILE",null,null,null,"IINEO 2",null,null,null,null,null,null,null,"PYRAMAX",null,null,null,"UMO-0460"]
[]
[null,null,"MARCHE",null,null,null,"MARCHE",null,null,null,"MARCHE",null,null,null,"MARCHE",null,null,null,"MARCHE",null,null,null,"MARCHE",null,null,null,"MARCHE",null,null,null,"MARCHE",null,null,null,"MARCHE",null,null,null,"MARCHE"]
[]
[null,null,"PAS :",null,3,null,null,null,null,null,null,null,null,null,null,null,null,null,null,null,null,null,null,null,null,null,null,null,null,null,null,null,null,null,null,null,null,null,"PAS :",null,3]
[]
[null,null,null,null,null,null,null,"SENS DE CONVOYAGE FACE 1",null,null,null,null,null,null,null,null,null,null,null,null,null,null,null,null,null,null,null,null,"SENS DE CONVOYAGE FACE 2"]
[null,null,null,null,null,null,null,null,"PROCESS : ",null,null,null,{"$f":"IF(ISTEXT('LIEN CMS'!$B$71),'LIEN CMS'!$B$71,'LIEN CMS'!$B$190)","v":0},null,null,null,null,null,null,null,null,null,null,null,null,null,null,null,null,"PROCESS : ",null,null,null,{"$f":"IF('LIEN CMS'!$B$76=\"\",IF('LIEN CMS'!$B$195=\"\",\"N/A\",'LIEN CMS'!$B$195),IF('LIEN CMS'!$B$76=\"\",\"N/A\",'LIEN CMS'!$B$76))","v":"N/A"}]
[]
[]
[]
[]
[]
[]
[]
[]
[]
[]
[]
[]
[]
[]
[]
[]
[]
[]
[]
[null,"SERIGRAPHIE FACE 1 : EKRA SERIO 4000",null,null,null,null,null,null,null,null,null,null,null,null,null,null,null,null,null,null,null,null,null,null,null,null,null,null,null,null,null,null,null,null,null,null,null,null,null,null,null,null,null,null,null,null,null,null,"MASQUAGE POCHOIR FACE 1",null,null,null,null,null,null,null,null,null,null,null,null,null,null,null,null,null,null,null,null,null,null,null,null,null,null,null,null,null,null,null,null,null,null,null,null,null,null,null,null,null,null,null,null,null,null,"AJOUT DE POINT DE COLLE MANUEL FACE 1"]
[]
[]
[null,"PARAMETRES",null,null,null,null,null,null,null,null,null,null,null,null,null,null,null,null,"SENS DE PASSAGE"]
[]
[null,"MACHINE :",null,null,null,null,null,"EKRA"]
[]
[null,"IDENTICATION POCHOIR",null,null,null,null,null,{"$f":"CONCATENATE('LIEN CMS'!$B$7,\" \",'LIEN CMS'!$B$8,\" \",'LIEN CMS'!$B$66)","v":"  F1"}]
[]
[null,"N° DE POCHOIR",null,null,null,null,null,{"$f":"IF('LIEN CMS'!$B$74=0,\"N/A\",(CONCATENATE(\"ECR00000\",'LIEN CMS'!$B$74)))","v":"N/A"}]
[]
[null,"CREME A BRASER",null,null,null,null,null,{"$f":"'LIEN CMS'!$B$72","v":0}]
[]
[null,"PROGRAMME",null,null,null,null,null,{"$f":"IF('LIEN CMS'!$B$23=\"\",(CONCATENATE('LIEN CMS'!$B$7,\"-\",'LIEN CMS'!$C$12,\"_\",'LIEN CMS'!$B$66)),(CONCATENATE('LIEN CMS'!$B$23,'LIEN CMS'!$B$66)))","v":"-_F1"}]
[]
[null,"VITESSE D'IMPRESSION (mm/s)",null,null,null,null,null,15]
[]
[null,"PRESSION DES RACLES (N)",null,null,null,null,null,{"$f":"$H$133/50*10","v":0}]
[]
[null,"VITESSE DE DEMOULAGE (mm/s)",null,null,null,null,null,15]
[]
[null,"LONGUEUR DES RACLES (mm)"]
[]
[null,"QUICKTOOL - MODE"]
[]
[null,"N° D'OUTILLAGE",null,null,null,null,null,{"$f":"IF('LIEN CMS'!$B$48=0,\"N/A\",'LIEN CMS'!$B$48)","v":"N/A"}]
[]
[null,"MASQUAGE POCHOIR",null,null,null,null,null,"non"]
[]
[null,"AJOUT POINT DE COLLE MANUEL",null,null,null,null,null,"non"]
[]
[]
[]
[null,"REPORT COMPOSANT ET REFUSION FACE1",null,null,null,null,null,null,null,null,null,null,null,null,null,null,null,null,null,null,null,null,null,null,null,null,null,null,null,null,null,null,null,null,null,null,null,null,null,null,null,null,null,null,null,null,null,null,"POSE MANUELLE FACE 1",null,null,null,null,null,null,null,null,null,null,null,null,null,null,null,null,null,null,null,null,null,null,null,null,null,null,null,null,null,null,null,null,null,null,null,null,null,null,null,null,null,null,null,null,null,null,"AJOUT DE POINT DE COLLE MANUEL FACE 1"]
[]
[]
[null,"PARAMETRES",null,null,null,null,null,null,null,null,null,null,null,null,null,null,null,null,"MIRES DE RECALAGE"]
[]
[null,"PROGRAMME : XPII 2",null,null,null,null,null,{"$f":"IF('LIEN CMS'!$B$23=\"\",(CONCATENATE('LIEN CMS'!$B$7,\"-\",'LIEN CMS'!$C$12,\"_\",'LIEN CMS'!$B$66)),(CONCATENATE('LIEN CMS'!$B$23,'LIEN CMS'!$B$66)))","v":"-_F1"}]
[]
[null,"PROGRAMME : IINEO 2",null,null,null,null,null,{"$f":"IF('LIEN CMS'!$B$23=\"\",(CONCATENATE('LIEN CMS'!$B$7,\"-\",'LIEN CMS'!$C$12,\"_\",'LIEN CMS'!$B$66)),(CONCATENATE('LIEN CMS'!$B$23,'LIEN CMS'!$B$66)))","v":"-_F1"}]
[]
[null,"DISPENSING COLLE",null,null,null,null,null,"non"]
[]
[null,"N° D'OUTILLAGE DE REPORT",null,null,null,null,null,{"$f":"IF('LIEN CMS'!$B$49=0,\"N/A\",'LIEN CMS'!$B$49)","v":"N/A"}]
[]
[null,"FOUR DE REFUSION",null,null,null,null,null,"PYRAMAX"]
[]
[null,"PROGRAMME",null,null,null,null,null,{"$f":"CONCATENATE('LIEN CMS'!$A$66,\"-L\",'LIEN CMS'!$C$14)","v":"-L"}]
[]
[null,"N° D'OUTILLAGE DE REFUSION",null,null,null,null,null,{"$f":"IF('LIEN CMS'!$B$50=0,\"N/A\",'LIEN CMS'!$B$50)","v":"N/A"}]
[]
[null,"POSE MANUELLE",null,null,null,null,null,"non"]
[]
[null,"AJOOT DE PTS DE COLLE",null,null,null,null,null,"non"]
[]
[]
[]
[]
[]
[]
[]
[]
[]
[]
[]
[null,"SERIGRAPHIE FACE 2 : EKRA SERIO 4000",null,null,null,null,null,null,null,null,null,null,null,null,null,null,null,null,null,null,null,null,null,null,null,null,null,null,null,null,null,null,null,null,null,null,null,null,null,null,null,null,null,null,null,null,null,null,"MASQUAGE POCHOIR FACE 2",null,null,null,null,null,null,null,null,null,null,null,null,null,null,null,null,null,null,null,null,null,null,null,null,null,null,null,null,null,null,null,null,null,null,null,null,null,null,null,null,null,null,null,null,null,null,"AJOUT DE POINT DE COLLE MANUEL FACE 2"]
[]
[]
[null,"PARAMETRES",null,null,null,null,null,null,null,null,null,null,null,null,null,null,null,null,"SENS DE PASSAGE"]
[]
[null,"MACHINE :",null,null,null,null,null,"EKRA"]
[]
[null,"IDENTICATION POCHOIR",null,null,null,null,null,{"$f":"CONCATENATE('LIEN CMS'!$B$7,\" \",'LIEN CMS'!$B$8,\" \",'LIEN CMS'!$B$68)","v":"  "}]
[]
[null,"N° DE POCHOIR",null,null,null,null,null,{"$f":"IF('LIEN CMS'!$B$74=0,\"N/A\",(CONCATENATE(\"ECR00000\",'LIEN CMS'!$B$74)))","v":"N/A"}]
[]
[null,"CREME A BRASER",null,null,null,null,null,{"$f":"'LIEN CMS'!$B$72","v":0}]
[]
[null,"PROGRAMME",null,null,null,null,null,{"$f":"IF('LIEN CMS'!$B$23=\"\",(CONCATENATE('LIEN CMS'!$B$7,\"-\",'LIEN CMS'!$C$12,\"_\",'LIEN CMS'!$B$68)),(CONCATENATE('LIEN CMS'!$B$23,'LIEN CMS'!$B$68)))","v":"-_"}]
[]
[null,"VITESSE D'IMPRESSION (mm/s)",null,null,null,null,null,15]
[]
[null,"PRESSION DES RACLES (N)",null,null,null,null,null,{"$f":"$H$133/50*10","v":0}]
[]
[null,"VITESSE DE DEMOULAGE (mm/s)",null,null,null,null,null,15]
[]
[null,"LONGUEUR DES RACLES (mm)"]
[]
[null,"QUICKTOOL - MODE"]
[]
[null,"N° D'OUTILLAGE",null,null,null,null,null,{"$f":"IF('LIEN CMS'!$B$48=0,\"N/A\",'LIEN CMS'!$B$48)","v":"N/A"}]
[]
[null,"MASQUAGE POCHOIR",null,null,null,null,null,"non"]
[]
[null,"AJOUT POINT DE COLLE MANUEL",null,null,null,null,null,"non"]
[]
[]
[]
[]
[null,"REPORT COMPOSANT ET REFUSION FACE 2",null,null,null,null,null,null,null,null,null,null,null,null,null,null,null,null,null,null,null,null,null,null,null,null,null,null,null,null,null,null,null,null,null,null,null,null,null,null,null,null,null,null,null,null,null,null,"POSE MANUELLE FACE 2",null,null,null,null,null,null,null,null,null,null,null,null,null,null,null,null,null,null,null,null,null,null,null,null,null,null,null,null,null,null,null,null,null,null,null,null,null,null,null,null,null,null,null,null,null,null,"AJOUT DE POINT DE COLLE FACE 2"]
[]
[]
[null,"PARAMETRES",null,null,null,null,null,null,null,null,null,null,null,null,null,null,null,null,"MIRES DE RECALAGE"]
[]
[null,"PROGRAMME : XPII 2",null,null,null,null,null,{"$f":"IF('LIEN CMS'!$B$23=\"\",(CONCATENATE('LIEN CMS'!$B$7,\"-\",'LIEN CMS'!$B$12,\"_\",'LIEN CMS'!$B$68)),(CONCATENATE('LIEN CMS'!$B$23,'LIEN CMS'!$B$68)))","v":"-_"}]
[]
[null,"PROGRAMME : IINEO 2",null,null,null,null,null,{"$f":"IF('LIEN CMS'!$B$23=\"\",(CONCATENATE('LIEN CMS'!$B$7,\"-\",'LIEN CMS'!$B$12,\"_\",'LIEN CMS'!$B$68)),(CONCATENATE('LIEN CMS'!$B$23,'LIEN CMS'!$B$68)))","v":"-_"}]
[]
[null,"DISPENSING COLLE",null,null,null,null,null,"non"]
[]
[null,"N° D'OUTILLAGE DE REPORT",null,null,null,null,null,{"$f":"IF('LIEN CMS'!$B$49=0,\"N/A\",'LIEN CMS'!$B$49)","v":"N/A"}]
[]
[null,"FOUR DE REFUSION",null,null,null,null,null,"PYRAMAX"]
[]
[null,"PROGRAMME",null,null,null,null,null,{"$f":"CONCATENATE('LIEN CMS'!$A$68,\"-L\",'LIEN CMS'!$C$14)","v":"-L"}]
[]
[null,"N° D'OUTILLAGE DE REFUSION",null,null,null,null,null,{"$f":"IF('LIEN CMS'!$B$50=0,\"N/A\",'LIEN CMS'!$B$50)","v":"N/A"}]
[]
[null,"POSE MANUELLE",null,null,null,null,null,"non"]
[]
[null,"AJOUT POINT DE COLLE MANUEL",null,null,null,null,null,"non"]
[]
[]
[]
[]
[]
[]
[]
[]
[]
[null,"FIN DE L'OP"]

{"sheet":"CONTROLE CMS","index":7,"n_rows":178,"n_cols":98,"rows_kept":178,"cut":false,"hidden":false,"merged":[[111,5,112,5],[111,6,112,16],[111,17,112,19],[111,20,112,22],[111,23,112,25],[177,52,178,52],[177,53,178,63],[177,64,178,66],[177,67,178,69],[177,5,178,5],[177,6,178,16],[177,17,178,19],[177,20,178,22],[177,23,178,25],[144,5,145,5],[144,6,145,16],[144,17,145,19],[144,20,145,22],[144,23,145,25],[177,70,178,72],[144,52,145,52],[144,53,145,63],[144,64,145,66],[144,67,145,69],[144,70,145,72],[111,52,112,52],[111,53,112,63],[111,64,112,66],[111,67,112,69],[111,70,112,72],[45,67,46,69],[45,70,46,72],[45,5,46,5],[45,6,46,16],[45,17,46,19],[45,20,46,22],[45,23,46,25],[78,52,79,52],[78,53,79,63],[78,64,79,66],[78,67,79,69],[78,70,79,72],[78,5,79,5],[78,6,79,16],[78,17,79,19],[78,20,79,22],[78,23,79,25],[37,44,38,45],[29,38,30,40],[29,41,30,43],[26,44,26,45],[45,52,46,52],[45,53,46,63],[45,64,46,66],[27,38,28,40],[27,41,28,43],[27,44,28,45],[26,41,26,43],[29,44,30,45],[31,44,32,45],[33,44,34,45],[35,44,36,45],[31,38,32,40],[31,41,32,43],[8,1,9,45],[11,1,12,17],[11,18,12,21],[11,23,12,41],[11,42,12,45],[14,23,15,23],[14,24,15,34],[14,35,15,37],[14,38,15,40],[14,41,15,43],[14,44,15,45],[13,35,13,37],[13,38,13,40],[13,41,13,43],[13,44,13,45],[13,24,13,34],[24,44,25,45],[16,23,17,23],[18,23,19,23],[18,24,19,34],[20,35,21,37],[20,38,21,40],[20,41,21,43],[20,44,21,45],[20,23,21,23],[20,24,21,34],[16,44,17,45],[16,24,17,34],[22,35,23,37],[22,38,23,40],[22,41,23,43],[22,44,23,45],[18,35,19,37],[18,38,19,40],[18,41,19,43],[18,44,19,45],[22,24,23,34],[16,35,17,37],[16,38,17,40],[16,41,17,43],[22,23,23,23],[24,35,25,37],[24,38,25,40],[24,41,25,43],[37,24,38,34],[37,35,38,37],[24,23,25,23],[24,24,25,34],[26,24,26,34],[26,35,26,37],[26,38,26,40],[37,38,38,40],[37,41,38,43],[33,23,34,23],[35,23,36,23],[35,24,36,34],[35,35,36,37],[35,38,36,40],[35,41,36,43],[29,35,30,37],[37,23,38,23],[31,23,32,23],[31,24,32,34],[31,35,32,37],[27,23,28,23],[27,24,28,34],[27,35,28,37],[29,23,30,23],[29,24,30,34],[33,24,34,34],[33,35,34,37],[33,38,34,40],[33,41,34,43]]}
[]
[]
[]
[]
[]
[]
[]
[]
[null,"RETOUCHE                            "]
[]
[]
[null,"Surveillance process (FI-0112-MO)",null,null,null,null,null,null,null,null,null,null,null,null,null,null,null,null,"OUI",null,null,null,null,"Contrôle spécifique ",null,null,null,null,null,null,null,null,null,null,null,null,null,null,null,null,null,null,"NON",null,null,null,null,null,null,null,null,null,null,null,null,null,null,null,null,null,null,null,null,null,null,null,null,null,null,null,null,null,null,null,null,null,null,null,null,null,null,null,null,null,null,null,null,null,null,null,null,null,null,null,null,"OUI",null,1]
[null,null,null,null,null,null,null,null,null,null,null,null,null,null,null,null,null,null,null,null,null,null,null,null,null,null,null,null,null,null,null,null,null,null,null,null,null,null,null,null,null,null,null,null,null,null,null,null,null,null,null,null,null,null,null,null,null,null,null,null,null,null,null,null,null,null,null,null,null,null,null,null,null,null,null,null,null,null,null,null,null,null,null,null,null,null,null,null,null,null,null,null,null,null,null,"NON",null,0.5]
[null,null,null,null,null,null,null,null,null,null,null,null,null,null,null,null,null,null,null,null,null,null,null,"N°","détail de l'opération FACE 1",null,null,null,null,null,null,null,null,null,null,"date de début",null,null,"date de fin",null,null,"fréquence",null,null,"lien",null,null,null,null,null,null,null,null,null,null,null,null,null,null,null,null,null,null,null,null,null,null,null,null,null,null,null,null,null,null,null,null,null,null,null,null,null,null,null,null,null,null,null,null,null,null,null,null,null,null,null,null,0.1]
[null,null,null,null,null,null,null,null,null,null,null,null,null,null,null,null,null,null,null,null,null,null,null,0,"Contrôle brasure / polarité / désignation suivant plan de contrôle",null,null,null,null,null,null,null,null,null,null,null,null,null,null,null,null,0,null,null,"PDC",null,null,null,null,null,null,null,null,null,null,null,null,null,null,null,null,null,null,null,null,null,null,null,null,null,null,null,null,null,null,null,null,null,null,null,null,null,null,null,null,null,null,null,null,null,null,null,null,null,null,null,null,0]
[null,null,null,null,null,null,null,null,null,null,null,null,null,null,null,null,null,null,null,null,null,null,null,null,null,null,null,null,null,null,null,null,null,null,null,null,null,null,null,null,null,null,null,null,null,null,null,null,null,null,null,null,null,null,null,null,null,null,null,null,null,null,null,null,null,null,null,null,null,null,null,null,null,null,null,null,null,null,null,null,null,null,null,null,null,null,null,null,null,null,null,null,null,null,null,null,null,"1er de serie"]
[null,null,null,null,null,null,null,null,null,null,null,null,null,null,null,null,null,null,null,null,null,null,null,1]
[]
[null,null,null,null,null,null,null,null,null,null,null,null,null,null,null,null,null,null,null,null,null,null,null,2]
[]
[null,null,null,null,null,null,null,null,null,null,null,null,null,null,null,null,null,null,null,null,null,null,null,3]
[]
[null,null,null,null,null,null,null,null,null,null,null,null,null,null,null,null,null,null,null,null,null,null,null,4]
[]
[null,null,null,null,null,null,null,null,null,null,null,null,null,null,null,null,null,null,null,null,null,null,null,5]
[]
[null,null,null,null,null,null,null,null,null,null,null,null,null,null,null,null,null,null,null,null,null,null,null,"N°","détail de l'opération FACE 2",null,null,null,null,null,null,null,null,null,null,"date de début",null,null,"date de fin",null,null,"fréquence",null,null,"lien"]
[null,null,null,null,null,null,null,null,null,null,null,null,null,null,null,null,null,null,null,null,null,null,null,0,"Contrôle brasure / polarité / désignation suivant plan de contrôle",null,null,null,null,null,null,null,null,null,null,null,null,null,null,null,null,0,null,null,"PDC"]
[]
[null,null,null,null,null,null,null,null,null,null,null,null,null,null,null,null,null,null,null,null,null,null,null,6]
[]
[null,null,null,null,null,null,null,null,null,null,null,null,null,null,null,null,null,null,null,null,null,null,null,7]
[]
[null,null,null,null,null,null,null,null,null,null,null,null,null,null,null,null,null,null,null,null,null,null,null,8]
[]
[null,null,null,null,null,null,null,null,null,null,null,null,null,null,null,null,null,null,null,null,null,null,null,9]
[]
[null,null,null,null,null,null,null,null,null,null,null,null,null,null,null,null,null,null,null,null,null,null,null,10]
[]
[]
[]
[]
[]
[]
[]
[null,null,null,null,null,1,{"$f":"$Y$17","v":0},null,null,null,null,null,null,null,null,null,null,{"$f":"$AJ$17","v":"00:00:00"},null,null,{"$f":"$AM$17","v":0},null,null,{"$f":"$AP$17","v":0},null,null,null,null,null,null,null,null,null,null,null,null,null,null,null,null,null,null,null,null,null,null,null,null,null,null,null,null,2,{"$f":"$Y$19","v":0},null,null,null,null,null,null,null,null,null,null,{"$f":"$AJ$19","v":"00:00:00"},null,null,{"$f":"$AM$19","v":"00:00:00"},null,null,{"$f":"$AP$19","v":0}]
[]
[]
[]
[]
[]
[]
[]
[]
[]
[]
[]
[]
[]
[]
[]
[]
[]
[]
[]
[]
[]
[]
[]
[]
[]
[]
[]
[]
[]
[]
[]
[]
[null,null,null,null,null,3,{"$f":"$Y$21","v":0},null,null,null,null,null,null,null,null,null,null,{"$f":"$AJ$21","v":"00:00:00"},null,null,{"$f":"$AM$21","v":"00:00:00"},null,null,{"$f":"$AP$21","v":0},null,null,null,null,null,null,null,null,null,null,null,null,null,null,null,null,null,null,null,null,null,null,null,null,null,null,null,null,4,{"$f":"$Y$23","v":0},null,null,null,null,null,null,null,null,null,null,{"$f":"$AJ$23","v":"00:00:00"},null,null,{"$f":"$AM$23","v":"00:00:00"},null,null,{"$f":"$AP$23","v":0}]
[]
[]
[]
[]
[]
[]
[]
[]
[]
[]
[]
[]
[]
[]
[]
[]
[]
[]
[]
[]
[]
[]
[]
[]
[]
[]
[]
[]
[]
[]
[]
[]
[null,null,null,null,null,5,{"$f":"$Y$25","v":0},null,null,null,null,null,null,null,null,null,null,{"$f":"$AJ$25","v":"00:00:00"},null,null,{"$f":"$AM$25","v":"00:00:00"},null,null,{"$f":"$AP$25","v":0},null,null,null,null,null,null,null,null,null,null,null,null,null,null,null,null,null,null,null,null,null,null,null,null,null,null,null,null,6,{"$f":"$Y$30","v":0},null,null,null,null,null,null,null,null,null,null,{"$f":"$AJ$30","v":"00:00:00"},null,null,{"$f":"$AM$30","v":0},null,null,{"$f":"$AP$30","v":0}]
[]
[]
[]
[]
[]
[]
[]
[]
[]
[]
[]
[]
[]
[]
[]
[]
[]
[]
[]
[]
[]
[]
[]
[]
[]
[]
[]
[]
[]
[]
[]
[]
[null,null,null,null,null,7,{"$f":"$Y$32","v":0},null,null,null,null,null,null,null,null,null,null,{"$f":"$AJ$32","v":"00:00:00"},null,null,{"$f":"$AM$32","v":"00:00:00"},null,null,{"$f":"$AP$32","v":0},null,null,null,null,null,null,null,null,null,null,null,null,null,null,null,null,null,null,null,null,null,null,null,null,null,null,null,null,8,{"$f":"$Y$34","v":0},null,null,null,null,null,null,null,null,null,null,{"$f":"$AJ$34","v":"00:00:00"},null,null,{"$f":"$AM$34","v":"00:00:00"},null,null,{"$f":"$AP$34","v":0}]
[]
[]
[]
[]
[]
[]
[]
[]
[]
[]
[]
[]
[]
[]
[]
[]
[]
[]
[]
[]
[]
[]
[]
[]
[]
[]
[]
[]
[]
[]
[]
[]
[null,null,null,null,null,9,{"$f":"$Y$36","v":0},null,null,null,null,null,null,null,null,null,null,{"$f":"$AJ$36","v":"00:00:00"},null,null,{"$f":"$AM$36","v":"00:00:00"},null,null,{"$f":"$AP$36","v":0},null,null,null,null,null,null,null,null,null,null,null,null,null,null,null,null,null,null,null,null,null,null,null,null,null,null,null,null,10,{"$f":"$Y$38","v":0},null,null,null,null,null,null,null,null,null,null,{"$f":"$AJ$38","v":"00:00:00"},null,null,{"$f":"$AM$38","v":"00:00:00"},null,null,{"$f":"$AP$38","v":0}]

{"sheet":"RX","index":8,"n_rows":28,"n_cols":58,"rows_kept":28,"cut":false,"hidden":false,"merged":[[8,1,9,45],[11,22,13,25],[20,1,23,3],[20,4,21,11],[20,12,21,13],[22,4,23,11],[22,12,23,13],[13,1,16,3],[13,4,14,11],[13,12,14,13],[15,4,16,11],[15,12,16,13],[17,1,19,3],[11,18,13,21],[11,1,12,17],[13,14,16,17],[11,27,13,31],[11,32,13,35],[11,37,13,43],[11,44,13,45],[20,14,23,17],[17,14,19,17],[17,12,19,13],[17,4,19,11],[27,16,28,29],[29,16,30,29],[27,31,28,44],[29,31,30,44]]}
[]
[]
[]
[]
[]
[]
[]
[]
[null,"INSPECTION RX"]
[]
[]
[null,{"$f":"'LIEN CMS'!$B$34","v":0},null,null,null,null,null,null,null,null,null,null,null,null,null,null,null,null,"Fréquence d'inspection",null,null,null,{"$f":"'LIEN CMS'!$B$39","v":"fréquence?"},null,null,null,null,"Avec image papier",null,null,null,null,{"$f":"'LIEN CMS'!$D$39","v":"Papier ?"},null,null,null,null,"Avec image numérique",null,null,null,null,null,null,{"$f":"'LIEN CMS'!$C$39","v":"numérique ?"}]
[null,null,null,null,null,null,null,null,null,null,null,null,null,null,null,null,null,null,null,null,null,null,null,null,null,null,null,null,null,null,null,null,null,null,null,null,null,null,null,null,null,null,null,null,null,null,null,null,null,null,"fréquence?",null,null,"numérique ?",null,null,null,"Papier ?"]
[null,"Bille  de BGA",null,null,"Taux de void maximum cumulé",null,null,null,null,null,null,null,{"$f":"'LIEN CMS'!$B$35","v":{"$error":"#N/A"}},null,"Défaut",null,null,null,null,null,null,null,null,null,null,null,null,null,null,null,null,null,null,null,null,null,null,null,null,null,null,null,null,null,null,null,null,null,null,null,"Process",null,null,"OUI",null,null,null,"OUI"]
[null,null,null,null,null,null,null,null,null,null,null,null,null,null,null,null,null,null,null,null,null,null,null,null,null,null,null,null,null,null,null,null,null,null,null,null,null,null,null,null,null,null,null,null,null,null,null,null,null,null,0.1,null,null,"NON",null,null,null,"NON"]
[null,null,null,null,"Taux de void maximum unitaire",null,null,null,null,null,null,null,{"$f":"'LIEN CMS'!$B$36","v":{"$error":"#N/A"}},null,null,null,null,null,null,null,null,null,null,null,null,null,null,null,null,null,null,null,null,null,null,null,null,null,null,null,null,null,null,null,null,null,null,null,null,null,0.25,null,null,"1er serie",null,null,null,"1er serie"]
[null,null,null,null,null,null,null,null,null,null,null,null,null,null,null,null,null,null,null,null,null,null,null,null,null,null,null,null,null,null,null,null,null,null,null,null,null,null,null,null,null,null,null,null,null,null,null,null,null,null,0.5]
[null,"BGA",null,null,"Quantité de Void maximum",null,null,null,null,null,null,null,{"$f":"IF('LIEN CMS'!$B$34=\"THALES-classe2\",\"50%\",IF('LIEN CMS'!$B$34=\"THALES-classe3\",\"50%\",\"N/A\"))","v":"N/A"},null,{"$f":"IF('LIEN CMS'!$B$34=\"THALES-classe2\",\"Indicateur de processus\",IF('LIEN CMS'!$B$34=\"THALES-classe3\",\"Indicateur de processus\",\"N/A\"))","v":"N/A"},null,null,null,null,null,null,null,null,null,null,null,null,null,null,null,null,null,null,null,null,null,null,null,null,null,null,null,null,null,null,null,null,null,null,null,0.75]
[null,null,null,null,null,null,null,null,null,null,null,null,null,null,null,null,null,null,null,null,null,null,null,null,null,null,null,null,null,null,null,null,null,null,null,null,null,null,null,null,null,null,null,null,null,null,null,null,null,null,1]
[]
[null,"Autre",null,null,"Taux de void maximum cumulé",null,null,null,null,null,null,null,{"$f":"'LIEN CMS'!$B$37","v":{"$error":"#N/A"}},null,"Défaut"]
[]
[null,null,null,null,"Taux de void maximum unitaire",null,null,null,null,null,null,null,{"$f":"'LIEN CMS'!$B$38","v":{"$error":"#N/A"}}]
[]
[]
[]
[]
[null,null,null,null,null,null,null,null,null,null,null,null,null,null,null,null,"PLAN D'INSPECTION RX F1",null,null,null,null,null,null,null,null,null,null,null,null,null,null,"PLAN D'INSPECTION RX F2"]

{"sheet":"XRAY F1","index":9,"n_rows":3,"n_cols":38,"rows_kept":3,"cut":false,"hidden":false,"merged":[[15,22,15,25],[15,26,15,29],[15,31,15,36],[15,37,15,46],[0,0,3,3],[0,4,1,12],[0,13,1,18],[0,19,1,20],[2,4,3,12],[2,13,3,18],[2,19,3,20]]}
[null,null,null,null,{"$f":"CONCATENATE(\"XRAY00000\",'LIEN CMS'!$B$60)","v":"XRAY00000"},null,null,null,null,null,null,null,null,{"$f":"'LIEN CMS'!$B$5","v":0},null,null,null,null,null,"page 1/1",null,null,"ACAQ",null,null,null,"Code client",null,null,null,"Qté","Désignation",null,null,null,null,null,"Repère Topo"]
[]
[null,null,null,null,"Plan de Contrôle RX F1",null,null,null,null,null,null,null,null,{"$f":"'LIEN CMS'!$B$7","v":0},null,null,null,null,null,"A"]

{"sheet":"XRAY F2","index":10,"n_rows":3,"n_cols":38,"rows_kept":3,"cut":false,"hidden":false,"merged":[[15,22,15,25],[15,26,15,29],[15,31,15,36],[15,37,15,46],[0,0,3,3],[0,4,1,12],[0,13,1,18],[0,19,1,20],[2,4,3,12],[2,13,3,18],[2,19,3,20]]}
[null,null,null,null,{"$f":"CONCATENATE(\"XRAY00000\",'LIEN CMS'!$B$60)","v":"XRAY00000"},null,null,null,null,null,null,null,null,{"$f":"'LIEN CMS'!$B$5","v":0},null,null,null,null,null,"page 1/1",null,null,"ACAQ",null,null,null,"Code client",null,null,null,"Qté","Désignation",null,null,null,null,null,"Repère Topo"]
[]
[null,null,null,null,"Plan de Contrôle RX F2",null,null,null,null,null,null,null,null,{"$f":"'LIEN CMS'!$B$7","v":0},null,null,null,null,null,"A"]

{"sheet":"PDCF1","index":11,"n_rows":3,"n_cols":38,"rows_kept":3,"cut":false,"hidden":false,"merged":[[15,22,15,25],[15,26,15,29],[15,31,15,36],[15,37,15,46],[0,0,3,3],[0,4,1,12],[0,13,1,18],[0,19,1,20],[2,4,3,12],[2,13,3,18],[2,19,3,20]]}
[null,null,null,null,{"$f":"CONCATENATE(\"PDC00000\",'LIEN CMS'!$B$60)","v":"PDC00000"},null,null,null,null,null,null,null,null,{"$f":"'LIEN CMS'!$B$5","v":0},null,null,null,null,null,"page 1/1",null,null,"ACAQ",null,null,null,"Code client",null,null,null,"Qté","Désignation",null,null,null,null,null,"Repère Topo"]
[]
[null,null,null,null,"Plan de Contrôle  F1",null,null,null,null,null,null,null,null,{"$f":"'LIEN CMS'!$B$7","v":0},null,null,null,null,null,"A"]

{"sheet":"PDCF2","index":12,"n_rows":3,"n_cols":38,"rows_kept":3,"cut":false,"hidden":false,"merged":[[15,22,15,25],[15,26,15,29],[15,31,15,36],[15,37,15,46],[0,0,3,3],[0,4,1,12],[0,13,1,18],[0,19,1,20],[2,4,3,12],[2,13,3,18],[2,19,3,20]]}
[null,null,null,null,{"$f":"CONCATENATE(\"PDC00000\",'LIEN CMS'!$B$60)","v":"PDC00000"},null,null,null,null,null,null,null,null,{"$f":"'LIEN CMS'!$B$5","v":0},null,null,null,null,null,"page 1/1",null,null,"ACAQ",null,null,null,"Code client",null,null,null,"Qté","Désignation",null,null,null,null,null,"Repère Topo"]
[]
[null,null,null,null,"Plan de Contrôle  F2",null,null,null,null,null,null,null,null,{"$f":"'LIEN CMS'!$B$7","v":0},null,null,null,null,null,"A"]

{"sheet":"LIEN CMS","index":13,"n_rows":215,"n_cols":37,"rows_kept":215,"cut":false,"hidden":false,"merged":[[214,0,221,4],[68,0,68,2],[28,9,29,9],[27,8,27,9],[38,8,39,8],[38,9,39,9],[38,6,39,6],[38,7,39,7],[34,7,35,7],[36,7,37,7],[30,6,31,6],[30,7,31,7],[32,7,33,7],[34,1,34,2],[35,1,35,2],[36,1,36,2],[37,1,37,2],[34,8,35,8],[34,9,35,9],[34,10,35,10],[27,10,29,10],[28,8,29,8],[28,0,28,2],[38,11,39,11],[38,12,39,12],[36,8,37,8],[36,9,37,9],[36,10,37,10],[36,11,37,11],[36,12,37,12],[38,10,39,10],[34,11,35,11],[34,12,35,12],[34,6,35,6],[36,6,37,6],[27,12,29,12],[32,6,33,6],[30,8,31,8],[30,9,31,9],[30,10,31,10],[30,11,31,11],[30,12,31,12],[32,8,33,8],[32,9,33,9],[32,10,33,10],[32,11,33,11],[32,12,33,12],[172,9,172,10],[0,8,0,10],[46,4,49,4],[70,3,71,3],[75,3,76,3],[0,4,0,6],[3,6,3,8],[48,3,49,3],[64,3,67,3],[64,4,65,4],[66,4,67,4],[56,3,57,3],[6,8,6,11],[14,10,14,11],[27,7,29,7],[27,11,29,11],[177,3,178,3],[177,4,178,4],[58,4,59,4],[46,3,47,3],[58,3,59,3],[56,4,57,4],[129,0,129,3],[130,0,130,3],[131,0,131,3],[133,0,133,3],[134,0,134,3],[136,0,136,3],[137,0,137,3],[171,0,171,2],[175,3,176,3],[175,4,176,4],[72,4,73,4],[77,4,78,4],[102,0,102,2],[98,3,99,3],[70,2,73,2],[75,2,78,2],[82,2,83,2],[82,4,83,4],[159,0,166,4],[82,0,82,1],[91,2,101,2],[122,1,122,3],[128,0,128,3],[187,0,187,2],[189,2,192,2],[189,3,190,3],[191,4,192,4],[194,2,197,2],[194,3,195,3],[196,4,197,4]]}
[null,"CHECK-LIST PROGRAMME CMS","version  2.3",null,{"$f":"CONCATENATE(B6,B7)","v":""},null,null,null,null,null,null,null,null,null,null,null,null,null,null,null,null,null,null,null,null,null,null,null,null,null,null,"\\\\elvm0302\\nosave\\Methodes"]
[]
["Date:",{"$f":"TODAY()","v":"2017-05-24"}]
["Date prévue de prod :",null,null,null,null,null,"NOUVEAU PRODUIT",null,null,"non"]
["N° de client / Nom client",null,{"$f":"IF(ISERROR(VLOOKUP($B5,$O$29:$P$157,2,0)),\"\",VLOOKUP($B5,$O$29:$P$157,2,0))","v":""}]
["Type d'appro:"]
["Référence carte :",null,null,null,null,null,null,null,"BILAN CHECK LIST"]
["Indice SAP (Crochet):",null,null,null,"PASSAGE EN DOC EN LIGNE",null,"non",null,"Etape:",null,"Etape:"]
["Nom de la carte : ",null,null,null,null,null,null,null,1,{"$f":"IF(OR(G12=\"OUI\",B26=\"TOP + BOTTOM\",B26=\"TOP\",B26=\"BOTTOM\"),IF($E$29>=$D$29-2,1,($E$29/$D$29*100)),IF($E$29=$D$29,1,($E$29/$D$29*100)))","v":0},9,{"$f":"IF(G12=\"OUI\",1,(IF($E$136>=$D$136,1,($E$136/$D$136*100))))","v":0}]
["N°évolution : ",null,null,null,"EVOL",null,"oui",null,2,{"$f":"IF(OR(G12=\"OUI\",B26=\"TOP + BOTTOM\",B26=\"TOP\",B26=\"BOTTOM\"),IF($E$69>=$D$69-10,1,($E$69/$D$69*100)),(IF($E$69=$D$69,1,($E$69/$D$69*100))))","v":0},10,{"$f":"IF(G12=\"OUI\",1,(IF($E$139>=$D$139,1,($E$139/$D$139*100))))","v":0}]
["Indice client:",null,null,null,null,null,null,null,3,{"$f":"IF(G12=\"OUI\",1,(IF($E$87=$D$87,1,($E$87/$D$87*100))))","v":0},11,{"$f":"IF(G12=\"OUI\",1,(IF($E$148=$D$148,1,($E$148/$D$148*100))))","v":0}]
["Indice PROG: Machine (Mydata/Europlacer) - DEK",null,null,null,"PAS D'IMPACT CMS",null,"non",null,4,{"$f":"IF(OR(G12=\"OUI\",B26=\"TOP + BOTTOM\",B26=\"TOP\",B26=\"BOTTOM\"),IF($D$91>=$E$91-2,1,($E$91/$D$91*100)),IF($D$91=$E$91,1,($E$91/$D$91*100)))","v":0},12,{"$f":"IF(G13=\"OUI\",1,(IF($E$150=$D$150,1,($E$150/$D$150*100))))","v":0}]
["N° de modif SAP :",null,null,null,null,null,null,null,5,{"$f":"IF(AND($C$104=\"oui\",$C$114=\"non\"),IF(($E$104>=$D$104),1,($E$104/$D$104*100)),IF(($E$114=$D$114),1,($E$114/$D$114*100)))","v":0},13,{"$f":"IF($E$153=$D$153,1,($E$153/$D$153*100))","v":0}]
["Ac Long/larg/épais",null,null,null,"Caractéirstique machine",null,null,null,6,{"$f":"IF(G12=\"OUI\",1,(IF($E$126>=$D$126,1,($E$126/$D$126*100))))","v":0},14,{"$f":"IF($E$157>=$D$157,1,($E$157/$D$157*100))","v":0}]
["N° OF :",null,null,null,"N° de commande ","MAI",null,null,7,{"$f":"IF(G12=\"OUI\",1,(IF($E$128>=$D$128,1,($E$128/$D$128*100))))","v":0},"Pas d'impact",null,null,null,null,null,null,null,null,null,null,null,null,null,null,null,null,null,"Fréquence ?"]
["Quantité OF: ",null,null,null,"DAMP   ",448647,null,null,8,{"$f":"IF(G12=\"OUI\",1,(IF($E$133>=$D$133,1,($E$133/$D$133*100))))","v":0},15,{"$f":"IF($E$172>=$D$172,1,($E$172/$D$172*100))","v":0},null,null,null,null,null,null,null,null,null,null,null,null,null,null,null,null,"Process"]
["N° de devis :",null,null,null,"COB       ",448648,null,null,null,null,null,null,null,null,null,null,null,null,null,null,null,null,null,null,null,null,null,null,0.1]
["MPI :",null,null,null,null,null,null,null,null,null,null,null,null,null,null,null,null,null,null,null,null,null,null,null,null,null,null,null,0.25]
["Méthode Générale",null,null,null,null,null,null,null,null,null,null,null,null,null,null,null,null,null,null,null,null,null,null,null,null,null,null,null,0.5]
["Réalisé par : ",null,{"$f":"IF($B$20=$V$40,\"1\",IF($B$20=$V$41,\"2\",IF($B$20=$V$42,\"3\",IF($B$20=$V$43,\"4\",IF($B$20=$V$44,\"5\",IF($B$20=$V$45,\"6\",IF($B$20=$V$46,\"7\",IF($B$20=$V$47,\"8\",IF($B$20=$V$48,\"9\",IF($B$20=$V$49,\"10\"))))))))))","v":false},null,null,null,null,null,null,null,null,null,null,null,null,null,null,null,null,null,null,null,null,null,null,null,null,null,0.75]
["Ligne : ",null,null,null,null,null,null,null,null,null,null,null,null,null,null,null,null,null,null,null,null,null,null,null,null,null,null,null,1]
["Process :",null,null,null,null,null,null,null,null,null,null,null,null,null,null,null,null,null,null,null,null,null,null,null,null,null,null,null,"Numérique?"]
["AC du pcb :",null,null,null,null,null,null,null,null,null,null,null,null,null,null,null,null,null,null,null,null,null,null,null,null,null,null,null,"Oui"]
["nature pcb :",null,null,null,null,null,null,null,null,null,null,null,null,null,null,null,null,null,null,null,null,null,null,null,null,null,null,null,"Non"]
["Finition :",null,null,null,null,null,null,null,null,null,null,null,null,null,null,null,null,null,null,null,null,null,null,null,null,null,null,null,"Papier?"]
["Face cms :",null,null,null,null,null,null,null,null,null,null,null,null,null,null,null,null,null,null,null,null,null,null,null,null,null,null,null,"Oui"]
["Nbre de Face :",null,null,null,null,null,null,null,null,null,null,null,null,null,null,null,null,null,null,null,null,null,null,null,null,null,null,null,"Non"]
["évolution ou nouveau produit",null,null,null,null,null,null,"PION JAUNE","check liste",null,"Ind Dek","Ind rpog","Ind PDC","refusion","client","N° client","crème",null,null,null,null,null,null,null,null,null,null,null,null,"panelisation"]
["1-DOCUMENT° OBLIGATOIRE sinon NE PAS TRAVAILLER / PRODUIT",null,null,29,{"$f":"SUM(E30:E68)","v":0},null,null,null,"création","Edition ",null,null,null,"A DETERMINER","ACTIA Automotive",124,"ALPHA OM338T ","refusion","PFA","Noir et Blanc",null,"ROHS",null,"TOP","flex","Sn chimique","Laurent Orinstein","Patricia Céléa","oui - \n1er de serie",1,null,null,null,"Taux void maxi cumulé BGA","Taux void max unitaire BGA","Taux void maxi cumulé AUTRE","Taux void max unitaire AUTRE"]
["analyse/impression évolution ",null,null,null,null,null,"TYPES",null,null,null,null,null,null,"A DETERMINER AVEC CARTE PREVUE","ADENEO ADETEL GROUP",335,"ECCOBOND D 125 FDR","polymérisation","PFM","Couleur",null,"SN PB","oui","BOTTOM","polymide","Ni Au chimique / Electro-lytique","Sébastien Lecot","Didier Manceau","1er de série",2,null," IF40","DASSAULT-Toute classe","25%","15%","25%","25%"]
["Présence Carte Golden Unit",null,"PDC","FIF",null,null,"New produit","OUI","OUI","OUI","A","A","A","POLYMERISATION 1","AERAZUR",145,"ECOREL 387-6D","kit colle mydata","PFK",null,null,"NO CLEAN","non","TOP + BOTTOM","céramique","OSP",null,"Pierre Douguet","Process",3,null,null,"IPC 2 / IPC3","30%","30%","AD","AD"]
["revue méthode /  lancement",null,null,null,null,null,null,null,null,null,null,null,null,"REFUSION 1","AGCO SA",100,"INDIUM SMQ92H",null,"PFV",null,null,"HT","N/A",null,"smi","Sn Pb",null,"Erwan Menguy",0.1,4,null,"16262704.024","THALES-Classe2","25%","10%","25%","20%"]
["Rapport d'industrialisation ",null,null,"  *",null,null,"Ev impact Fabmaster","OUI","OUI","OUI","non","evol","evol","REFUSION 1 LINEAIRE","ALTEP INGENIERIE",113,"INDIUM SMQ92J",null,"SEM",null,null,"AUTRE","OK",null,null,"Ag chimique",null,null,0.25,5,null,"16262704.024","THALES-Classe3","12%","10%","25%","20%"]
["RX?",null,null,null,null,null,null,null,null,null,null,null,null,"REFUSION 2","AML",830,"OMNIX5002",null,"SEA",null,null,"SN PB / NO CLEAN","NOK",null,null,null,null,null,0.5,6,null,"SSA000011","ZODIAC-Toute classe","20%","20%","30%","30%"]
["Taux void maxi cumulé BGA",{"$f":"VLOOKUP($B$34,$AG$30:$AH$34,2,0)","v":{"$error":"#N/A"}},null,null,null,null,"Ev reroutage PCB","OUI","OUI","OUI","evol","evol","evol","REFUSION 3","ATH FINANCE / VE HOTECH",111,"PROMOSOL DMH524",null,null,null,null,"SnPb+","N/A",null,null,null,null,null,0.75,7]
["Taux void max unitaire BGA",{"$f":"VLOOKUP($B$34,$AG$30:$AK$34,3,0)","v":{"$error":"#N/A"}},null,null,null,null,null,null,null,null,null,null,null,"REFUSION 4","AUTOCRUISE",114,"ECOREL 305-6D",null,"F1",null,"Mydata",null,null,null,null,null,null,null,1,8]
["Taux void maxi cumulé AUTRE",{"$f":"VLOOKUP($B$34,$AG$30:$AK$34,4,0)","v":{"$error":"#N/A"}},null,null,null,null,"Ev Obso. (chgmt AQ)","OUI","OUI","NON Solde check liste","non","evol","evol","REFUSION 5","AUXITROL",115,"ECOREL 305-21 T5",null,"F2",null,"Europlacer",null,null,null,null,null,null,null,null,9]
["Taux void max unitaire AUTRE",{"$f":"VLOOKUP($B$34,$AG$30:$AK$34,5,0)","v":{"$error":"#N/A"}},null,null,null,null,null,null,null,null,null,null,null,"REFUSION 6","AXON CABLE SAS",235,"SHENMAO SH-6209-RMA",null,null,null,null,null,null,null,null,null,null,null,null,10]
["Quantitification de l'inspection RX","fréquence?","numérique ?","Papier ?",null,null,"Ev non Impacté","NON","NON","NON Solde check liste","non","non","non","REFUSION 7","BERTIN",135,"MULTICORE 6354 MP101 ACP 89.5",null,null,null,null,"nom tech","N° dossiers transfert",null,null,null,null,null,null,11]
["Coupure de piste ?",null,null,"*",null,null,null,null,null,null,null,null,null,"REFUSION 8","BLUWAN",118,null,"AUTO-FLEX",null,null,null,"P CHEVREUX",1,null,null,null,null,null,"unitaire seulement",12]
["dédorage?",null,null,null,null,null,null,null,null,null,null,null,null,"REFUSION 9","CAO CONCEPT",325,null,"CHANDELLE",null,null,null,"G MANCEAU",2,null,null,null,null,null,"unitaire et panélisé",13]
["Etiquetage EOLANE ?",null,null,null,null,null,null,null,null,null,null,null,null,"REFUSION 10","CASSIDIAN SAS",935,null,"SANS",null,null,null,"S BOUET",3,null,null,null,null,null,"panélisé",14]
["Expertise de la nomenclature (CMS/TRAD) ?",null,null,null,null,null,null,null,null,null,null,null,null,"REFUSION 11","CEA GRENOBLE",122,null,null,null,null,null,"E MENGUY",4,null,null,null,null,null,null,15]
["Pannelisation? ",null,4,null,null,null,null,null,null,null,null,null,null,"REFUSION 12","CEA SACLAY",142,null,null,null,null,null,"A PELLON",5,null,null,null,null,null,null,16]
["bordure technique ?",null,null,null,null,null,null,null,null,null,null,null,null,"REFUSION 13","CECP",140,null,null,null,null,null,"N.MEILLERAIS",6,null,null,null,null,null,null,17]
["Matière pour réalisation profil ?",null,"?",null,null,null,null,null,null,null,null,null,null,"REFUSION 14","CEIT SAS",160,null,null,null,null,null,"?",7,null,null,null,null,null,null,18]
["N° outillage :",null,null,"Bdd client",null,null,null,null,null,null,null,null,null,"REFUSION 15","CEIT SAS",460,null,null,null,null,null,"?",8,null,null,null,null,null,null,19]
["Sérigraphie (N° outillage / Qté)",null,null,null,null,null,null,null,null,null,null,null,null,"REFUSION 16","CELESTICA VALENCIA",555,null,null,null,null,null,"?",9,null,null,null,null,null,null,20]
["Report (N° outillage / Qté)",null,null,"BDD EOLANE",null,null,null,null,null,null,null,null,null,"REFUSION 17","CERB",175,null,null,null,null,null,"?",10,null,null,null,null,null,null,21]
["Four (N° outillage / Qté)",null,null,null,null,null,null,null,null,null,null,null,null,"REFUSION 18","CILAS",215,null,null,null,null,null,null,null,null,null,null,null,null,null,22]
["composant / mire près du bord carte",null,null,null,null,null,null,null,null,null,null,null,null,"REFUSION 19","CML INNOVATIVE TECHNOLOGIES",119,null,null,null,null,null,null,null,null,null,null,null,null,null,23]
["Copie nomenclature GDT ds check liste",null,null,"*_",null,null,null,null,null,null,null,null,null,"REFUSION 20","CS SYSTEMES D'INFORMATION",105,null,null,null,null,null,null,null,null,null,null,null,null,null,24]
["impression plan d'équipement",null,null,null,null,null,null,null,null,null,null,null,null,"REFUSION 21","DASSAULT",740,null,null,null,null,null,null,null,null,null,null,null,null,null,25]
["Présence des plans/bom. client (OBSYS)",null,null,"O",null,null,null,null,null,null,null,null,null,"REFUSION 22","DCN EQUIPEMENTS NAVALS",169]
["CAO exploitable",null,null,null,null,null,null,null,null,null,null,null,null,"REFUSION 23","DEGREANE HORIZON",155]
["GERBER unitaire / panelisés",null,null,null,null,null,null,null,null,null,null,null,null,"REFUSION 24","DIGITAL AUDIO INDUSTRIAL SUPPLY ",255]
["Sélectionner un N° pour la FIF",null,null,"  *",null,null,null,null,null,null,null,null,null,"REFUSION 25","E.P. SCHLUMBERGER",230]
["FIF00000",null,null,null,null,null,null,null,null,null,null,null,null,"REFUSION 26","EADS Defence and Security Systems",720]
["Sélectionner un N° pour le PDC",null,null,"  *",null,null,null,null,null,null,null,null,null,"REFUSION 27","EADS GDI SIMULATION",390]
["PDC00000",null,null,null,null,null,null,null,null,null,null,null,null,"REFUSION 28","ECA SINTERS",400]
["Evoluer ind. si évolution dans FI METH-QUAL",null,null,"  *",null,null,null,null,null,null,null,null,null,"REFUSION 29","ECT INDUSTRIES",225]
["Outillage  vague : fichier hauteur pocket",null,null,null,null,null,null,null,null,null,null,null,null,"REFUSION 30","ELECTRONIQUE CONCEPT",123]
["FACE N°1",null,null,null,null,null,null,null,null,null,null,null,null,"REFUSION 31","ENERTEC-ZODIAC",580]
["FACE N°2",null,null,null,null,null,null,null,null,null,null,null,null,"REFUSION 32","EOLANE COMBREE",240]
["N° profil four  ","N° face ",null,"  *",null,null,null,null,null,null,null,null,null,"REFUSION 33","EOLANE EPIERRE MONTBONNOT",430]
[null,"F1",null,null,null,null,null,null,null,null,null,null,null,"REFUSION 34","EOLANE LES ULIS",505]
["N° profil four  ","N° face ",null,null,null,null,null,null,null,null,null,null,null,"REFUSION 35","EOLANE MAROC",101]
[null,{"$f":"IF($B$26=\"TOP + BOTTOM\",\"F2\",\"\")","v":""},null,null,null,null,null,null,null,null,null,null,null,"REFUSION 36","EOLANE MONTCEAU",820]
["2 - Etape ECRAN SERIGRAPHIE ET COLLE",null,null,3,{"$f":"SUM(E71:E86)","v":0},null,null,null,null,null,null,null,null,"REFUSION 37","EOLANE RONCQ",270]
["Sélection face 1",null,null,null,null,null,null,null,null,null,null,null,null,"REFUSION 38","EOLANE SAINT AGREVE",435]
["Déterminer le besoin d’écran  ",null,null,"*",null,null,null,null,null,null,null,null,null,"REFUSION 39","EOLANE VALENCE",500095]
["ingrédient ",null,null,null,null,null,null,null,null,null,null,null,null,"REFUSION 40","ESTAR",106]
["Sélectionner un N° pour l’écran  face1",null,null,null,null,null,null,null,null,null,null,null,null,"REFUSION 41","ETIENNE LACROIX",365]
["ECR00000",null,null,"*_",null,null,null,null,null,null,null,null,null,"REFUSION 42","EUROPA ELECTRONICS",415]
["Sélection face 2",null,null,null,null,null,null,null,null,null,null,null,null,"REFUSION 43","HAZEMEYER",125]
["Déterminer le besoin d’écran  ",null,null,"*",null,null,null,null,null,null,null,null,null,"REFUSION 44","HELLIOTROP",122]
["ingrédient ",null,null,null,null,null,null,null,null,null,null,null,null,"REFUSION 45","ICE",185]
["Sélectionner un N° pour l’écran  face2",null,null,null,null,null,null,null,null,null,null,null,null,"REFUSION 46","IER",190]
["ECR00000",null,null,"*_",null,null,null,null,null,null,null,null,null,"REFUSION 47","IMTEC",375]
["Imprimer les feuilles de contrôle / étiquettes d’écran",null,null,"_*",null,null,null,null,null,null,null,null,null,"REFUSION 48","INTERTECHNIQUE",840]
[{"$f":"CONCATENATE(\"DA à remettre au MPI par mail  DAMP / COB : \",$F$15)","v":"DA à remettre au MPI par mail  DAMP / COB : MAI"},{"$f":"$F$16","v":448647},{"$f":"$F$17","v":448648},"D.A.",null,null,null,null,null,null,null,null,null,"REFUSION 49","IXSEA BREST",121]
["Démarche cookson 115 euros (DA EOLANE)","à remettre au MPI",null,"  *",null,null,null,null,null,null,null,null,null,"REFUSION 50","JETLINE",167]
["envoi(via site : gerber, plan etc….) inscrire le N° de commande\nfournir le contour carte, gerber panélisé si besoin - \nATTENTION au cps avec du \"stand off\" (essayer over print)",null,null,"_*",null,null,null,null,null,null,null,null,null,"REFUSION 51","LEACH ","195/205"]
["Validation écran (vue miroir- présence mires) ",null,null,null,null,null,null,null,null,null,null,null,null,"REFUSION 52","MATICA",900]
["Sauvegarde GBX de validation sous Obsys",null,null,null,null,null,null,null,null,null,null,null,null,"REFUSION 53","MCB INDUSTRIE",545]
["Réception/contrôle présence écrans",null,null,"*_",null,null,null,null,null,null,null,null,null,"REFUSION 54","MESSIER-BUGATTI",130]
["3-Etape NOMENCLATURE",null,null,3,{"$f":"SUM($E$88:$E$90)","v":0},null,null,null,null,null,null,null,null,"REFUSION 55","MOHICAN",585]
["Copie de nomenclature GDT(traitement cms)",null,null,null,null,null,null,null,null,null,null,null,null,"REFUSION 56","NEURELEC",108]
["Création de la BOM(traitement cms)",null,null,null,null,null,null,null,null,null,null,null,null,"REFUSION 57","NEXTLANE",103]
["Sauvegarder sous le N° de PDCxxxxxxxxx.csv",null,null,"  *",null,null,null,null,null,null,null,null,null,"REFUSION 58","NOVATECH",625]
["4-Etape FABMASTER",null,null,10,{"$f":"SUM($E$92:$E$101)","v":0},null,null,null,null,null,null,null,null,"REFUSION 59","NSE INTEGRATIONS",930]
["Importation CAO en mode TEST ou .FAZ",null,null,null,null,null,null,null,null,null,null,null,null,"REFUSION 60","ORIDAO",22327]
["Importation BOM(check mismatches + cad)",null,null,null,null,null,null,null,null,null,null,null,null,"REFUSION 61","PARC DEPARTEMENTAL",161]
["Création doc. PDC TOP(saisir commentaire)",null,null,null,null,null,null,null,null,null,null,null,null,"REFUSION 62","PECIS",655]
["Création doc. BOTTOM(saisir commentaire)",null,null,null,null,null,null,null,null,null,null,null,null,"REFUSION 63","PRECILEC",575]
["Comparaison PDC avec NOMENCLATURE",null,null,null,null,null,null,null,null,null,null,null,null,"REFUSION 64","QOWISIO",109]
["Modification Shape ROTATE : 270,0,90,180",null,null,null,null,null,null,null,null,null,null,null,null,"REFUSION 65","RATIER-FIGEAC",1800014]
["Process set-up/origins and reference/prog. Generation",null,null,null,null,null,null,null,null,null,null,null,null,"REFUSION 66","R.T INFORMATIQUE ","C."]
["Création/sauvegarde du prog(.asc). TOP ",null,null,"*",null,null,null,null,null,null,null,null,null,"REFUSION 67","R.T INFORMATIQUE ","C."]
["Création/sauvegarde du prog(.asc). BOT ",null,null,null,null,null,null,null,null,null,null,null,null,"REFUSION 68","RATP",900]
["Plan d'inspection RX Fabmaster",null,null,null,null,null,null,null,null,null,null,null,null,"REFUSION 69","REALMECA",600]
["Audit nomenclature / programme",null,null,null,null,null,null,null,null,null,null,null,null,"REFUSION 70","REIMS AVIATION INDUSTRIES",605]
["5-Etape MYPLAN Création",null,null," ",null,null,null,null,null,null,null,null,null,"REFUSION 71","RENAULT AGRICULTURE",220]
["Nouveau produit",null,"non",7,{"$f":"SUM(E105:E112)","v":0},null,null,null,null,null,null,null,null,"REFUSION 72","ROCKWELL COLLINS France",950]
["Importation programme Face 1",{"$f":"IF(C104=\"oui\",(CONCATENATE(B5,\" \",B7,\" \",\"IND:\",B12,\" \",B66)),\"\")","v":""},null,null,null,null,null,null,null,null,null,null,null,"REFUSION 73","S.T.A.E.",860]
["Importation programme Face 2",{"$f":"IF(C104=\"oui\",IF(VALUE(B79),CONCATENATE(B5,\" \",B7,\" \",\"IND:\",B12,\" \",\"F2\"),\" \"),\"\")","v":""},null,null,null,null,null,null,null,null,null,null,null,"REFUSION 74","SAGEM DEFENSE SECURITE",315]
["Contrôle des progs. sous interface web+orientation",null,null,null,null,null,null,null,null,null,null,null,null,"REFUSION 75","SAGEM DEFENSE SECURITE",560]
["Mise en panneau / mire",null,null,null,null,null,null,null,null,null,null,null,null,"REFUSION 76","SAGEM INDUSTRIES",705]
["Création des composants ",null,null,null,null,null,null,null,null,null,null,null,null,"REFUSION 77","SAGEM SA",700]
["Création des boitiers ",null,null,null,null,null,null,null,null,null,null,null,null,"REFUSION 78","SCHLUMBERGER",925]
["Création de la kit list (optimisation myplan) + optimisat° manuelle",null,null,null,null,null,null,null,null,null,null,null,null,"REFUSION 79","SCHLUMBERGER VECTOR",920]
["Nom de la kit liste machine",{"$f":"IF(C104=\"oui\",(CONCATENATE(B5,\" \",B7,\" \",\"IND:\",B12)),\"\")","v":""},null,null,null,null,null,null,null,null,null,null,null,"REFUSION 80","SDEL",253]
[null,null,null,null,null,null,null,null,null,null,null,null,null,"REFUSION 81","SELHA",245]
["Si EVOL",null,"oui",8,{"$f":"SUM(E115:E123)","v":0},null,null,null,null,null,null,null,null,"REFUSION 82","SERCEL",260]
["Copie du prog Face 1",{"$f":"IF($C$114=\"oui\",(CONCATENATE($B$5,\" \",$B$7,\" \",\"IND:\",$B$12,\" \",$B$66)),\"\")","v":"  IND: F1"},null,null,null,null,null,null,null,null,null,null,null,"REFUSION 83","SERCEL",265]
["Copie du prog Face 2",{"$f":"IF($C$114=\"oui\",IF(ISTEXT($B$68),CONCATENATE($B$5,\" \",$B$7,\" \",\"IND:\",$B$12,\" \",\"F2\"),\" \"),\"\")","v":"  IND: F2"},null,null,null,null,null,null,null,null,null,null,null,"REFUSION 87","SOLECTRON",275]
["Copie et renomme Kit liste à l'ind sup",{"$f":"IF($C$114=\"oui\",(CONCATENATE($B$5,\" \",$B$7,\" \",\"IND:\",$B$12)),\"\")","v":"  IND:"},null,null,null,null,null,null,null,null,null,null,null,"REFUSION 84","SERMA COIGNIERES",791]
["Création boitier FACE 1 :",null,"OK","OK",null,null,null,null,null,null,null,null,null,"REFUSION 85","SERMA CORNEBARRIEU",790]
["Création article FACE 1 :",null,"OK","OK",null,null,null,null,null,null,null,null,null,"REFUSION 86","SNECMA SERVICE",420]
["Orientation FACE 1 :",null,"OK","OK",null,null,null,null,null,null,null,null,null,"REFUSION 87","SOLECTRON",275]
["Mise en panneau FACE1 :",null,"N/A","N/A",null,null,null,null,null,null,null,null,null,"REFUSION 88","SPHEREA"]
["création mire FACE1 :",null,"N/A","N/A",null,null,null,null,null,null,null,null,null,"REFUSION 89","TAS BREST",620]
["Création plan de chargement",{"$f":"IF($C$104=\"oui\",$B$112,$B$117)","v":"  IND:"},null,null,null,null,null,null,null,null,null,null,null,"REFUSION 90","TAS PESSAC",650]
[null,null,null,null,null,null,null,null,null,null,null,null,null,"REFUSION 91","TDM INGENIERIE",117]
[null,null,null,null,null,null,null,null,null,null,null,null,null,"REFUSION 92","TED VELIZY",805]
["6-Xpress",null,null,1,{"$f":"SUM(E127:E127)","v":0},null,null,null,null,null,null,null,null,"REFUSION 93","TEST EUROP",465]
["création de programme",null,null,"OK",null,null,null,null,null,null,null,null,null,"REFUSION 94","THALES  MOIRANS",800]
["7-Etape DOSSIER",null,null,5,{"$f":"SUM($E$129:$E$132)","v":0},null,null,null,null,null,null,null,null,"REFUSION 95","THALES  AES",370]
["collage spécial mise en forme sur toutes les feuilles",null,null,null,null,null,null,null,null,null,null,null,null,"REFUSION 96","THALES AVIONICS",300]
["Mise en forme kit List (traitement cms)",null,null,null,null,null,null,null,null,null,null,null,null,"REFUSION 97","THALES AVIONICS",490]
["Création de la FIF (remplissage des onglets Op CMS)",null,null,null,null,null,null,null,null,null,null,null,null,"REFUSION 98","THALES BRIVES",640]
["Enregistrer la FIF ",null,null,null,null,null,null,null,null,null,null,null,null,"REFUSION 99","THALES LAVAL",237]
["8-Etape OBSYS import",null,null,2,{"$f":"SUM($E$134:$E$135)","v":0},null,null,null,null,null,null,null,null,"REFUSION 100","THALES CHOLET",470]
["importer les PDCs/datasheet cps dans 5-docs methode",null,null,null,null,null,null,null,null,null,null,null,null,"REFUSION 101","THALES COLOMBES",810]
["importer les feuilles de production (00XX)",null,null,null,null,null,null,null,null,null,null,null,null,"REFUSION 102","THALES TRANSPORTATION SYSTEMS SA",730]
["9-Etape OBSYS validation",null,null,2,{"$f":"SUM(E137:E138)","v":0},null,null,null,null,null,null,null,null,"REFUSION 103","THOMSON TELEVISION ANGERS",960]
["Transfert dans Obsys",null,null,null,null,null,null,null,null,null,null,null,null,"REFUSION 104","TOSA"]
["Valider message OBSYSS",null,null,null,null,null,null,null,null,null,null,null,null,"REFUSION 105","THALES HELLAS",651]
["10-Etape Calcul temps de gamme",null,null,6,{"$f":"SUM($E$140:$E$146)","v":0},null,null,null,null,null,null,null,null,"REFUSION 106","THALES SECURITY SYSTEMS",850]
["Relever tps gamme (traitement cms) :",null,null,"  *",null,null,null,null,null,null,null,null,null,"REFUSION 107","THALES SYSTEMES AEROPORTES",680]
["Etiquetage (A800_003)","0011  Etiquettage",0.08,1E-3,null,11,null,null,null,null,{"$f":"CONCATENATE(\"00\",$F141)","v":"0011"},null,null,"REFUSION 108","TMI",610]
["Coupure de piste (A820_002)","0015 Coupure de pistes",null,null,null,15,null,null,null,null,"0015",null,null,"REFUSION 109","TUS BREST",530]
["Etuvage  (820_001)","0019 Etuvage",0.17,null,null,19,null,null,null,null,"0019",null,null,"REFUSION 110","TUS SOPHIA",690]
["Chargement (A820_003)","0020  Chargement",{"$f":"IF(ISNUMBER('Tps MYDATA'!$E$3),'Tps MYDATA'!$G$3,IF(ISNUMBER('Tps EUROPLACER'!$E$3),'Tps EUROPLACER'!$G$3,\"0\"))","v":"0"},null,null,20,null,null,null,null,"0020",null,null,"REFUSION 111","VALEO ",972]
["Cms (A820_004)","0030 CMS Mydata",{"$f":"IF(ISNUMBER('Tps MYDATA'!$E$7),'Tps MYDATA'!$G$7,IF(ISNUMBER('Tps EUROPLACER'!$E$7),'Tps EUROPLACER'!$G$7,\"0\"))","v":"0"},{"$f":"IF(ISNUMBER('Tps MYDATA'!$E$8),'Tps MYDATA'!$G$8,IF(ISNUMBER('Tps EUROPLACER'!$E$8),'Tps EUROPLACER'!$G$8,\"0\"))","v":"0"},null,30,null,null,null,null,"0030",null,null,"REFUSION 112","VALEO ENGINE END ELECTRICAL SYSTEMS",973]
["Retouche (A820_006)","0040 Contrôle Retouche CMS",{"$f":"IF(ISNUMBER('Tps MYDATA'!$E$13),'Tps MYDATA'!$G$13,IF(ISNUMBER('Tps EUROPLACER'!$E$13),'Tps EUROPLACER'!$G$13,\"0\"))","v":"0"},{"$f":"IF(ISNUMBER('Tps MYDATA'!$E$13),'Tps MYDATA'!$G$14,IF(ISNUMBER('Tps EUROPLACER'!$E$13),'Tps EUROPLACER'!$G$14,\"0\"))","v":"0"},null,40,null,null,null,null,"0040",null,null,"REFUSION 113","VALEO SYSTEMES CONTROLE MOTEUR",970]
["RX (A820_005)","0050 RX",{"$f":"IF(ISNUMBER('Tps MYDATA'!$E$17),'Tps MYDATA'!$G$17,IF(ISNUMBER('Tps EUROPLACER'!$E$17),'Tps EUROPLACER'!$G$17,\"0\"))","v":"0"},{"$f":"IF(ISNUMBER('Tps MYDATA'!$E$17),'Tps MYDATA'!$G$18,IF(ISNUMBER('Tps EUROPLACER'!$E$17),'Tps EUROPLACER'!$G$18,\"0\"))","v":"0"},null,50,null,null,null,null,"0050",null,null,"REFUSION 114","VECTRA",141]
["11-Etape SAP",null,null,1,{"$f":"SUM(E149:E149)","v":0},null,null,null,null,null,null,null,null,"REFUSION 115","VENDOME",350]
["tps chargement,cms,retouche, RX dans SAP",null,null,null,null,null,null,null,null,null,null,null,null,"REFUSION 116","VISION SYSTEMS AERONAUTICS",975]
["12-validation charge et évol",null,null,2,{"$f":"SUM(E151:E152)","v":0},null,null,null,null,null,null,null,null,"REFUSION 117","VISION SYSTEMS AUTOMOTIVE",965]
["Saisir temps passé ",null,null,null,null,null,null,null,null,null,null,null,null,"REFUSION 118","VIVERIS",885]
["Renseigner le logiciel de gestion des évolutions",null,null,null,null,null,null,null,null,null,null,null,null,null,"VOGEL FRANCE SAS",880]
["13- Modifications dossier après production",null,null,3,{"$f":"SUM(E154:E156)","v":0},null,null,null,null,null,null,null,null,null,"XEROX",2400100]
["Enlever le logo nouveau produit obsys",null,null,"  *",null,null,null,null,null,null,null,null,null,null,"ZODIAC",161]
["MAJ dossier Obsys",null,null,null,null,null,null,null,null,null,null,null,null,null,"SPHEREA"]
["MAJ temps de gamme SAP : F1 (sec) / F2 (sec)",null,null,"*"]
["14- Etape Finale",null,null,1,{"$f":"SUM(E158)","v":0}]
["Sauvegarde du dossier dans \"soldé\" après debug machine"]
["COMMENTAIRE"]
["Remarque :\n\nSuite à la mise en place de la page de suivi des indices,\nCopier le(s) programme(s) DEK et le(s) renommer comme suit :\n-"]
[]
[]
[]
[]
[]
[]
[]
[]
[]
[]
["Pas d'impact ê"]
["15-Pas d'impact CMS",null,null,11,{"$f":"SUM($E$173:$E$187)","v":0}]
["analyse évolution",null,null,"*",null,null,null,null,null,"BILAN CHECK LIST"]
["Sauvegarde FIF dans l'historique",null,null," *",null,null,null,null,null,null,"Etape:"]
["Sauvegarde PDC dans l'historique",null,null,"  *",null,null,null,null,null,15,{"$f":"IF($E$172>=$D$172,1,($E$172/$D$172*100))","v":0}]
["Sélectionner un N° pour la FIF",null,null,"  *",null,null,null,null,null,16,{"$f":"IF($E$188>=$D$188,1,($E$188/$D$188*100))","v":0}]
["FIF00000",null,null,null,null,null,null,null,null,17,{"$f":"IF($E$199>=$D$199,1,($E$199/$D$199*100))","v":0}]
["Sélectionner un N° pour le PDC",null,null,"  *",null,null,null,null,null,18,{"$f":"IF($E$209>=$D$209,1,($E$209/$D$209*100))","v":0}]
["PDC00000",null,null,null,null,null,null,null,null,19,{"$f":"IF($E$212>=$D$212,1,($E$212/$D$212*100))","v":0}]
["Evoluer ind. si évolution dans FI METH-QUAL",null,null,"  *"]
["Changer les bandeaux des feuilles de prod avec la grenouille"]
["Ajout des op étiquettage et étuvage"]
["modification Op CMS"]
["Modification Op contrôle"]
["modification synoptique"]
["Transfert dans Obsys"]
["Valider message OBSYSS"]
["2 - Etape ECRAN SERIGRAPHIE ET COLLE",null,null,3,{"$f":"SUM(E190:E205)","v":0}]
["Sélection face 1"]
["Déterminer le besoin d’écran  ",null,null,"*"]
["ingrédient "]
["Sélectionner un N° pour l’écran  face1"]
["ECR00000",null,null,"*_"]
["Sélection face 2"]
["Déterminer le besoin d’écran  ",null,null,"*"]
["ingrédient "]
["Sélectionner un N° pour l’écran  face2"]
["ECR00000",null,null,"*_"]
["16-Etape SAP",null,null,6,{"$f":"SUM($E$200:$E$208)","v":0}]
["Relever tps gamme (traitement cms) :",null,null,"  *"]
["Etiquetage (A800_003)","0011  Etiquettage",0.08,1E-3]
["Coupure de piste (A820_002)","0015 Coupure de pistes"]
["Etuvage  (820_001)","0019 Etuvage",0.17]
["Chargement (A820_003)","0020  Chargement",{"$f":"IF(ISNUMBER('[1]Tps MYDATA'!$E$3),'[1]Tps MYDATA'!$G$3,IF(ISNUMBER('[1]Tps EUROPLACER'!$E$3),'[1]Tps EUROPLACER'!$G$3,\"0\"))","v":8.3333999999999991E-2}]
["Cms (A820_004)","0030 CMS Mydata",{"$f":"IF(ISNUMBER('[1]Tps MYDATA'!$E$7),'[1]Tps MYDATA'!$G$7,IF(ISNUMBER('[1]Tps EUROPLACER'!$E$7),'[1]Tps EUROPLACER'!$G$7,\"0\"))","v":5.0003999999999993E-2},{"$f":"IF(ISNUMBER('[1]Tps MYDATA'!$E$8),'[1]Tps MYDATA'!$G$8,IF(ISNUMBER('[1]Tps EUROPLACER'!$E$8),'[1]Tps EUROPLACER'!$G$8,\"0\"))","v":{"$error":"#DIV/0!"}}]
["Retouche (A820_006)","0040 Contrôle Retouche CMS",{"$f":"IF(ISNUMBER('[1]Tps MYDATA'!$E$13),'[1]Tps MYDATA'!$G$13,IF(ISNUMBER('[1]Tps EUROPLACER'!$E$13),'[1]Tps EUROPLACER'!$G$13,\"0\"))","v":0.25},{"$f":"IF(ISNUMBER('[1]Tps MYDATA'!$E$13),'[1]Tps MYDATA'!$G$14,IF(ISNUMBER('[1]Tps EUROPLACER'!$E$13),'[1]Tps EUROPLACER'!$G$14,\"0\"))","v":0}]
["RX (A820_005)","0050 RX",{"$f":"IF(ISNUMBER('[1]Tps MYDATA'!$E$17),'[1]Tps MYDATA'!$G$17,IF(ISNUMBER('[1]Tps EUROPLACER'!$E$17),'[1]Tps EUROPLACER'!$G$17,\"0\"))","v":0.2},{"$f":"IF(ISNUMBER('[1]Tps MYDATA'!$E$17),'[1]Tps MYDATA'!$G$18,IF(ISNUMBER('[1]Tps EUROPLACER'!$E$17),'[1]Tps EUROPLACER'!$G$18,\"0\"))","v":{"$error":"#DIV/0!"}}]
["tps chargement,cms,retouche, RX dans SAP"]
["17-validation charge et évol",null,null,2,{"$f":"SUM($E$210:$E$211)","v":0}]
["Saisir temps passé "]
["Renseigner le logiciel de gestion des évolutions"]
["18- Etape Finale",null,null,1,{"$f":"SUM($E$213)","v":0}]
["Sauvegarde du dossier dans \"soldé\" après debug machine"]
["COMMENTAIRE"]
["Remarque :\n\nSuite à la mise en place de la page de suivi des indices,\nCopier le(s) programme(s) DEK et le(s) renommer comme suit :\n-"]

{"sheet":"chemise Philippe","index":14,"n_rows":64,"n_cols":10,"rows_kept":64,"cut":false,"hidden":false,"merged":[[8,2,8,4],[8,6,8,9],[9,2,9,4],[9,6,9,9],[10,2,10,4],[10,6,10,9],[4,8,4,9],[5,2,5,4],[5,6,5,9],[6,2,6,4],[7,2,7,4],[7,6,7,9],[4,1,4,4],[0,2,0,5],[0,6,0,9],[2,5,2,7],[2,8,2,9],[3,2,3,4],[3,8,3,9],[11,2,11,4],[11,6,11,9],[13,5,13,7],[14,5,14,8],[15,5,15,7],[24,1,24,2],[23,5,23,8],[26,6,26,8],[42,4,43,4],[38,3,39,3],[38,4,39,4],[27,6,27,8],[34,6,34,8],[32,1,32,2],[34,1,34,2],[24,5,24,8],[27,1,27,2],[53,4,54,4],[55,1,55,3],[55,5,55,8],[56,1,56,3],[56,5,56,8],[61,1,61,4],[63,1,70,9],[59,2,59,3],[36,5,36,8],[36,3,37,3],[36,4,37,4],[44,4,45,4],[42,3,45,3],[57,1,57,3],[57,5,57,8],[47,3,50,3],[47,4,48,4],[49,4,50,4],[49,5,49,8],[51,3,54,3],[51,4,52,4]]}
[null,null,"CHECK-LIST DOSSIER CMS :\nversion 2.3",null,null,null,{"$f":"IF('LIEN CMS'!$B$21=\"\",\"\",'LIEN CMS'!$B$21)","v":""}]
[]
[null,"Nom client / N°",null,null,null,{"$f":"IF('LIEN CMS'!$B$5=\"\",\"\",'LIEN CMS'!$B$5)","v":""},null,null,"vers 1.5"]
[null,"Date : ",{"$f":"'LIEN CMS'!$B$3","v":"2017-05-24"},null,null,"Ind. Programme :",{"$f":"IF('LIEN CMS'!$B$12=\"\",\"\",'LIEN CMS'!$B$12)","v":""},"N° OF :",{"$f":"IF('LIEN CMS'!$B$15=\"\",\"\",'LIEN CMS'!$B$15)","v":""}]
[null,{"$f":"'LIEN CMS'!$E$1","v":""},null,null,null,"Ind. Nom. Client :",{"$f":"IF('LIEN CMS'!$B$11=\"\",\"\",'LIEN CMS'!$B$11)","v":""},"Qté :"]
[null,"Nom de la carte : ",{"$f":"IF('LIEN CMS'!$B$9=\"\",\"\",'LIEN CMS'!$B$9)","v":""},null,null,"Process :",{"$f":"IF('LIEN CMS'!$B$22=\"\",\"\",'LIEN CMS'!$B$22)","v":""}]
[null,"N°évolution : ",{"$f":"IF('LIEN CMS'!$B$10=\"\",\"\",'LIEN CMS'!$B$10)","v":""},null,null,"AC/Long/larg/épais. :",{"$f":"IF('LIEN CMS'!$C$23=\"\",\"\",'LIEN CMS'!$C$23)","v":""},{"$f":"IF('LIEN CMS'!$B$14=\"\",\"\",'LIEN CMS'!$B$14)","v":""},{"$f":"IF('LIEN CMS'!$C$14=\"\",\"\",'LIEN CMS'!$C$14)","v":""},{"$f":"IF('LIEN CMS'!$D$14=\"\",\"\",'LIEN CMS'!$D$14)","v":""}]
[null,"Date de prod prévue :",{"$f":"'LIEN CMS'!$B$4","v":"00:00:00"},null,null,"nature pcb :",{"$f":"IF('LIEN CMS'!$B$24=\"\",\"\",'LIEN CMS'!$B$24)","v":""}]
[null,"N° de modif. SAP : ",{"$f":"IF('LIEN CMS'!$B$13=\"\",\"\",'LIEN CMS'!$B$13)","v":""},null,null,"Finition :",{"$f":"IF('LIEN CMS'!$B$25=\"\",\"\",'LIEN CMS'!$B$25)","v":""}]
[null,"N° de DEVIS :",{"$f":"IF('LIEN CMS'!$B$17=\"\",\"\",'LIEN CMS'!$B$17)","v":""},null,null,"Nb de face :",{"$f":"IF('LIEN CMS'!$B$27=\"\",\"\",'LIEN CMS'!$B$27)","v":""}]
[null,"Méthode générale :",{"$f":"IF('LIEN CMS'!$B$19=\"\",\"\",'LIEN CMS'!$B$19)","v":""},null,null,"Ligne :",{"$f":"IF('LIEN CMS'!$B$21=\"\",\"\",'LIEN CMS'!$B$21)","v":""}]
[null,"MPI :",{"$f":"IF('LIEN CMS'!$B$18=\"\",\"\",'LIEN CMS'!$B$18)","v":""},null,null,"Technicien CMS :",{"$f":"'LIEN CMS'!$B$20","v":0}]
[]
[null,"1-Etape DOCUMENTATION"]
[null,"revue méthode /  lancement",null,{"$f":"IF('LIEN CMS'!$B$32=\"\",\"\",'LIEN CMS'!$B$32)","v":""},{"$f":"IF('LIEN CMS'!$E32=1,\"OK\",IF('LIEN CMS'!$E32=2,\"NOK\",IF('LIEN CMS'!$E32=\"\",\"N/A\",\"\")))","v":"N/A"},"Création de la BOM CMS",null,null,null,{"$f":"IF('LIEN CMS'!$E89=1,\"OK\",IF('LIEN CMS'!$E89=2,\"NOK\",IF('LIEN CMS'!$E89=\"\",\"N/A\",\"\")))","v":"N/A"}]
[null,"inserer le bandeau OBSYS sur chaque feuille",null,{"$f":"IF('LIEN CMS'!$E$129=1,\"OK\",\"N/A\")","v":"N/A"},{"$f":"IF('LIEN CMS'!$E129=1,\"OK\",IF('LIEN CMS'!$E129=2,\"NOK\",IF('LIEN CMS'!$E129=\"\",\"N/A\",\"\")))","v":"N/A"},"enregister le fichier sous le N° de PDCxxxx.csv (x:fabuser/bom)",null,null,"  *",{"$f":"IF('LIEN CMS'!$E90=1,\"OK\",IF('LIEN CMS'!$E90=2,\"NOK\",IF('LIEN CMS'!$E90=\"\",\"N/A\",\"\")))","v":"N/A"}]
[null,"impression évolution",null,{"$f":"IF('LIEN CMS'!$B$30=\"\",\"\",'LIEN CMS'!$B$30)","v":""},{"$f":"IF('LIEN CMS'!$E30=1,\"OK\",IF('LIEN CMS'!$E30=2,\"NOK\",IF('LIEN CMS'!$E30=\"\",\"N/A\",\"\")))","v":"N/A"},"4-Etape FABMASTER"]
[null,"rapport d'industrialisation",null,{"$f":"IF('LIEN CMS'!$B$33=\"\",\"\",'LIEN CMS'!$B$33)","v":""},{"$f":"IF('LIEN CMS'!$E33=1,\"OK\",IF('LIEN CMS'!$E33=2,\"NOK\",IF('LIEN CMS'!$E33=\"\",\"N/A\",\"\")))","v":"N/A"},"Importation CAO en mode TEST ou .FAZ",null,null,null,{"$f":"IF('LIEN CMS'!$E92=1,\"OK\",IF('LIEN CMS'!$E92=2,\"NOK\",IF('LIEN CMS'!$E92=\"\",\"N/A\",\"\")))","v":"N/A"}]
[null,"inspection RX avec FABMASTER ",null,{"$f":"IF('LIEN CMS'!$C$34=\"\",\"\",'LIEN CMS'!$C$34)","v":""},{"$f":"IF('LIEN CMS'!$E34=1,\"OK\",IF('LIEN CMS'!$E34=2,\"NOK\",IF('LIEN CMS'!$E34=\"\",\"N/A\",\"\")))","v":"N/A"},"Création doc RX",null,null,null,{"$f":"IF('LIEN CMS'!$E93=1,\"OK\",IF('LIEN CMS'!$E93=2,\"NOK\",IF('LIEN CMS'!$E93=\"\",\"N/A\",\"\")))","v":"N/A"}]
[null,"Taux void maxi cumulé BGA",{"$f":"'LIEN CMS'!$B$34","v":0},{"$f":"'LIEN CMS'!$B$35","v":{"$error":"#N/A"}},{"$f":"IF('LIEN CMS'!$E35=1,\"OK\",IF('LIEN CMS'!$E35=2,\"NOK\",IF('LIEN CMS'!$E35=\"\",\"N/A\",\"\")))","v":"N/A"},"Création doc PDC",null,null,null,{"$f":"IF('LIEN CMS'!$E94=1,\"OK\",IF('LIEN CMS'!$E94=2,\"NOK\",IF('LIEN CMS'!$E94=\"\",\"N/A\",\"\")))","v":"N/A"}]
[null,"Taux void max unitaire BGA",{"$f":"C20","v":0},{"$f":"'LIEN CMS'!$B$36","v":{"$error":"#N/A"}},{"$f":"IF('LIEN CMS'!$E36=1,\"OK\",IF('LIEN CMS'!$E36=2,\"NOK\",IF('LIEN CMS'!$E36=\"\",\"N/A\",\"\")))","v":"N/A"},"Validation  de la BOM (validé show bom et mismatch)",null,null,null,{"$f":"IF('LIEN CMS'!$E93=1,\"OK\",IF('LIEN CMS'!$E93=2,\"NOK\",IF('LIEN CMS'!$E93=\"\",\"N/A\",\"\")))","v":"N/A"}]
[null,"Taux void maxi cumulé AUTRE",{"$f":"C20","v":0},{"$f":"'LIEN CMS'!$B$37","v":{"$error":"#N/A"}},{"$f":"IF('LIEN CMS'!$E37=1,\"OK\",IF('LIEN CMS'!$E37=2,\"NOK\",IF('LIEN CMS'!$E37=\"\",\"N/A\",\"\")))","v":"N/A"},"Shape ROTATE :     EURPL600  90,0,270,180          MYDATA  270,0,90,180",null,null,null,{"$f":"IF('LIEN CMS'!$E97=1,\"OK\",IF('LIEN CMS'!$E97=2,\"NOK\",IF('LIEN CMS'!$E97=\"\",\"N/A\",\"\")))","v":"N/A"}]
[null,"Taux void max unitaire AUTRE",{"$f":"C20","v":0},{"$f":"'LIEN CMS'!$B$38","v":{"$error":"#N/A"}},{"$f":"IF('LIEN CMS'!$E38=1,\"OK\",IF('LIEN CMS'!$E38=2,\"NOK\",IF('LIEN CMS'!$E38=\"\",\"N/A\",\"\")))","v":"N/A"},"Process set-up/origins and reference/prog. Generation",null,null,null,{"$f":"IF('LIEN CMS'!$E98=1,\"OK\",IF('LIEN CMS'!$E98=2,\"NOK\",IF('LIEN CMS'!$E98=\"\",\"N/A\",\"\")))","v":"N/A"}]
[null,{"$f":"'LIEN CMS'!$B$39","v":"fréquence?"},{"$f":"'LIEN CMS'!$C$39","v":"numérique ?"},{"$f":"'LIEN CMS'!$D$39","v":"Papier ?"},{"$f":"IF('LIEN CMS'!$E39=1,\"OK\",IF('LIEN CMS'!$E39=2,\"NOK\",IF('LIEN CMS'!$E39=\"\",\"N/A\",\"\")))","v":"N/A"},"Création et enregistrement prog face 1 (.txt ou .asc)",null,null,null,{"$f":"IF('LIEN CMS'!$E99=1,\"OK\",IF('LIEN CMS'!$E99=2,\"NOK\",IF('LIEN CMS'!$E99=\"\",\"N/A\",\"\")))","v":"N/A"}]
[null,"Etiquetage eolane",null,{"$f":"IF('LIEN CMS'!$B$42=\"\",\"\",'LIEN CMS'!$B$42)","v":""},{"$f":"IF('LIEN CMS'!$E42=1,\"OK\",IF('LIEN CMS'!$E42=2,\"NOK\",IF('LIEN CMS'!$E42=\"\",\"N/A\",\"\")))","v":"N/A"},"Création et enregistrement prog face 2 (.txt ou .asc)",null,null,null,{"$f":"IF('LIEN CMS'!$E100=1,\"OK\",IF('LIEN CMS'!$E100=2,\"NOK\",IF('LIEN CMS'!$E100=\"\",\"N/A\",\"\")))","v":"N/A"}]
[null,"Carte GOLDEN UNIT client",null,{"$f":"IF('LIEN CMS'!$B$31=\"\",\"\",'LIEN CMS'!$B$31)","v":""},{"$f":"IF('LIEN CMS'!$E31=1,\"OK\",IF('LIEN CMS'!$E31=2,\"NOK\",IF('LIEN CMS'!$E31=\"\",\"N/A\",\"\")))","v":"N/A"},"5-Etape EUROPLACER - Poste de programmation",null,null," "]
[null,"Mise en panneau",{"$f":"IF('LIEN CMS'!$C$44=\"\",\"\",'LIEN CMS'!$C$44)","v":4},{"$f":"IF('LIEN CMS'!$B$44=\"\",\"\",'LIEN CMS'!$B$44)","v":""},{"$f":"IF('LIEN CMS'!$E44=1,\"OK\",IF('LIEN CMS'!$E44=2,\"NOK\",IF('LIEN CMS'!$E44=\"\",\"N/A\",\"\")))","v":"N/A"},"Importation programme FACE1 ",{"$f":"IF('LIEN CMS'!$B$105=\"\",'LIEN CMS'!$B$115,'LIEN CMS'!$B$105)","v":"  IND: F1"},null,null,{"$f":"IF('LIEN CMS'!$C$104=\"oui\",IF('LIEN CMS'!$E105=1,\"OK\",IF('LIEN CMS'!$E105=2,\"NOK\",IF('LIEN CMS'!$E105=\"\",\"N/A\",\"\"))),IF('LIEN CMS'!$E115=1,\"OK\",IF('LIEN CMS'!$E115=2,\"NOK\",IF('LIEN CMS'!$E115=\"\",\"N/A\",\"\"))))","v":"N/A"}]
[null,"Matière pour réalisation profil",null,{"$f":"IF('LIEN CMS'!$B$46=\"\",\"\",'LIEN CMS'!$B$46)","v":""},{"$f":"IF('LIEN CMS'!$E46=1,\"OK\",IF('LIEN CMS'!$E46=2,\"NOK\",IF('LIEN CMS'!$E46=\"\",\"N/A\",\"\")))","v":"N/A"},"Importation programme FACE2 ",{"$f":"IF('LIEN CMS'!$B$106=\"\",'LIEN CMS'!$B$116,'LIEN CMS'!$B$106)","v":"  IND: F2"},null,null,{"$f":"IF('LIEN CMS'!$C$104=\"oui\",IF('LIEN CMS'!$E106=1,\"OK\",IF('LIEN CMS'!$E106=2,\"NOK\",IF('LIEN CMS'!$E106=\"\",\"N/A\",\"\"))),IF('LIEN CMS'!$E116=1,\"OK\",IF('LIEN CMS'!$E116=2,\"NOK\",IF('LIEN CMS'!$E116=\"\",\"N/A\",\"\"))))","v":"N/A"}]
[null,"N° outillage :",{"$f":"IF('LIEN CMS'!$B$47=\"\",\"\",'LIEN CMS'!$B$47)","v":""},"*",{"$f":"IF('LIEN CMS'!$E47=1,\"OK\",IF('LIEN CMS'!$E47=2,\"NOK\",IF('LIEN CMS'!$E47=\"\",\"N/A\",\"\")))","v":"N/A"},"Audit Nomenclature / programme",null,null,null,{"$f":"IF('LIEN CMS'!$E102=1,\"OK\",IF('LIEN CMS'!$E102=2,\"NOK\",IF('LIEN CMS'!$E102=\"\",\"N/A\",\"\")))","v":"N/A"}]
[null,"Sérigraphie ( N° outil / Qte )",null,null,{"$f":"IF('LIEN CMS'!$E48=1,\"OK\",IF('LIEN CMS'!$E48=2,\"NOK\",IF('LIEN CMS'!$E48=\"\",\"N/A\",\"\")))","v":"N/A"},"Création boitier FACE 1 :",{"$f":"'LIEN CMS'!$C$118","v":"OK"},"Création boitier FACE 2 :",{"$f":"'LIEN CMS'!$D$118","v":"OK"},{"$f":"IF('LIEN CMS'!$E118=1,\"OK\",IF('LIEN CMS'!$E118=2,\"NOK\",IF('LIEN CMS'!$E118=\"\",\"N/A\",\"\")))","v":"N/A"}]
[null,"Report ( N° outil / Qte )",null,null,{"$f":"IF('LIEN CMS'!$E49=1,\"OK\",IF('LIEN CMS'!$E49=2,\"NOK\",IF('LIEN CMS'!$E49=\"\",\"N/A\",\"\")))","v":"N/A"},"Création article FACE 1 :",{"$f":"'LIEN CMS'!$C$119","v":"OK"},"Création article FACE 2 :",{"$f":"'LIEN CMS'!$D$119","v":"OK"},{"$f":"IF('LIEN CMS'!$E119=1,\"OK\",IF('LIEN CMS'!$E119=2,\"NOK\",IF('LIEN CMS'!$E119=\"\",\"N/A\",\"\")))","v":"N/A"}]
[null,"Four ( N° outil / Qte )",null,null,{"$f":"IF('LIEN CMS'!$E50=1,\"OK\",IF('LIEN CMS'!$E50=2,\"NOK\",IF('LIEN CMS'!$E50=\"\",\"N/A\",\"\")))","v":"N/A"},"Orientation FACE 1 :",{"$f":"'LIEN CMS'!$C$120","v":"OK"},"Orientation FACE 2 :",{"$f":"'LIEN CMS'!$D$120","v":"OK"},{"$f":"IF('LIEN CMS'!$E120=1,\"OK\",IF('LIEN CMS'!$E120=2,\"NOK\",IF('LIEN CMS'!$E120=\"\",\"N/A\",\"\")))","v":"N/A"}]
[null,"composant ou / et mire près du bord carte",null,{"$f":"IF('LIEN CMS'!$B$51=\"\",\"\",'LIEN CMS'!$B$51)","v":""},{"$f":"IF('LIEN CMS'!$E51=1,\"OK\",IF('LIEN CMS'!$E51=2,\"NOK\",IF('LIEN CMS'!$E51=\"\",\"N/A\",\"\")))","v":"N/A"},"Mise en panneau FACE1 :",{"$f":"'LIEN CMS'!$C$121","v":"N/A"},"Mise en panneau FACE 2 :",{"$f":"'LIEN CMS'!$D$121","v":"N/A"},{"$f":"IF('LIEN CMS'!$E121=1,\"OK\",IF('LIEN CMS'!$E121=2,\"NOK\",IF('LIEN CMS'!$E121=\"\",\"N/A\",\"\")))","v":"N/A"}]
[null,"Expertise de la nomenclature (CMS/TRAD)",null,{"$f":"IF('LIEN CMS'!$B$43=\"\",\"\",'LIEN CMS'!$B$43)","v":""},{"$f":"IF('LIEN CMS'!$E43=1,\"OK\",IF('LIEN CMS'!$E43=2,\"NOK\",IF('LIEN CMS'!$E43=\"\",\"N/A\",\"\")))","v":"N/A"},"création mire FACE1 :",{"$f":"'LIEN CMS'!$C$122","v":"N/A"},"création mire FACE 2 :",{"$f":"'LIEN CMS'!$D$122","v":"N/A"},{"$f":"IF('LIEN CMS'!$E122=1,\"OK\",IF('LIEN CMS'!$E122=2,\"NOK\",IF('LIEN CMS'!$E122=\"\",\"N/A\",\"\")))","v":"N/A"}]
[null,"CAO exploitable",null,{"$f":"IF('LIEN CMS'!$B$55=\"\",\"\",'LIEN CMS'!$B$55)","v":""},{"$f":"IF('LIEN CMS'!$E55=1,\"OK\",IF('LIEN CMS'!$E55=2,\"NOK\",IF('LIEN CMS'!$E55=\"\",\"N/A\",\"\")))","v":"N/A"},"Création plan de chargement",{"$f":"'LIEN CMS'!$B$117","v":"  IND:"},null,null,{"$f":"IF('LIEN CMS'!$E123=1,\"OK\",IF('LIEN CMS'!$E123=2,\"NOK\",IF('LIEN CMS'!$E123=\"\",\"N/A\",\"\")))","v":"N/A"}]
[null,"GERBER (   unitaire   /   panélisé  )",{"$f":"IF('LIEN CMS'!$B$56=\"unitaire seulement\",\"oui\",IF('LIEN CMS'!$B$56=\"unitaire et panélisé\",\"oui\",\"N/A\"))","v":"N/A"},{"$f":"IF('LIEN CMS'!$B$56=\"panélisé\",\"oui\",IF('LIEN CMS'!$B$56=\"unitaire et panélisé\",\"oui\",\"N/A\"))","v":"N/A"},{"$f":"IF('LIEN CMS'!$E56=1,\"OK\",IF('LIEN CMS'!$E56=2,\"NOK\",IF('LIEN CMS'!$E56=\"\",\"N/A\",\"\")))","v":"N/A"},"6-Etape OBSYS"]
[null,"Sélection du N° pour la FIF","FIF","  *",{"$f":"IF('LIEN CMS'!$E57=1,\"OK\",IF('LIEN CMS'!$E57=2,\"NOK\",IF('LIEN CMS'!$E57=\"\",\"N/A\",\"\")))","v":"N/A"},"importer les plans de contrôle / plans RX",null,null,null,{"$f":"IF('LIEN CMS'!$E134=1,\"OK\",IF('LIEN CMS'!$E134=2,\"NOK\",IF('LIEN CMS'!$E134=\"\",\"N/A\",\"\")))","v":"N/A"}]
[null,"FIF00000",null,null,{"$f":"IF('[2]LIEN CMS'!$E55=1,\"OK\",IF('[2]LIEN CMS'!$E55=2,\"NOK\",IF('[2]LIEN CMS'!$E55=\"\",\"N/A\",\"\")))","v":"OK"},"importer les feuilles de production (00XX)",null,null,null,{"$f":"IF('LIEN CMS'!$E135=1,\"OK\",IF('LIEN CMS'!$E135=2,\"NOK\",IF('LIEN CMS'!$E135=\"\",\"N/A\",\"\")))","v":"N/A"}]
[null,"Sélection du N° pour le PDC","PDC","  *",{"$f":"IF('LIEN CMS'!$E59=1,\"OK\",IF('LIEN CMS'!$E59=2,\"NOK\",IF('LIEN CMS'!$E59=\"\",\"N/A\",\"\")))","v":"N/A"},"7-Etape Calcul temps de gamme"]
[null,"PDC00000",null,null,{"$f":"IF('[2]LIEN CMS'!$E57=1,\"OK\",IF('[2]LIEN CMS'!$E57=2,\"NOK\",IF('[2]LIEN CMS'!$E57=\"\",\"N/A\",\"\")))","v":"N/A"},"Renseigner l'onglet temps",null,null,null,{"$f":"IF(('LIEN CMS'!$E$139>='LIEN CMS'!$D$139),1,('LIEN CMS'!$E$139/'LIEN CMS'!$D$139*100))","v":0}]
[null,"Evoluer ind. si évolution dans FI METH-QUAL",null,"  *",{"$f":"IF('LIEN CMS'!$E61=1,\"OK\",IF('LIEN CMS'!$E61=2,\"NOK\",IF('LIEN CMS'!$E61=\"\",\"N/A\",\"\")))","v":"N/A"},"Etiquetage (A800_003)",11,0.08,1E-3,{"$f":"IF('LIEN CMS'!$E141=1,\"OK\",IF('LIEN CMS'!$E141=2,\"NOK\",IF('LIEN CMS'!$E141=\"\",\"N/A\",\"\")))","v":"N/A"}]
[null,"outillage vague : fichier hauteur pocket",null,{"$f":"'LIEN CMS'!$B$62","v":0},{"$f":"IF('LIEN CMS'!$E62=1,\"OK\",IF('LIEN CMS'!$E62=2,\"NOK\",IF('LIEN CMS'!$E62=\"\",\"N/A\",\"\")))","v":"N/A"},"Etuvage (A820_001)",19,0.17,null,{"$f":"IF('LIEN CMS'!$E143=1,\"OK\",IF('LIEN CMS'!$E143=2,\"NOK\",IF('LIEN CMS'!$E143=\"\",\"N/A\",\"\")))","v":"N/A"}]
[null,"N° profil four  TOP","N° face ","  *",{"$f":"IF('LIEN CMS'!$E65=1,\"OK\",IF('LIEN CMS'!$E65=2,\"NOK\",IF('LIEN CMS'!$E65=\"\",\"N/A\",\"\")))","v":"N/A"},"Chargement  (A820_003)",20,{"$f":"IF(ISNUMBER('Tps MYDATA'!$E$3),'Tps MYDATA'!$G$3,IF(ISNUMBER('Tps EUROPLACER'!$E$3),'Tps EUROPLACER'!$G$3,\"0\"))","v":"0"},null,{"$f":"IF('LIEN CMS'!$E144=1,\"OK\",IF('LIEN CMS'!$E144=2,\"NOK\",IF('LIEN CMS'!$E144=\"\",\"N/A\",\"\")))","v":"N/A"}]
[null,{"$f":"IF('LIEN CMS'!$A$66=\"\",\"\",'LIEN CMS'!$A$66)","v":""},{"$f":"'LIEN CMS'!$B$66","v":"F1"},null,{"$f":"IF('[2]LIEN CMS'!$E61=1,\"OK\",IF('[2]LIEN CMS'!$E61=2,\"NOK\",IF('[2]LIEN CMS'!$E61=\"\",\"N/A\",\"\")))","v":"N/A"},"Cms (A820_008)",30,{"$f":"IF(ISNUMBER('Tps MYDATA'!$E$7),'Tps MYDATA'!$G$7,IF(ISNUMBER('Tps EUROPLACER'!$E$7),'Tps EUROPLACER'!$G$7,\"0\"))","v":"0"},{"$f":"IF(ISNUMBER('Tps MYDATA'!$E$8),'Tps MYDATA'!$G$8,IF(ISNUMBER('Tps EUROPLACER'!$E$8),'Tps EUROPLACER'!$G$8,\"0\"))","v":"0"},{"$f":"IF('LIEN CMS'!$E145=1,\"OK\",IF('LIEN CMS'!$E145=2,\"NOK\",IF('LIEN CMS'!$E145=\"\",\"N/A\",\"\")))","v":"N/A"}]
[null,"N° profil four  BOT","N° face ",null,{"$f":"IF('LIEN CMS'!$E67=1,\"OK\",IF('LIEN CMS'!$E67=2,\"NOK\",IF('LIEN CMS'!$E67=\"\",\"N/A\",\"\")))","v":"N/A"},"Retouche  (A820_009)",40,{"$f":"IF(ISNUMBER('Tps MYDATA'!$E$13),'Tps MYDATA'!$G$13,IF(ISNUMBER('Tps EUROPLACER'!$E$13),'Tps EUROPLACER'!$G$13,\"0\"))","v":"0"},{"$f":"IF(ISNUMBER('Tps MYDATA'!$E$13),'Tps MYDATA'!$G$14,IF(ISNUMBER('Tps EUROPLACER'!$E$13),'Tps EUROPLACER'!$G$14,\"0\"))","v":"0"},{"$f":"IF('LIEN CMS'!$E146=1,\"OK\",IF('LIEN CMS'!$E146=2,\"NOK\",IF('LIEN CMS'!$E146=\"\",\"N/A\",\"\")))","v":"N/A"}]
[null,{"$f":"IF('LIEN CMS'!$A$68=\"\",\"\",'LIEN CMS'!$A$68)","v":""},{"$f":"'LIEN CMS'!$B$68","v":""},null,{"$f":"IF('[2]LIEN CMS'!$E63=1,\"OK\",IF('[2]LIEN CMS'!$E63=2,\"NOK\",IF('[2]LIEN CMS'!$E63=\"\",\"N/A\",\"\")))","v":"N/A"},"RX  (A820_005)",null,{"$f":"IF(ISNUMBER('Tps MYDATA'!$E$17),'Tps MYDATA'!$G$17,IF(ISNUMBER('Tps EUROPLACER'!$E$17),'Tps EUROPLACER'!$G$17,\"0\"))","v":"0"},{"$f":"IF(ISNUMBER('Tps MYDATA'!$E$17),'Tps MYDATA'!$G$18,IF(ISNUMBER('Tps EUROPLACER'!$E$17),'Tps EUROPLACER'!$G$18,\"0\"))","v":"0"},{"$f":"IF('LIEN CMS'!$E147=1,\"OK\",IF('LIEN CMS'!$E147=2,\"NOK\",IF('LIEN CMS'!$E147=\"\",\"N/A\",\"\")))","v":"N/A"}]
[null,"2 - Etape ECRAN SERIGRAPHIE ET COLLE",null,null,null,"8-Etape Dossier"]
[null,"Déterminer le besoin d’écran  ","ingrédient face 1","  *",{"$f":"IF('LIEN CMS'!$E72=1,\"OK\",IF('LIEN CMS'!$E72=2,\"NOK\",IF('LIEN CMS'!$E72=\"\",\"N/A\",\"\")))","v":"N/A"},"collage spécial mise en forme sur toutes les feuilles",null,null,null,{"$f":"IF('LIEN CMS'!$E129=1,\"OK\",IF('LIEN CMS'!$E129=2,\"NOK\",IF('LIEN CMS'!$E129=\"\",\"N/A\",\"\")))","v":"N/A"}]
[null,{"$f":"IF('LIEN CMS'!$B$71=\"\",\"\",'LIEN CMS'!$B$71)","v":""},{"$f":"IF('LIEN CMS'!$B$72=\"\",\"\",'LIEN CMS'!$B$72)","v":""},null,{"$f":"IF('[2]LIEN CMS'!$E66=1,\"OK\",IF('[2]LIEN CMS'!$E66=2,\"NOK\",IF('[2]LIEN CMS'!$E66=\"\",\"N/A\",\"\")))","v":"N/A"},"9-Etape SAP"]
[null,"Déterminer le besoin d’écran  ","ingrédient face 2",null,{"$f":"IF('LIEN CMS'!$E78=1,\"OK\",IF('LIEN CMS'!$E78=2,\"NOK\",IF('LIEN CMS'!$E78=\"\",\"N/A\",\"\")))","v":"N/A"},"Saisir tps chargement,cms,retouche,RX",null,null,null,{"$f":"IF('LIEN CMS'!$E149=1,\"OK\",IF('LIEN CMS'!$E149=2,\"NOK\",IF('LIEN CMS'!$E149=\"\",\"N/A\",\"\")))","v":"N/A"}]
[null,{"$f":"IF('LIEN CMS'!$B$76=\"\",\"\",'LIEN CMS'!$B$76)","v":""},{"$f":"IF('LIEN CMS'!$B$77=\"\",\"\",'LIEN CMS'!$B$77)","v":""},null,{"$f":"IF('[2]LIEN CMS'!$E68=1,\"OK\",IF('[2]LIEN CMS'!$E68=2,\"NOK\",IF('[2]LIEN CMS'!$E68=\"\",\"N/A\",\"\")))","v":""},"10-Etape obsys"]
[null,"Sélection un N° ’écran face1","ECRAN","  *",{"$f":"IF('LIEN CMS'!$E73=1,\"OK\",IF('LIEN CMS'!$E73=2,\"NOK\",IF('LIEN CMS'!$E73=\"\",\"N/A\",\"\")))","v":"N/A"},"Validation  message  sur OBSYS",null,null,null,{"$f":"IF('LIEN CMS'!$E138=1,\"OK\",IF('LIEN CMS'!$E138=2,\"NOK\",IF('LIEN CMS'!$E138=\"\",\"N/A\",\"\")))","v":"N/A"}]
[null,"ECR00000",{"$f":"IF('LIEN CMS'!$B$74=\"\",\"\",'LIEN CMS'!$B$74)","v":""},null,{"$f":"IF('[2]LIEN CMS'!$E70=1,\"OK\",IF('[2]LIEN CMS'!$E70=2,\"NOK\",IF('[2]LIEN CMS'!$E70=\"\",\"N/A\",\"\")))","v":"OK"},"11-Etape XPRESS"]
[null,"Sélection un N° ’écran face2","ECRAN",null,{"$f":"IF('LIEN CMS'!$E78=1,\"OK\",IF('LIEN CMS'!$E78=2,\"NOK\",IF('LIEN CMS'!$E78=\"\",\"N/A\",\"\")))","v":"N/A"},"Création du programme",null,null,null,{"$f":"IF('LIEN CMS'!$E127=1,\"OK\",IF('LIEN CMS'!$E127=2,\"NOK\",IF('LIEN CMS'!$E1273=\"\",\"N/A\",\"\")))","v":"N/A"}]
[null,"ECR00000",{"$f":"IF('LIEN CMS'!$B$79=\"\",\"\",'LIEN CMS'!$B$79)","v":""},null,{"$f":"IF('[2]LIEN CMS'!$E72=1,\"OK\",IF('[2]LIEN CMS'!$E72=2,\"NOK\",IF('[2]LIEN CMS'!$E72=\"\",\"N/A\",\"\")))","v":"OK"},"12-Etape FINALE"]
[null,"Imprimer feuille pochoir",null,null,{"$f":"IF('LIEN CMS'!$E80=1,\"OK\",IF('LIEN CMS'!$E80=2,\"NOK\",IF('LIEN CMS'!$E80=\"\",\"N/A\",\"\")))","v":"N/A"},"Saisir temps passé dans charge",null,null,null,{"$f":"IF('LIEN CMS'!$E151=1,\"OK\",IF('LIEN CMS'!$E151=2,\"NOK\",IF('LIEN CMS'!$E151=\"\",\"N/A\",\"\")))","v":"N/A"}]
[null,"DA à remettre au MPI par MAIL",null,null,{"$f":"IF('LIEN CMS'!$E81=1,\"OK\",IF('LIEN CMS'!$E81=2,\"NOK\",IF('LIEN CMS'!$E81=\"\",\"N/A\",\"\")))","v":"N/A"},"Renseigner le logitiel de gestion des évolutions",null,null,null,{"$f":"IF('LIEN CMS'!$E152=1,\"OK\",IF('LIEN CMS'!$E152=2,\"NOK\",IF('LIEN CMS'!$E152=\"\",\"N/A\",\"\")))","v":"N/A"}]
[null,"Démarche cookson ",null,null,{"$f":"IF('LIEN CMS'!$E82=1,\"OK\",IF('LIEN CMS'!$E82=2,\"NOK\",IF('LIEN CMS'!$E82=\"\",\"N/A\",\"\")))","v":"N/A"},"Sauvegarde du dossier dans \"soldé\" après debug en machine"]
[null,"Commande cookson DAMP / COB :",{"$f":"'LIEN CMS'!$F$15","v":"MAI"},{"$f":"IF('LIEN CMS'!$B$81=\"\",'LIEN CMS'!$C$81,'LIEN CMS'!$B$81)","v":448647},{"$f":"IF('LIEN CMS'!$E81=1,\"OK\",IF('LIEN CMS'!$E81=2,\"NOK\",IF('LIEN CMS'!$E81=\"\",\"N/A\",\"\")))","v":"N/A"},"MAJ dossier sur OBSYS"]
[null,"Validation écran","sauvegarde sur OBSYS",null,{"$f":"IF('LIEN CMS'!$E85=1,\"OK\",IF('LIEN CMS'!$E85=2,\"NOK\",IF('LIEN CMS'!$E85=\"\",\"N/A\",\"\")))","v":"N/A"},"Enlever logo nouveau produit sur OBSYS"]
[null,"Réception/contrôle présence écrans",null,null,{"$f":"IF('LIEN CMS'!$E86=1,\"OK\",IF('LIEN CMS'!$E86=2,\"NOK\",IF('LIEN CMS'!$E86=\"\",\"N/A\",\"\")))","v":"N/A"},"MAJ temps de gamme sur SAP ","Face 1 (Sec)",null,null,{"$f":"IF('LIEN CMS'!$E155=1,\"OK\",IF('LIEN CMS'!$E155=2,\"NOK\",IF('LIEN CMS'!$E155=\"\",\"N/A\",\"\")))","v":"N/A"}]
[null,"COMMENTAIRE :",null,null,null,{"$f":"IF($G$11=\"EUROPLACER\",(($I$61+$I$62)/'Tps EUROPLACER'!$E$8)/3600,(($I$61+$I$62)/1)/3600)","v":0},"Face 2 (Sec)",null,null,{"$f":"IF('LIEN CMS'!$E156=1,\"OK\",IF('LIEN CMS'!$E156=2,\"NOK\",IF('LIEN CMS'!$E156=\"\",\"N/A\",\"\")))","v":"N/A"}]
[]
[null,{"$f":"IF('LIEN CMS'!$A$160=\"\",\"\",'LIEN CMS'!$A$160)","v":"Remarque :\n\nSuite à la mise en place de la page de suivi des indices,\nCopier le(s) programme(s) DEK et le(s) renommer comme suit :\n-"}]

{"sheet":"Tps MYDATA","index":15,"n_rows":18,"n_cols":7,"rows_kept":18,"cut":false,"hidden":false,"merged":[[1,1,1,6],[4,1,4,6],[11,1,11,6],[15,1,15,6]]}
[]
[null,"CHARGEMENT COMPOSANT HORS LIGNE"]
[null,"tps de chargement par référence ( sec)",155,"nombre d'article",null,"temps à saisir dans SAP (préparation)",{"$f":"((C3*E3)+300)*0.00027778","v":8.3333999999999991E-2}]
[]
[null,"SET-UP  LIGNE"]
[]
[null,"Tps de réglage transitique ( sec) ( 2 convoyeurs)",120,"Nombre de face",null,"temps à saisir dans SAP (préparation)",{"$f":"(C7+((C8*E7)+(C9*E3))+C10)*0.0002778","v":5.0003999999999993E-2}]
[null,"Tps de réglage sérigraphie ( sec)",1800,"Nombre de motif  dans le pannel",null,"temps à saisir dans SAP (main d'oeuvre)",{"$f":"(((G9*G10)+G9)*0.00027778)/E8","v":{"$error":"#DIV/0!"}}]
[null,"Tps de réglage machine de report pour 1 cps ( sec)",40,"Cadence machine (cps/h)",2000,"Calcul suivant cadence ligne (sec)",{"$f":"(3600*(E8*E13))/E9","v":0}]
[null,"Tps de réglage four ( sec)",60,null,null,"multiplicateur pour les arrêts (%)",0.1]
[]
[null,"CONTRÔLE / RETOUCHE"]
[null,"Tps de contrôle pour un composant ( sec)",0.5,"Nb. de composant / motif (f1 et f2)",null,"temps à saisir dans SAP (préparation)",{"$f":"0.25","v":0.25}]
[null,null,null,null,null,"temps à saisir dans SAP (main d'oeuvre)",{"$f":"(C13*E13)*0.00027778","v":0}]
[]
[null,"INSPECTION RX"]
[null,"Tps de RX pour un composant ( sec)",6,"Nb. de RX sur la carte",null,"temps à saisir dans SAP (préparation)",{"$f":"0.2","v":0.2}]
[null,null,null,null,null,"temps à saisir dans SAP (main d'oeuvre)",{"$f":"((C17*E17)*0.002)+(0.02/E8)","v":{"$error":"#DIV/0!"}}]

{"sheet":"Tps EUROPLACER","index":16,"n_rows":18,"n_cols":7,"rows_kept":18,"cut":false,"hidden":false,"merged":[[1,1,1,6],[4,1,4,6],[11,1,11,6],[15,1,15,6]]}
[]
[null,"CHARGEMENT COMPOSANT HORS LIGNE"]
[null,"tps de chargement par référence ( sec)",240,"nombre d'article",null,"temps à saisir dans SAP (préparation)",{"$f":"(C3*E3)*0.00027778","v":0}]
[]
[null,"SET-UP  LIGNE"]
[]
[null,"Tps de réglage transitique ( sec) ( 6 convoyeurs)",360,"Nombre de face",null,"temps à saisir dans SAP (préparation)",{"$f":"(C7+((C8*E7)+(C9*E3))+C10)*0.0002778","v":0.11667599999999999}]
[null,"Tps de réglage sérigraphie ( sec)",1800,"Nombre de motif  dans le pannel",null,"temps à saisir dans SAP (main d'oeuvre)",{"$f":"(((G9*G10)+G9)*0.00027778)/E8","v":{"$error":"#DIV/0!"}}]
[null,"Tps de réglage machine de report pour 1 cps ( sec)",60,"Cadence machine (cps/h)",25000,"Calcul suivant cadence ligne (sec)",{"$f":"(3600*(E8*E13))/E9","v":0}]
[null,"Tps de réglage four ( sec)",60,null,null,"multiplicateur pour les arrêts (%)",0.1]
[]
[null,"CONTRÔLE / RETOUCHE"]
[null,"Tps de contrôle pour un composant ( sec)",0.5,"Nb. de composant / motif (f1 et f2)",null,"temps à saisir dans SAP (préparation)",{"$f":"0.25","v":0.25}]
[null,null,null,null,null,"temps à saisir dans SAP (main d'oeuvre)",{"$f":"(C13*E13)*0.00027778","v":0}]
[]
[null,"INSPECTION RX"]
[null,"Tps de RX pour un composant ( sec)",2,"Nb. de RX sur la carte",null,"temps à saisir dans SAP (préparation)",{"$f":"0.2","v":0.2}]
[null,null,null,null,null,"temps à saisir dans SAP (main d'oeuvre)",{"$f":"((C17*E17)*0.002)+(0.02/E8)","v":{"$error":"#DIV/0!"}}]

{"sheet":"OUTIL","index":17,"n_rows":202,"n_cols":45,"rows_kept":202,"cut":false,"hidden":false,"merged":[[10,0,10,44],[3,27,3,33],[3,34,3,37],[3,38,3,44],[5,9,5,13],[6,0,6,42],[8,0,8,3],[8,4,8,5],[8,6,8,10],[8,11,8,12],[8,13,8,17],[8,18,8,22],[8,23,8,24],[8,25,8,31],[8,32,8,35],[8,36,8,42],[0,9,0,13],[1,0,1,44],[3,0,3,3],[3,4,3,5],[3,6,3,10],[3,11,3,12],[3,13,3,17],[3,18,3,22],[3,23,3,24],[3,25,3,26],[184,3,184,15],[184,18,184,30],[184,33,184,45],[185,3,188,5],[185,6,186,13],[185,14,186,15],[185,18,188,20],[185,21,186,28],[185,29,186,30],[185,33,188,35],[185,36,186,43],[185,44,186,45],[187,6,188,13],[187,14,188,15],[187,21,188,28],[187,29,188,30],[187,36,188,43],[187,44,188,45],[189,3,192,5],[189,6,190,13],[189,14,190,15],[189,18,192,20],[189,21,190,28],[189,29,190,30],[189,33,192,35],[189,36,190,43],[189,44,190,45],[191,6,192,13],[191,14,192,15],[191,21,192,28],[191,29,192,30],[191,36,192,43],[191,44,192,45],[194,3,194,15],[194,18,194,30],[195,3,198,5],[195,6,196,13],[195,14,196,15],[195,18,198,20],[195,21,196,28],[195,29,196,30],[197,6,198,13],[197,14,198,15],[197,21,198,28],[197,29,198,30],[199,3,202,5],[199,6,200,13],[199,14,200,15],[199,18,202,20],[199,21,200,28],[199,29,200,30],[201,6,202,13],[201,14,202,15],[201,21,202,28],[201,29,202,30]]}
[null,null,null,null,null,null,null,null,null,"2 FACES"]
[]
[]
[]
[]
[null,null,null,null,null,null,null,null,null,"1 FACE"]
[]
[]
[]
[]
["FIN DE L'OP"]
[]
["Ascenseur CMS",null,null,null,null,null,null,null,null,null,null,null,null,null,null,null,null,null,null,null,null,null,"Ascenseur retouche"]
[]
[null,null,null,null,null,12,null,45,null,78,null,111,null,144,null,178,null,210,null,243]
[null,null,null,null,null,45,null,78,null,111,null,144,null,178,null,210,null,243,null,276]
[null,null,null,12]
[]
[]
[]
[]
[null,null,null,null,44,null,77,null,110,null,143,null,177,null,209,null,242,null,275,null,308]
[null,null,null,null,77,null,110,null,143,null,177,null,209,null,242,null,275,null,308]
[]
["Ascenseur Chargement",null,null,null,null,null,null,null,null,null,null,null,null,null,null,null,null,null,null,null,null,null,"Ascenseur RX"]
[null,null,null,12,null,45,null,78,null,111,null,144,null,178,null,210,null,243]
[null,null,null,45,null,78,null,111,null,144,null,178,null,210,null,243,null,276]
[null,12]
[]
[]
[]
[]
[null,null,44,null,77,null,110,null,143,null,177,null,209,null,242,null,275,null,308]
[null,null,77,null,110,null,143,null,177,null,209,null,242,null,275,null,308]
[]
[]
[]
[]
[]
[]
[]
[]
[]
[]
[]
[]
[]
[]
[]
[]
[]
[]
[]
[]
[]
[]
[]
[]
[]
[]
[]
[]
[]
[]
[]
[]
[]
[]
[]
[]
[]
[]
[]
[]
[]
[]
[]
[null,null,"VERNELEC FLUO 43023"]
[]
[]
[]
[]
[]
[]
[]
[]
[]
[]
[]
[]
[]
[]
[]
[]
[]
[]
[]
[]
[]
[]
[]
[]
[]
[]
[]
[]
[]
[]
[]
[]
[]
[]
[]
[]
[]
[]
[]
[]
[]
[]
[]
[]
[]
[]
[]
[]
[]
[]
[]
[]
[]
[]
[]
[]
[]
[]
[]
[]
[]
[]
[]
[]
[]
[]
[]
[]
[]
[]
[]
[]
[]
[]
[]
[]
[]
[]
[]
[]
[]
[]
[]
[]
[]
[]
[]
[]
[]
[]
[]
[]
[]
[]
[]
[]
[]
[]
[]
[]
[]
[]
[]
[]
[]
[]
[null,null,null,"POUR CLASSE 3 - 16262704.024 - THALES",null,null,null,null,null,null,null,null,null,null,null,null,null,null,"POUR CLASSE 2 - 16262704.024 - THALES",null,null,null,null,null,null,null,null,null,null,null,null,null,null,"TOUTE CLASSE - SSA000011 - ZODIAC"]
[null,null,null,"BGA",null,null,"Taux de void maximum cumulé",null,null,null,null,null,null,null,0.12,null,null,null,"BGA",null,null,"Taux de void maximum cumulé",null,null,null,null,null,null,null,0.25,null,null,null,"BGA",null,null,"Taux de void maximum cumulé",null,null,null,null,null,null,null,0.2]
[]
[null,null,null,null,null,null,"Taux de void maximum unitaire",null,null,null,null,null,null,null,0.1,null,null,null,null,null,null,"Taux de void maximum unitaire",null,null,null,null,null,null,null,0.1,null,null,null,null,null,null,"Taux de void maximum unitaire",null,null,null,null,null,null,null,0.2]
[]
[null,null,null,"Autre",null,null,"Taux de void maximum cumulé",null,null,null,null,null,null,null,0.25,null,null,null,"Autre",null,null,"Taux de void maximum cumulé",null,null,null,null,null,null,null,0.25,null,null,null,"Autre",null,null,"Taux de void maximum cumulé",null,null,null,null,null,null,null,0.3]
[]
[null,null,null,null,null,null,"Taux de void maximum unitaire",null,null,null,null,null,null,null,0.2,null,null,null,null,null,null,"Taux de void maximum unitaire",null,null,null,null,null,null,null,0.2,null,null,null,null,null,null,"Taux de void maximum unitaire",null,null,null,null,null,null,null,0.3]
[]
[]
[null,null,null,"POUR CLASSE 2 ET 3 - IPC",null,null,null,null,null,null,null,null,null,null,null,null,null,null,"TOUTE CLASSE - IF40 - DASSAULT"]
[null,null,null,"BGA",null,null,"Taux de void maximum cumulé",null,null,null,null,null,null,null,0.3,null,null,null,"BGA",null,null,"Taux de void maximum cumulé",null,null,null,null,null,null,null,0.25]
[]
[null,null,null,null,null,null,"Taux de void maximum unitaire",null,null,null,null,null,null,null,0.3,null,null,null,null,null,null,"Taux de void maximum unitaire",null,null,null,null,null,null,null,0.15]
[]
[null,null,null,"Autre",null,null,"Taux de void maximum cumulé",null,null,null,null,null,null,null,"AD",null,null,null,"Autre",null,null,"Taux de void maximum cumulé",null,null,null,null,null,null,null,0.25]
[]
[null,null,null,null,null,null,"Taux de void maximum unitaire",null,null,null,null,null,null,null,"AD",null,null,null,null,null,null,"Taux de void maximum unitaire",null,null,null,null,null,null,null,0.25]

{"sheet":"Pos.Plateaux","index":18,"n_rows":13,"n_cols":22,"rows_kept":13,"cut":false,"hidden":false,"merged":[[0,15,0,22]]}
[null,null,null,null,null,null,null,null,null,null,null,null,null,null,null,"CARACTERISTIQUE DE LA LIGNE MYDATA"]
[]
[null,null,null,null,null,null,null,null,null,null,null,null,null,null,null,"EQUIPEMENT","LARGEUR PCB","LONGUEUR PCB","EPAISSEUR CI","HAUTEUR MAX AU DESSUS","HAUTEUR MAX AU DESSOUS","AUTRE CARACTERISTIQUE"]
[null,null,null,null,null,null,null,null,null,null,null,null,null,null,null,"DEK HORIZON","40,5 < Y <  508,5","50 < X <  510","0,2 < Z <  6","N/A","N/A","pochoir 29 pouces"]
[null,null,null,null,null,null,null,null,null,null,null,null,null,null,null,"MPM MANUEL","500 MAX","500 MAX",null,"N/A","N/A","PAS DE PAS FIN -BGA-QFN"]
[null,null,null,null,null,null,null,null,null,null,null,null,null,null,null,"TP11","255 MAX","500 MAX",null,"N/A","N/A","N/A"]
[null,null,null,null,null,null,null,null,null,null,null,null,null,null,null,"CTV3","400 MAX","N/A",null,27,"N/A","N/A"]
[]
[]
[null,null,null,null,null,null,null,null,null,null,null,null,null,null,null,null,"Précision placement MYDATA",null,"CHIP","HYDRA","130 microns"]
[null,null,null,null,null,null,null,null,null,null,null,null,null,null,null,null,null,null,null,"UNITAIRE","80 microns"]
[]
[null,null,null,null,null,null,null,null,null,null,null,null,null,null,null,null,null,null,"A PATTES","UNITAIRE","40 microns"]

{"sheet":"EVOL","index":19,"n_rows":3,"n_cols":11,"rows_kept":3,"cut":false,"hidden":false,"merged":[]}
["Ancien",null,null,null,null,null,"Nouveau"]
[]
["Code article","Code client","Désignation","Qté","repère topo ",null,"Code article","Code client","Désignation","Qté","repère topo "]

{"sheet":"REVUE METHODES","index":20,"n_rows":54,"n_cols":5,"rows_kept":54,"cut":false,"hidden":true,"merged":[[51,2,51,4],[52,2,52,4],[53,2,53,4],[27,2,27,4],[38,2,38,4],[31,2,31,4],[32,2,32,4],[33,2,33,4],[34,2,34,4],[35,2,35,4],[36,2,36,4],[37,2,37,4],[50,2,50,4],[39,2,39,4],[40,2,40,4],[41,2,41,4],[0,2,0,4],[0,0,0,1],[28,2,28,4],[29,2,29,4],[30,2,30,4],[47,2,47,4],[48,2,48,4],[49,2,49,4],[42,2,42,4],[43,2,43,4],[44,2,44,4],[45,2,45,4],[46,2,46,4]]}
["Revue Méthodes CMS",null,{"$f":"CONCATENATE(B6,B7,\"[\",B8)","v":"00[0"}]
[]
["Date:",{"$f":"TODAY()","v":"2017-05-24"}]
[]
["N° de client / Nom client",{"$f":"'LIEN CMS'!B5","v":0}]
["Type d'appro:",{"$f":"'LIEN CMS'!B6","v":0}]
["Référence carte :",{"$f":"'LIEN CMS'!B7","v":0}]
["Indice SAP (Crochet):",{"$f":"'LIEN CMS'!B8","v":0}]
["Nom de la carte : ",{"$f":"'LIEN CMS'!B9","v":0}]
["N°évolution : ",{"$f":"'LIEN CMS'!B10","v":0}]
["Indice client:",{"$f":"'LIEN CMS'!B11","v":0}]
["Indice PROG:",{"$f":"'LIEN CMS'!B12","v":0}]
["Indice Obsys:",{"$f":"'LIEN CMS'!B13","v":0}]
["Indice FIF:",{"$f":"'LIEN CMS'!B14","v":0}]
["Indice PDC:",{"$f":"'LIEN CMS'!B15","v":0}]
["Quantité : ",{"$f":"'LIEN CMS'!B16","v":0}]
["N° de devis :",{"$f":"'LIEN CMS'!B17","v":0}]
["MPI :",{"$f":"'LIEN CMS'!B18","v":0}]
["Méthode Générale",{"$f":"'LIEN CMS'!B19","v":0}]
["Réalisé par : ",{"$f":"'LIEN CMS'!B20","v":0}]
["Process :",{"$f":"'LIEN CMS'!B22","v":0}]
["AC du pcb :",{"$f":"'LIEN CMS'!B23","v":0}]
["nature pcb :",{"$f":"'LIEN CMS'!B24","v":0}]
["Finition :",{"$f":"'LIEN CMS'!B25","v":0}]
["Face cms :",{"$f":"'LIEN CMS'!B26","v":0}]
[]
[]
["1-DOCUMENT° OBLIGATOIRE sinon NE PAS TRAVAILLER / PRODUIT",null,"Commentaires"]
["Rapport d'industrialisation "]
["Etuvage composant ?"]
["Rivetage, sertissage,coupure ?"]
["RX?"]
["Coupure de piste ?"]
["dédorage?"]
["Etiquetage SAP ?"]
["FACA( mode opératoire) ?"]
["Pannelisation? Aux achat"]
["bordure technique ?"]
["Matière pour réalisation profil ?"]
["outillage :"]
[]
[]
[]
["Présence de la nomenclature GDT"]
["Présence des plans/bom. client (OBSYS)"]
["Présence de la CAO"]
["Présence des GERBER (GDT ou OBSYS)"]
["2 - Etape ECRAN SERIGRAPHIE ET COLLE",null,null,null,{"$f":"SUM(E50:E61)","v":0}]
["Sélection face 1"]
["Déterminer le besoin d’écran  "]
["ingrédient "]
["Sélection face 2"]
["Déterminer le besoin d’écran  "]
["ingrédient "]

{"sheet":"Nomenclature CMS","index":21,"n_rows":3,"n_cols":8,"rows_kept":3,"cut":false,"hidden":false,"merged":[]}
[]
[]
["Composants","Qte","Désignation","Code fabricant","Repères Topo","Code Client","Matiere","Stock"]

{"sheet":"Nomenclature Compléte","index":22,"n_rows":3,"n_cols":8,"rows_kept":3,"cut":false,"hidden":false,"merged":[]}
[]
[]
["Composants","Qte","Désignation","Code fabricant","Repères Topo","Code Client","Matiere","Stock"]

{"sheet":"Gamme","index":23,"n_rows":5,"n_cols":5,"rows_kept":5,"cut":false,"hidden":false,"merged":[[0,0,1,6],[2,0,2,3]]}
[{"$f":"'Nomenclature Compléte'!$C$1","v":0}]
[]
["Exportation methodes au ",null,null,null,{"$f":"TODAY()","v":"2017-05-24"}]
[]
["Lead Time","N° Opération","Etape","Ilot"]

{"sheet":"démarche pochoir","index":24,"n_rows":48,"n_cols":8,"rows_kept":48,"cut":false,"hidden":true,"merged":[[36,1,36,3],[39,1,39,3],[43,1,43,3],[4,1,4,3],[4,6,4,8],[9,1,9,3],[15,1,15,3],[19,1,19,3],[30,1,30,3],[10,6,16,9]]}
[]
[]
[]
[]
[null,"faire demande d'achat M Methodes Commande georgina",null,null,null,null,"faire Feuille cookson "]
[null,"imprimer et donner à Joël la DA","EA DEMANDE ACHAT",null,null,null,"les joindre au mail"]
[null,"archiver dans ","_*",null,null,null,"indiquer dedans le N° de commande ouverte au mois si pas ouverte le demander à brigitte"]
[null,"archiver dans ","_*",null,null,null,"archiver dans M Methodes commandes années mois","_*"]
[]
[null,"PRESENCE"]
[null,"gerber carte unitaire min s/s GDT","_*",null,null,null,"Bonjour\n\nCi-joint les fichier pour la réalisation d’un pochoir\n\nDans l’attente de validation\n\ncordialement\n"]
[null,"sinon voir GDT pr réclamation client"]
[null,"ouvrir les gerbers s/s GC prevue"]
[null,"vérifier si gerber pâte à braser st présent"]
[]
[null,"est ce que mon pochoir doit être en panel ?\n(appel stephane en priorité ou Françis)"]
[null,"gerber panel existant"]
[null,"sinon demande à acheteur"]
[]
[null,"envoi des fichier suivant à cookson"]
[null,"bien vérifier si fichier pâte à braser et l'envoyer"]
[null,"si pas fichier pas à braser en fairela demande auprès de la GDT important!!!"]
[null,"gerber face TOP avec N° de Face"]
[null,"gerber face BOTTOM  avec N° de Face"]
[null,"feuille cookson"]
[null,"plan de l'AC (-040 et les plans de fabrication de l'AC)"]
[null,"plan de l'AC (-040, le plan avec côte extérieures du PCB, et les plans de fabrication de l'AC)"]
[null,"préciser quelle sera la face top et bottom en fonction de la page du plan d'implantation"]
[null,"préciser si gerber en miroir"]
[]
[null,"réponse cookson"]
[null,"regarder la pj dans GC prevue"]
[null,"vérification des plages et de la vue miroir s'il y a"]
[null,"si pas donner de fichier pate à braser, faire une comparaison avec le fichier reçu en PJ et le plan d'implantation "]
[null,"vérification présence des mires"]
[]
[null,"répondre à cookson"]
[null,"si tout ok \"bon pour découpe laser"]
[]
[null,"réponse cookson"]
[null,"avec pj certificat de fabrication"]
[null,"imprimer certificat et mettre avec feuille suivi d'écran"]
[]
[null,"reception écran"]
[null,"vérification de l'étiquette identification écran"]
[null,"corrélation entre N° écran et FACE avec le dossier"]
[null,"mise en place de la feuille de suivi d'écran et certificat sur pochette écran"]
[null,"identification de l'étiquette N° ecr et nom du client sur pochette"]

{"sheet":"CONTROLE F1 ","index":25,"n_rows":32,"n_cols":6,"rows_kept":32,"cut":false,"hidden":false,"merged":[[0,0,0,5],[3,2,3,3],[31,2,31,5]]}
["FICHE DE CONTRÔLE ECRAN DE SERIGRAPHIE"]
["FM-0072 A"]
["Référence de l'écran : ",null,{"$f":"'LIEN CMS'!A74","v":"ECR00000"},{"$f":"'LIEN CMS'!B74","v":0},"Client : ",{"$f":"'LIEN CMS'!B5","v":0}]
["Référence de la carte : ",null,{"$f":"'LIEN CMS'!B7","v":0},null,"Face de la carte : ",1]
[]
["A chaque début de lot, vérifier l'aspect de l'écran et valider sa conformité en renseignant le tableau ci-dessous."]
[]
[null,"Si un defaut est constaté, prévenir les méthodes"]
[]
["Pas de bosses","Pas de rayures","Planéité OK","Nettoyage OK + Rangement","Commentaires particuliers","Date / nom CTL"]
["OK","OK","OK","OK","Ecran neuf"]
[]
[]
[]
[]
[]
[]
[]
[]
[]
[]
[]
[]
[]
[]
[]
[]
[]
[]
[]
[]
["ECR00000",{"$f":"'LIEN CMS'!B74","v":0},{"$f":"CONCATENATE('LIEN CMS'!B5,\" \",'LIEN CMS'!B7,\" \",'LIEN CMS'!B9,\" \",'LIEN CMS'!B66)","v":"   F1"}]

{"sheet":"CONTROLE F2","index":26,"n_rows":32,"n_cols":6,"rows_kept":32,"cut":false,"hidden":false,"merged":[[0,0,0,5],[3,2,3,3],[31,2,31,5]]}
["FICHE DE CONTRÔLE ECRAN DE SERIGRAPHIE"]
["FM-0072 A"]
["Référence de l'écran : ",null,{"$f":"'LIEN CMS'!A74","v":"ECR00000"},{"$f":"'LIEN CMS'!B79","v":0},"Client : ",{"$f":"'LIEN CMS'!B5","v":0}]
["Référence de la carte : ",null,{"$f":"'LIEN CMS'!B7","v":0},null,"Face de la carte : ",2]
[]
["A chaque début de lot, vérifier l'aspect de l'écran et valider sa conformité en renseignant le tableau ci-dessous."]
[]
[null,"Si un defaut est constaté, prévenir les méthodes"]
[]
["Pas de bosses","Pas de rayures","Planéité OK","Nettoyage OK + Rangement","Commentaires particuliers","Date / nom CTL"]
["OK","OK","OK","OK","Ecran neuf"]
[]
[]
[]
[]
[]
[]
[]
[]
[]
[]
[]
[]
[]
[]
[]
[]
[]
[]
[]
[]
["ECR00000",{"$f":"'LIEN CMS'!B79","v":0},{"$f":"CONCATENATE('LIEN CMS'!B5,\" \",'LIEN CMS'!B7,\" \",'LIEN CMS'!B9,\" \",'LIEN CMS'!B68)","v":"   "}]

{"sheet":"OUTILLAGE","index":27,"n_rows":197,"n_cols":5,"rows_kept":197,"cut":false,"hidden":false,"merged":[]}
[null,null,"N° Outillage","Emplacement","n°"]
[null,null,47118423,"ETAGERE 2-2",4]
[null,null,59767277,"BOITE 5",10]
[null,null,"46102757","PLATEAU3",28]
[null,null,"6100269","ETAGERE 2-6",2]
[null,null,"63370861AA-01","ETAGERE2-0","x"]
[null,null,"BOITE THALES AES","ETAGERE 1-1",4]
[null,null,"cholet ac606073","BOITE 5",3]
[null,null,"cholet ac606074","BOITE 5",3]
[null,null,"cholet ac606076","BOITE 5",3]
[null,null,"cholet ac606078","BOITE 5",3]
[null,null,"GRANDE PINCE","BOITE 2","9 et 10"]
[null,null,"MOYENNE PINCE","BOITE 2","7 et 8"]
[null,null,"OUTIL-391200","ETAGERE 1-2",1]
[null,null,"OUTILL-1020"," BOITE 5",12]
[null,null,"OUTILL-1046","ETAGERE 1-3",1]
[null,null,"OUTILL-1047","ETAGERE 1-3","x"]
[null,null,"OUTILL-1048","ETAGERE 1-3",3]
[null,null,"OUTILL-1049","Plateau2",16]
[null,null,"OUTILL-1074 RECTO","BOITE 2",19]
[null,null,"OUTILL-1074 VERSO","BOITE 2",20]
[null,null,"OUTILL-1080","BOITE 2",16]
[null,null,"OUTILL-1087","BOITE 1",18]
[null,null,"OUTILL-1092","BOITE 1",6]
[null,null,"OUTILL-1093","ETAGERE 1-1","x"]
[null,null,"OUTILL-1094","BOITE 1",10]
[null,null,"OUTILL-1096","Plateau2",31]
[null,null,"OUTILL-1097","BOITE 1",8]
[null,null,"OUTILL-1098","BOITE 1",7]
[null,null,"OUTILL-1109","BOITE OUTILLAGE BLUWAN",1]
[null,null,"OUTILL-1110","BOITE OUTILLAGE BLUWAN",1]
[null,null,"OUTILL-1117","BOITE 2",18]
[null,null,"OUTILL-1122","BOITE 2",17]
[null,null,"OUTILL-1124","ETAGERE 1-3",4]
[null,null,"OUTILL-1125","ETAGERE 1-3","x"]
[null,null,"OUTILL-1126","BOITE 1",19]
[null,null,"OUTILL-1127","BOITE 1",2]
[null,null,"OUTILL-1129","BOITE 1",13]
[null,null,"OUTILL-1137","ETAGERE 1-3",2]
[null,null,"OUTILL-1138","ETAGERE2-2","x"]
[null,null,"OUTILL-1147","ETAGERE 1-3",2]
[null,null,"OUTILL-1149","ETAGERE 1-4",2]
[null,null,"OUTILL-1152","BOITE 1",14]
[null,null,"OUTILL-1154","BOITE 1",15]
[null,null,"OUTILL-116","ETAGERE 2-6",1]
[null,null,"OUTILL-117","ETAGERE 1-4","x"]
[null,null,"OUTILL-1199","BOITE 1",12]
[null,null,"OUTILL-120","BOITE 1",17]
[null,null,"OUTILL-1208","Plateau2",18]
[null,null,"OUTILL-1209","ETAGERE 2-5",1]
[null,null,"OUTILL-1253","BOITE 1",11]
[null,null,"OUTILL-1267","BOITE 1",5]
[null,null,"OUTILL-1280","BOITE 1",3]
[null,null,"OUTILL-1281","BOITE4",12]
[null,null,"OUTILL-1294","BOITE 1",4]
[null,null,"OUTILL-1307","BOITE OUTILLAGE BLUWAN",1]
[null,null,"OUTILL-1309","BOITE OUTILLAGE BLUWAN",1]
[null,null,"OUTILL-1310","BOITE OUTILLAGE BLUWAN",1]
[null,null,"OUTILL-1311","BOITE 1",9]
[null,null,"OUTILL-1334","PLATEAU4",3]
[null,null,"OUTILL-1336","PLATEAU4",1]
[null,null,"OUTILL-1350","BOITE OUTILLAGE BLUWAN",1]
[null,null,"OUTILL-1353","PLATEAU4",2]
[null,null,"OUTILL-1367","BOITE 2",4]
[null,null,"OUTILL-1382","ETAGERE 1-5",4]
[null,null,"OUTILL-1383","ETAGERE 1-1","x"]
[null,null,"OUTILL-1403","ETAGERE 1-5",3]
[null,null,"OUTILL-1421","BOITE 1",1]
[null,null,"OUTILL-1431","Plateau2",9]
[null,null,"OUTILL-1432 ","BOITE 4",3]
[null,null,"OUTILL-1453","ETAGERE2-5",3]
[null,null,"OUTILL-14671/2+2/2","ETAGERE 2-5",3]
[null,null,"OUTILL-1474","Plateau2",17]
[null,null,"OUTILL-1478","PLATEAU3",12]
[null,null,"OUTILL-1481","PLATEAU3",20]
[null,null,"OUTILL-1483","BOITE 3 ",3]
[null,null,"OUTILL-1485","Plateau2",12]
[null,null,"OUTILL-1490","PLATEAU3",6]
[null,null,"OUTILL-1492","BOITE4",17]
[null,null,"OUTILL-1504","Plateau2",8]
[null,null,"OUTILL-1505","Plateau2",22]
[null,null,"OUTILL-1507","Plateau2",20]
[null,null,"OUTILL-1511","Plateau2",14]
[null,null,"OUTILL-1512","PLATEAU3",5]
[null,null,"OUTILL-1517","ETAGERE 2-6","x"]
[null,null,"OUTILL-1521","Plateau2",25]
[null,null,"OUTILL-1522","Plateau2",15]
[null,null,"OUTILL-1523","Plateau2",23]
[null,null,"OUTILL-1524","Plateau2",28]
[null,null,"OUTILL-1526","Plateau2",27]
[null,null,"OUTILL-1527","Plateau2",29]
[null,null,"OUTILL-1528","Plateau2",30]
[null,null,"OUTILL-1529","PLATEAU 3",9]
[null,null,"OUTILL-1531","PLATEAU 3",10]
[null,null,"OUTILL-1532","PLATEAU 3",11]
[null,null,"OUTILL-1538","PLATEAU 3",3]
[null,null,"OUTILL-1542","BOITE 2",11]
[null,null,"OUTILL-1543","BOITE 2",12]
[null,null,"OUTILL-1544","BOITE5",13]
[null,null,"OUTILL-1547","PLATEAU 3",14]
[null,null,"OUTILL-1551","PLATEAU 3",8]
[null,null,"OUTILL-1555","PLATEAU 3",16]
[null,null,"OUTILL-1556","PLATEAU 3",13]
[null,null,"OUTILL-1557","PLATEAU 3",27]
[null,null,"OUTILL-1568","PLATEAU 3",19]
[null,null,"OUTILL-1610","PLATEAU 3",17]
[null,null,"OUTILL-1613","PLATEAU 3",22]
[null,null,"OUTILL-1614","PLATEAU 3",23]
[null,null,"OUTILL-1620","PLATEAU 3",25]
[null,null,"OUTILL-1621","PLATEAU 3",24]
[null,null,"OUTILL-1641","PLATEAU 3",4]
[null,null,"OUTILL-1644","PLATEAU 3",26]
[null,null,"OUTILL-1649","PLATEAU 3",33]
[null,null,"OUTILL-1705","PLATEAU 3",29]
[null,null,"OUTILL-1715","Plateau2",21]
[null,null,"OUTILL-1716","PLATEAU 3",36]
[null,null,"OUTILL-1719","Plateau2",24]
[null,null,"OUTILL-1724","ETAGERE 1-1",1]
[null,null,"OUTILL-1727","BOITE 2",2]
[null,null,"OUTILL-1730","ETAGERE 1-1",1]
[null,null,null,null,"x"]
[null,null,"OUTILL-1731","ETAGERE 1-5","n°x"]
[null,null,"OUTILL-1743","ETAGERE 1-1","x"]
[null,null,null,"ETAGERE 1-2","x"]
[null,null,"OUTILL-1745","ETAGERE 1-2",5]
[null,null,"OUTILL-1773","ETAGERE 1-0","x"]
[null,null,"OUTILL-1781 BGA 13X15","BOITE4",2]
[null,null,"OUTILL-1805","Plateau2",32]
[null,null,"OUTILL-1814","ETAGERE 1-2","x"]
[null,null,"OUTILL-1815","ETAGERE 1-2","x"]
[null,null,"OUTILL-1838","Plateau2",11]
[null,null,"OUTILL-1839","Plateau2","11 BIS"]
[null,null,"OUTILL-1847","ETAGERE 1-1","x"]
[null,null,"OUTILL-1848","ETAGERE 1-2","x"]
[null,null,"OUTILL-1851","PLATEAU4","x"]
[null,null,"OUTILL-1852","PLATEAU4","x"]
[null,null,"OUTILL-1853","PLATEAU4","x"]
[null,null,"OUTILL-1855","PLATEAU4","x"]
[null,null,"OUTILL-1856","PLATEAU4","x"]
[null,null,"OUTILL-1857","PLATEAU4","x"]
[null,null,"OUTILL-1862","PLATEAU4","x"]
[null,null,"OUTILL-1863","PLATEAU4","x"]
[null,null,"OUTILL-1864","PLATEAU4","x"]
[null,null,"OUTILL-1865","PLATEAU4",19]
[null,null,"OUTILL-1866","PLATEAU4","x"]
[null,null,"OUTILL-1870","ETAGERE 1-1","x"]
[null,null,"OUTILL-1895","BOITE4",17]
[null,null,"OUTILL-190*45","BOITE 2",3]
[null,null,"OUTILL-1901","PLATEAU4",13]
[null,null,"OUTILL-1902","PLATEAU4",14]
[null,null,"OUTILL-1922","PLATEAU 4",15]
[null,null,"OUTILL-1929","PLATEAU4",22]
[null,null,"OUTILL-205","ETAGERE 2-2",3]
[null,null,"OUTILL-218","ETAGERE 2-5","x"]
[null,null,"OUTILL-224","ETAGERE 2-5","x"]
[null,null,"OUTILL-239","ETAGERE 2-5",4]
[null,null,"OUTILL-298","BOITE 2",15]
[null,null,"OUTILL-301","ETAGERE 2-2",2]
[null,null,"OUTILL-337","Plateau2",13]
[null,null,"OUTILL-377","ETAGERE 1-5",1]
[null,null,"OUTILL-379","BOITE 2",13]
[null,null,"OUTILL-39","ETAGERE 2-2","x"]
[null,null,"OUTILL-391200","ETAGERE 1-1","x"]
[null,null,"OUTILL-392","ETAGERE 1-3",4]
[null,null,"OUTILL-416","ETAGERE 2-3","x"]
[null,null,"OUTILL-428","ETAGERE 2-3",1]
[null,null,"OUTILL-439","BOITE 2",1]
[null,null,"OUTILL-473","Boîte TAES","x"]
[null,null,"OUTILL-482","ETAGERE 2.6",6]
[null,null,"OUTILL-501","Boïte TAES","x"]
[null,null,"OUTILL-572","BOITE 5",9]
[null,null,"OUTILL-573","BOITE 2",6]
[null,null,"OUTILL-590","ETAGERE 1-4",1]
[null,null,"OUTILL-591","ETAGERE 1-1","x"]
[null,null,"OUTILL-604","ETAGERE 1-4",2]
[null,null,"OUTILL-6100269","ETAGERE 2-6","x"]
[null,null,"OUTILL-621","ETAGERE 1-2","x"]
[null,null,"OUTILL-622","BOITE 1",16]
[null,null,"OUTILL-623","ETAGERE 2-3","x"]
[null,null,"OUTILL-759","BOITE 1",16]
[null,null,"OUTILL-762","ETAGERE1-5","x"]
[null,null,"OUTILL-86","ETAGERE 1-1","x"]
[null,null,"OUTILL-876","ETAGERE 2-3",3]
[null,null,"OUTILL-966","ETAGERE 1-5",5]
[null,null,"OUTILL-973","Plateau2",10]
[null,null,"OUTILL-QFP","BOITE 2",14]
[null,null,"OUTILL-RAN","ETAGERE 2-6","x"]
[null,null,"(vide)","(vide)","(vide)"]
[null,null,"OUTILL-1774","ETAGERE 1-0","(vide)"]
[null,null,"OUTILL-1875","ETAGERE 1-5","avant"]
[null,null,"OUTILL-1934","PLATEAU 4",16]
[null,null,"OUTILL-1896","PLATEAU",18]
[null,null,"OUTILL-1950","ETAGERE 1-5","arrière"]
[null,null,"OUTILL-1952","PLATEAU 4",20]
[null,null,"OUTILL-1930","PLATEAU 2",33]
[null,null,"OUTILL-1558","PLATEAU 3",14]
[null,null,"OUTILL-D2 PACK","PLATEAU 4",21]

{"sheet":"OP supp","index":28,"n_rows":20,"n_cols":43,"rows_kept":20,"cut":false,"hidden":false,"merged":[[19,9,19,12],[19,13,19,16],[20,1,21,3],[14,42,14,45],[15,3,17,4],[15,5,17,8],[15,11,17,12],[15,13,17,16],[18,9,18,12],[18,13,18,16],[14,17,14,20],[14,21,14,25],[14,26,14,30],[14,31,14,33],[14,34,14,37],[14,38,14,41],[13,42,13,45],[8,1,9,45],[12,1,14,16],[12,17,12,20],[12,21,12,25],[12,26,12,30],[12,31,12,33],[12,34,12,37],[12,38,12,41],[12,42,12,45],[13,17,13,20],[13,21,13,25],[13,26,13,30],[13,31,13,33],[13,34,13,37],[13,38,13,41]]}
[]
[]
[]
[]
[]
[]
[]
[]
[null,"CHARGEMENT EUROPLACER"]
[]
[]
[]
[null,"METHODE DE CHARGEMENT :",null,null,null,null,null,null,null,null,null,null,null,null,null,null,null,"N ° face :",null,null,null,{"$f":"'LIEN CMS'!$B$65","v":"N° face "},null,null,null,null,{"$f":"IF('LIEN CMS'!$B$67=\"\",\"\",'LIEN CMS'!$B$67)","v":"N° face "},null,null,null,null,"N°outillage :",null,null,{"$f":"IF('LIEN CMS'!$B$47=0,\"N/A\",'LIEN CMS'!$B$47)","v":"N/A"},null,null,null,{"$f":"IF('LIEN CMS'!$B$48=0,\"N/A\",'LIEN CMS'!$B$48)","v":"N/A"},null,null,null,{"$f":"IF('LIEN CMS'!$B$49=0,\"N/A\",'LIEN CMS'!$B$49)","v":"N/A"}]
[null,null,null,null,null,null,null,null,null,null,null,null,null,null,null,null,null,"N °pochoir :",null,null,null,{"$f":"IF('LIEN CMS'!$B$73=0,\"N/A\",(CONCATENATE(\"ECR00000\",'LIEN CMS'!$B$73)))","v":"N/A"},null,null,null,null,{"$f":"IF('LIEN CMS'!$B$79=0,\"N/A\",(CONCATENATE(\"ECR00000\",'LIEN CMS'!$B$79)))","v":"N/A"},null,null,null,null,"Qte :",null,null,{"$f":"IF('LIEN CMS'!$C$47=0,\"N/A\",'LIEN CMS'!$C$47)","v":"N/A"},null,null,null,{"$f":"IF('LIEN CMS'!$C$48=0,\"N/A\",'LIEN CMS'!$C$48)","v":"N/A"},null,null,null,{"$f":"IF('LIEN CMS'!$C$49=0,\"N/A\",'LIEN CMS'!$C$49)","v":"N/A"}]
[null,null,null,null,null,null,null,null,null,null,null,null,null,null,null,null,null,"Ingrédient :",null,null,null,{"$f":"IF('LIEN CMS'!$B$71=0,\"N/A\",'LIEN CMS'!$B$71)","v":"N/A"},null,null,null,null,{"$f":"IF('LIEN CMS'!$B$76=0,\"N/A\",'LIEN CMS'!$B$76)","v":"N/A"},null,null,null,null,"Rangement",null,null,{"$f":"IF(ISERROR((VLOOKUP('LIEN CMS'!$B$47,OUTILLAGE!$C:$E,2,0))<>\"\"),\"\",CONCATENATE(VLOOKUP('LIEN CMS'!$B$47,OUTILLAGE!$C:$E,2,0),IF(VLOOKUP('LIEN CMS'!$B$47,OUTILLAGE!$C:$E,3,0)=\"x\",\"\",CONCATENATE(\" n° \",VLOOKUP('LIEN CMS'!$B$47,OUTILLAGE!$C:$E,3,0)))))","v":""},null,null,null,{"$f":"IF(ISERROR((VLOOKUP('LIEN CMS'!$B$48,OUTILLAGE!$C:$E,2,0))<>\"\"),\"\",CONCATENATE(VLOOKUP('LIEN CMS'!$B$48,OUTILLAGE!$C:$E,2,0),IF(VLOOKUP('LIEN CMS'!$B$48,OUTILLAGE!$C:$E,3,0)=\"x\",\"\",CONCATENATE(\" n° \",VLOOKUP('LIEN CMS'!$B$48,OUTILLAGE!$C:$E,3,0)))))","v":""},null,null,null,{"$f":"IF(ISERROR((VLOOKUP('LIEN CMS'!$B$49,OUTILLAGE!$C:$E,2,0))<>\"\"),\"\",CONCATENATE(VLOOKUP('LIEN CMS'!$B$49,OUTILLAGE!$C:$E,2,0),IF(VLOOKUP('LIEN CMS'!$B$49,OUTILLAGE!$C:$E,3,0)=\"x\",\"\",CONCATENATE(\" n° \",VLOOKUP('LIEN CMS'!$B$49,OUTILLAGE!$C:$E,3,0)))))","v":""}]
[null,null,null,null,null,"oui",null,null,null,null,null,null,null,"non"]
[]
[]
[null,null,null,null,null,null,null,null,null,"FACE 1"]
[null,null,null,null,null,null,null,null,null,"FACE2"]